Workbook

Sheet KAPAK
B6: Sermaye Piyasası Kurulu
B13: ULUSLARARASI EKONOMİK VE FİNANSAL GÖSTERGELER
B16: MART 2019
B17: Güncelleme Tarihi
B18: 2019-05-14
B24: ARAŞTIRMA DAİRESİ

Sheet ACIKLAMA
A4: Yayına Hazırlayan
A6: SPK Araştırma Dairesi
A10: Hazırlayanlar
A12: Dr. Oya CAN MUTAN
A13: Dr. Ayhan TOPCU
A17: Bilgi İçin
A19: Araştırma Dairesi
A20: E-posta: oya.canmutan@spk.gov.tr
A21: E-posta: ayhan.topcu@spk.gov.tr
A24: SERMAYE PİYASASI KURULU
A25: ESKİŞEHİR YOLU 8. KM. NO:156 06530
A26: ANKARA-TÜRKİYE
A28: Tel: (312) 292 90 90
A29: Faks: (312) 292 90 00

Sheet KISALTMA ve KAYNAKLAR
A3: Kullanılan Kısaltmalar
A4: BIS | B4: : Bank for International Settlements (Uluslararası Takas Bankası)
A5: EFAMA | B5: : European Fund and Asset Management Association (Avrupa Fon ve Varlık Yönetim Birliği)
A6: EMBI | B6: : Emerging Markets Bond Index (Gelişmekte Olan Piyasalar Tahvil Endeksi)
A7: GSYH | B7: : Gayri Safi Yurtiçi Hasıla
A8: IMF | B8: : International Monetary Fund (Uluslararası Para Fonu)
A9: OECD | B9: : Organization for Economic Co-operation and Development (Ekonomik İşbirliği ve Kalkınma Örgütü)
A10: TÜİK | B10: : Türkiye İstatistik Kurumu
A11: WFE | B11: : World Federation of Exchanges (Dünya Borsalar Federasyonu)
A14: Yararlanılan Kaynaklar
A15: BIS | B15: : http://www.bis.org
A16: EFAMA | B16: : http://www.efama.org
A17: Fraser Institute | B17: : http://www.fraserinstitute.org
A18: IMF | B18: : http://imf.org
A19: OECD | B19: : http://www.oecd.org
A20: TÜİK | B20: : http://www.tuik.gov.tr
A21: WFE | B21: : http://www.world-exchanges.org
A22: World Bank Group | B22: : http://devdata.worldbank.org

Sheet ICINDEKILER
A1: İÇİNDEKİLER
A2: BÖLÜM I: ULUSLARARASI SERMAYE PİYASASI GÖSTERGELERİ
A3: I.1. BORSA PERFORMANSLARI
A4: I.2. BORSA ŞİRKETLERİNİN PİYASA KAPİTALİZASYONU
A5: I.3. BORSA ŞİRKETLERİNİN PİYASA KAPİTALİZASYONU/GSYH
A6: I.4. TOPLAM İŞLEM HACMİ
A7: I.5. TOPLAM İŞLEM HACMİ/GSYH
A8: I.6. BORSALARDA İŞLEM GÖREN ŞİRKET SAYILARI
A9: I.7. YATIRIM FONLARI NET AKTİF DEĞERİ
A10: I.8. YATIRIM FONLARI SAYISI
A11: BÖLÜM II: KÜRESEL FİNANS PİYASALARINA İLİŞKİN GÖSTERGELER
A12: II.1. DOĞRUDAN YABANCI YATIRIMLAR
A13: II.2. EKONOMİK ÖZGÜRLÜK ENDEKSİ
A14: BÖLÜM III: ULUSLARARASI MAKROEKONOMİK GÖSTERGELER
A15: III.1. GSYH
A16: III.2. KİŞİBAŞI GSYH
A17: III.3. BÜYÜME
A18: III.4. ENFLASYON
A19: III.5. TAHVİL STOKU
A20: III.6. TAHVİL STOKU/GSYH
A21: III.7. DIŞ BORÇ STOKU
A22: III.8. DIŞ TİCARET GÖSTERGELERİ
A23: III.9. CARİ İŞLEMLER DENGESİ
A24: III.10. İŞSİZLİK ORANI

Sheet BÖLÜMI
A12: BÖLÜM I: ULUSLARARASI SERMAYE PİYASASI GÖSTERGELERİ

Sheet I.1
A1: I.1. BORSA PERFORMANSLARI
A2: Borsalar | B2: Endeks Adı | C2: 2003/12 | D2: 2004/12 | E2: 2005/12 | F2: 2006/12 | G2: 2007/12 | H2: 2008/12 | I2: 2009/12 | J2: 2010/12 | K2: 2011/12 | L2: 2012/12 | M2: 2013/12 | N2: 2014/12 | O2: 2015/12 | P2: 2016/12 | Q2: 2017/12 | R2: 2018/12 | S2: 2019/03 | T2: % Değişim 2019/03 2018/12
A4: Amerika
A5: Buenos Aires SE | B5: Composite | C5: - | D5: - | E5: - | F5: - | G5: - | H5: - | I5: - | J5: 188,392.43 | K5: 144,517.98 | L5: 164,018.92 | M5: 265,324.57 | N5: 414,609.45 | O5: 479,544.15 | P5: 745,899.49 | Q5: 1,307,017.1 | R5: 1,309,020.5 | S5: 1,449,592.4 | T5: =(S5-R5)/R5 -> 10.7%
A6: Lima SE | B6: IGBVL | C6: 2,435.04 | D6: 3,710.39 | E6: 4,802.25 | F6: 12,884.20 | G6: 17,524.79 | H6: 7,048.67 | I6: 14,167.20 | J6: 23,374.57 | K6: 19,473.31 | L6: 20,629.35 | M6: 15,753.65 | N6: 14,794.32 | O6: 9,848.59 | P6: 15,566.96 | Q6: 19,974.38 | R6: 19,350.40 | S6: 21,098.07 | T6: 9.0%
A7: Mexican Exchange | B7: IPC CompMX index | C7: - | D7: - | E7: - | F7: - | G7: - | H7: - | I7: - | J7: 296.07 | K7: 288.11 | L7: 345.53 | M7: 346.05 | N7: 351.19 | O7: 353.18 | P7: 399.75 | Q7: 403.47 | R7: 342.33 | S7: 356.19 | T7: 4.0%
A8: Nasdaq | B8: Composite | C8: 2,003.37 | D8: 2,175.44 | E8: 2,205.32 | F8: 2,415.29 | G8: 2,652.28 | H8: 1,577.03 | I8: 2,269.15 | J8: 2,652.87 | K8: 2,605.15 | L8: 3,019.51 | M8: 4,176.59 | N8: 4,736.05 | O8: 5,007.41 | P8: 5,383.12 | Q8: 6,903.39 | R8: 6,635.28 | S8: 7,729.32 | T8: 16.5%
A9: NYSE | B9: Composite | C9: 6,464.00 | D9: 7,250.06 | E9: 7,753.95 | F9: 9,139.00 | G9: 9,740.32 | H9: 5,757.00 | I9: 7,184.96 | J9: 7,964.02 | K9: 7,477.03 | L9: 8,443.51 | M9: 10,400.33 | N9: 10,839.24 | O9: 10,143.42 | P9: 11,056.90 | Q9: 12,808.84 | R9: 11,374.39 | S9: 12,696.88 | T9: 11.6%
A10: Santiago SE | B10: IGPA | C10: 7,336.67 | D10: 8,962.56 | E10: 9,206.10 | F10: 12,373.68 | G10: 14,076.25 | H10: 11,324.07 | I10: 16,630.91 | J10: 22,979.22 | K10: 20,129.80 | L10: 21,070.28 | M10: 18,227.05 | N10: 18,870.41 | O10: 18,151.50 | P10: 20,734.17 | Q10: 27,980.78 | R10: 25,949.84 | S10: 26,643.94 | T10: 2.7%
A11: BM&FBOVESPA | B11: Ibovespa | C11: 22,236.00 | D11: 26,196.00 | E11: 33,455.00 | F11: 44,473.00 | G11: 63,886.00 | H11: 37,550.00 | I11: 68,588.41 | J11: 69,304.81 | K11: 56,754.08 | L11: 60,952.08 | M11: 51,507.16 | N11: 50,007.41 | O11: 43,349.96 | P11: 60,227.28 | Q11: 76,402.08 | R11: 87,887.27 | S11: 76,753.61 | T11: -12.7%
A12: TMX Group | B12: S&P/TSX Composite | C12: 8,220.89 | D12: 9,246.65 | E12: 11,272.26 | F12: 12,908.39 | G12: 13,833.06 | H12: 8,987.70 | I12: 11,746.11 | J12: 13,443.22 | K12: 11,955.09 | L12: 12,433.53 | M12: 13,621.55 | N12: 14,632.44 | O12: 13,009.95 | P12: 15,287.59 | Q12: 16,209.13 | R12: 14,322.86 | S12: 16,102.09 | T12: 12.4%
A13: Asya - Pasifik
A14: BSE India | B14: BSE-500 | C14: 2,366.36 | D14: 2,779.65 | E14: 3,795.96 | F14: 5,270.76 | G14: 8,592.43 | H14: 3,596.85 | I14: 6,842.25 | J14: 7,961.06 | K14: 5,778.68 | L14: 7,581.57 | M14: 7,828.34 | N14: 10,721.62 | O14: 10,634.22 | P14: 11,036.44 | Q14: 15,002.73 | R14: 14,540.39 | S14: 15,304.57 | T14: =(S14-R14)/R14 -> 5.3%
A15: Bursa Malaysia | B15: FBM Emas Index | C15: - | D15: - | E15: - | F15: - | G15: - | H15: - | I15: - | J15: 10,374.98 | K15: 10,489.07 | L15: 11,438.14 | M15: 12,853.63 | N15: 12,066.28 | O15: 11,793.65 | P15: 11,466.54 | Q15: 12,942.57 | R15: 11,527.51 | S15: 11,553.84 | T15: =(S15-R15)/R15 -> 0.2%
A16: Colombo SE | B16: CSE All Share | C16: 1,062.39 | D16: 1,506.90 | E16: 1,922.21 | F16: 2,722.36 | G16: 2,540.99 | H16: 1,503.02 | I16: 3,385.55 | J16: 6,635.87 | K16: 6,074.42 | L16: 5,643.00 | M16: 5,912.78 | N16: 7,299.00 | O16: 6,894.50 | P16: 6,228.26 | Q16: 6,369.26 | R16: 6,052.37 | S16: 5,557.24 | T16: =(S16-R16)/R16 -> -8.2%
A17: Hong Kong Exchanges | B17: S&P/HKEX LargeCap Index | C17: 13,645.19 | D17: 15,740.43 | E17: 17,025.45 | F17: 24,378.76 | G17: 33,708.99 | H17: 17,891.16 | I17: 25,564.96 | J17: 27,392.78 | K17: 22,252.19 | L17: 27,082.16 | M17: 28,109.10 | N17: 28,711.00 | O17: 27,007.12 | P17: 27,926.13 | Q17: 38,884.61 | R17: 33,622.78 | S17: 37,102.74 | T17: =(S17-R17)/R17 -> 10.4%
A18: Indonesia SE | B18: JSX Composite Index | C18: 691.90 | D18: 1,000.23 | E18: 1,162.64 | F18: 1,805.52 | G18: 2,745.83 | H18: 1,355.41 | I18: 2,534.36 | J18: 3,703.51 | K18: 3,821.99 | L18: 4,316.69 | M18: 4,274.18 | N18: 5,226.95 | O18: 4,593.01 | P18: 5,296.71 | Q18: 6,355.65 | R18: 6,194.50 | S18: - | T18: -
A19: National Stock Exchange India | B19: S&P CNX 500 | C19: 1,531.35 | D19: 1,804.39 | E19: 2,459.20 | F19: 3,295.05 | G19: 5,354.70 | H19: 2,295.75 | I19: 4,329.10 | J19: 4,940.15 | K19: 3,597.75 | L19: 4,743.45 | M19: 4,914.85 | N19: 6,773.65 | O19: 6,724.75 | P19: 6,982.80 | Q19: 9,490.65 | R19: 9,170.00 | S19: 9,663.70 | T19: =(S19-R19)/R19 -> 5.4%
A20: Philippine SE | B20: PSE Index (PSEi) | C20: 1,442.37 | D20: 1,822.83 | E20: 2,096.04 | F20: 2,982.54 | G20: 3,621.60 | H20: 1,872.85 | I20: 3,052.68 | J20: 4,201.14 | K20: 4,371.96 | L20: 5,812.73 | M20: 5,889.83 | N20: 7,230.57 | O20: 6,952.08 | P20: 6,840.64 | Q20: 8,558.42 | R20: 7,466.02 | S20: 7,920.93 | T20: 6.1%
A21: Shanghai SE | B21: SSE Composite Index | C21: 1,497.04 | D21: 1,266.50 | E21: 1,161.06 | F21: 2,675.47 | G21: 5,261.56 | H21: 1,820.81 | I21: 3,277.14 | J21: 2,808.08 | K21: 2,199.42 | L21: 2,269.13 | M21: 2,115.98 | N21: 3,234.68 | O21: 3,539.18 | P21: 3,103.64 | Q21: 3,307.17 | R21: 2,493.90 | S21: 3,090.76 | T21: 23.9%
A22: Shenzhen SE | B22: SZSE Composite Index | C22: 378.63 | D22: 315.81 | E22: 278.75 | F22: 550.59 | G22: 1,447.02 | H22: 553.30 | I22: 1,201.34 | J22: 1,290.87 | K22: 866.65 | L22: 881.17 | M22: 1,057.67 | N22: 1,415.19 | O22: 2,308.91 | P22: 1,969.11 | Q22: 1,899.34 | R22: 1,267.87 | S22: 1,695.14 | T22: 33.7%
A23: Thailand SE | B23: SET | C23: 772.15 | D23: 668.10 | E23: 713.73 | F23: 679.84 | G23: 858.10 | H23: 449.96 | I23: 734.54 | J23: 1,032.76 | K23: 1,025.32 | L23: 1,391.93 | M23: 1,298.71 | N23: 1,497.67 | O23: 1,288.02 | P23: 1,542.94 | Q23: 1,753.71 | R23: 1,563.88 | S23: 1,638.65 | T23: 4.8%
A24: Japan Exchange Group - Tokyo | B24: TOPIX | C24: 1,043.69 | D24: 1,149.63 | E24: 1,649.76 | F24: 1,681.07 | G24: 1,475.68 | H24: 859.24 | I24: 907.59 | J24: 898.80 | K24: 728.61 | L24: 859.80 | M24: 1,302.29 | N24: 1,407.51 | O24: 1,547.30 | P24: 1,518.61 | Q24: 1,817.56 | R24: 1,494.09 | S24: 1,591.64 | T24: 6.5%
A25: Avrupa - Afrika - Orta Doğu
A26: Athens Exchange | B26: General Price | C26: 2,263.58 | D26: 2,786.18 | E26: 3,663.90 | F26: 4,394.13 | G26: 5,178.83 | H26: 1,786.51 | I26: 2,196.16 | J26: 1,413.94 | K26: 680.42 | L26: 907.90 | M26: 1,162.68 | N26: 826.18 | O26: 631.35 | P26: 643.64 | Q26: 802.37 | R26: 613.30 | S26: 721.37 | T26: =(S26-R26)/R26 -> 17.6%
A27: Borsa Italiana | B27: FTSE Italia MIB Storico | C27: 19,483.00 | D27: 22,886.00 | E27: 26,056.00 | F27: 31,005.00 | G27: 28,525.00 | H27: 14,623.00 | I27: 17,651.79 | J27: 16,121.00 | K27: 12,259.00 | L27: 13,512.00 | M27: 16,048.00 | N27: 15,988.00 | O27: 18,690.00 | P27: 17,265.00 | Q27: 20,035.00 | R27: 16,816.00 | S27: 19,517.84 | T27: =(S27-R27)/R27 -> 16.1%
A28: Budapest SE | B28: BUMIX | C28: - | D28: - | E28: - | F28: - | G28: - | H28: - | I28: - | J28: 1,929.42 | K28: 1,668.14 | L28: 1,030.72 | M28: 1,342.26 | N28: 1,445.29 | O28: 1,632.99 | P28: 1,939.57 | Q28: 4,299.13 | R28: 3,772.99 | S28: 4,346.22 | T28: =(S28-R28)/R28 -> 15.2%
A29: Egyptian Exchange | B29: EGX 30 Index | C29: 1,155.51 | D29: 2,567.99 | E29: 6,324.70 | F29: 6,973.41 | G29: 10,549.74 | H29: 4,596.49 | I29: 6,208.77 | J29: 7,142.14 | K29: 3,622.35 | L29: 5,462.42 | M29: 6,782.84 | N29: 8,926.58 | O29: 7,006.01 | P29: 12,344.89 | Q29: 15,019.00 | R29: 13,035.77 | S29: 14,737.88 | T29: =(S29-R29)/R29 -> 13.1%
A30: Deutsche Börse | B30: CDAX Price | C30: 252.48 | D30: 268.32 | E30: 335.59 | F30: 407.16 | G30: 478.65 | H30: 266.33 | I30: 320.32 | J30: 368.72 | K30: 304.60 | L30: 380.03 | M30: 466.53 | N30: 468.39 | O30: 508.80 | P30: 526.55 | Q30: 595.45 | R30: 474.85 | S30: 516.84 | T30: =(S30-R30)/R30 -> 8.8%
A31: Irish SE | B31: ISEQ Overall | C31: 4,920.73 | D31: 6,197.83 | E31: 7,363.96 | F31: 9,408.12 | G31: 6,934.35 | H31: 2,343.27 | I31: 2,974.93 | J31: 2,885.10 | K31: 2,901.82 | L31: 3,396.67 | M31: 4,539.43 | N31: 5,224.56 | O31: 6,791.68 | P31: 6,517.24 | Q31: 7,038.28 | R31: 5,479.81 | S31: - | T31: -
A32: Borsa Istanbul | B32: BIST 100 Index | C32: 18,625.02 | D32: 24,971.68 | E32: 39,778.00 | F32: 39,117.46 | G32: 55,538.13 | H32: 26,864.07 | I32: 52,825.02 | J32: 66,004.48 | K32: 51,266.62 | L32: 78,208.44 | M32: 67,801.73 | N32: 85,721.13 | O32: 71,726.99 | P32: 78,138.66 | Q32: 115,333.01 | R32: 91,270.48 | S32: 93,784.18 | T32: =(S32-R32)/R32 -> 2.8%
A33: Luxembourg SE | B33: Lux General Price | C33: 726.35 | D33: 858.36 | E33: 1,097.97 | F33: 1,592.51 | G33: 1,929.39 | H33: 780.74 | I33: 1,206.67 | J33: 1,241.90 | K33: 831.89 | L33: 845.19 | M33: 925.64 | N33: 847.92 | O33: 692.56 | P33: 824.15 | Q33: 857.62 | R33: 661.49 | S33: 666.04 | T33: =(S33-R33)/R33 -> 0.7%
A34: Tel Aviv SE | B34: General | C34: 493.60 | D34: 580.37 | E34: 770.93 | F34: 815.65 | G34: 1,002.60 | H34: 537.29 | I34: 960.60 | J34: 1,081.81 | K34: 842.92 | L34: 881.27 | M34: 1,016.15 | N34: 1,133.17 | O34: 1,210.46 | P34: 1,076.80 | Q34: 1,064.82 | R34: 1,022.93 | S34: 1,090.41 | T34: =(S34-R34)/R34 -> 6.6%
A35: Warsaw SE | B35: WIG Total Return | C35: 20,820.07 | D35: 26,636.19 | E35: 35,600.79 | F35: 50,411.82 | G35: 55,648.54 | H35: 27,228.64 | I35: 39,985.99 | J35: 47,489.91 | K35: 37,595.44 | L35: 47,460.59 | M35: 51,284.25 | N35: 51,416.08 | O35: 46,467.38 | P35: 51,754.03 | Q35: 63,746.20 | R35: 57,690.50 | S35: 59,668.03 | T35: =(S35-R35)/R35 -> 3.4%
A36: Wiener Börse | B36: SE Price Index | C36: 623.75 | D36: 928.24 | E36: 1,324.86 | F36: 1,676.70 | G36: 1,653.79 | H36: 644.72 | I36: 926.49 | J36: 1,104.39 | K36: 764.56 | L36: 928.30 | M36: 967.66 | N36: 847.93 | O36: 934.75 | P36: 1,033.47 | Q36: 1,336.81 | R36: 1,109.32 | S36: 1,215.48 | T36: =(S36-R36)/R36 -> 9.6%
A37: Kaynak: WFE
A38: Güncelleme Tarihi: 08.05.2019
A40: İÇİNDEKİLER SAYFASI

Sheet I.2
A1: I.2. BORSA ŞİRKETLERİNİN PİYASA KAPİTALİZASYONU (milyon dolar)
A3: Ülkeler | B3: 1996 | C3: 1997 | D3: 1998 | E3: 1999 | F3: 2000 | G3: 2001 | H3: 2002 | I3: 2003 | J3: 2004 | K3: 2005 | L3: 2006 | M3: 2007 | N3: 2008 | O3: 2009 | P3: 2010 | Q3: 2011 | R3: 2012 | S3: 2013 | T3: 2014 | U3: 2015 | V3: 2016 | W3: 2017 | X3: 2018 | Y3: 2019/03
A5: Almanya | B5: 664,913 | C5: 825,233 | D5: 1,086,749 | E5: 1,432,167 | F5: 1,270,243 | G5: 1,071,749 | H5: 686,014 | I5: 1,079,026 | J5: 1,194,517 | K5: 1,221,106 | L5: 1,637,610 | M5: 2,105,198 | N5: 1,110,580 | O5: 1,292,355 | P5: 1,429,719 | Q5: 1,184,500 | R5: 1,486,315 | S5: 1,936,106 | T5: 1,738,539 | U5: 1,715,800 | V5: 1,732,270 | W5: 2,262,223 | X5: 1,755,173 | Y5: 1,867,308
A6: ABD | B6: 8,451,723 | C6: 10,730,627 | D6: 12,647,941 | E6: 16,732,963 | F6: 15,214,416 | G6: 13,826,485 | H6: 11,055,455 | I6: 14,266,023 | J6: 16,323,509 | K6: 17,437,691 | L6: 19,568,973 | M6: 19,922,280 | N6: 11,737,646 | O6: 15,077,286 | P6: 17,283,452 | Q6: 15,640,707 | R6: 18,668,333 | S6: 24,034,854 | T6: 26,330,589 | U6: 25,067,540 | V6: 27,352,201 | W6: 32,120,702 | X6: 30,436,313 | Y6: 34,429,297
A7: Arjantin | B7: 44,692 | C7: 59,252 | D7: 45,333 | E7: 55,848 | F7: 45,839 | G7: 33,384 | H7: 16,549 | I7: 34,995 | J7: 40,594 | K7: 47,590 | L7: 51,240 | M7: 57,070 | N7: 39,850 | O7: 45,745 | P7: 63,910 | Q7: 43,580 | R7: 34,255 | S7: 53,105 | T7: 60,142 | U7: 56,135 | V7: 63,882 | W7: 108,740 | X7: 45,986 | Y7: 40,838
A8: Avusturya | B8: 33,629 | C8: 37,280 | D8: 35,544 | E8: 33,023 | F8: 29,935 | G8: 25,204 | H8: 33,578 | I8: 56,522 | J8: 87,776 | K8: 126,309 | L8: 199,121 | M8: 236,448 | N8: 76,289 | O8: 114,076 | P8: 126,032 | Q8: 85,270 | R8: 106,037 | S8: 117,671 | T8: 96,790 | U8: 96,079 | V8: 101,148 | W8: 150,646 | X8: 116,802 | Y8: 125,946
A9: Brezilya | B9: 216,906 | C9: 255,478 | D9: 160,886 | E9: 227,962 | F9: 226,152 | G9: 186,238 | H9: 121,640 | I9: 226,358 | J9: 330,347 | K9: 474,647 | L9: 710,247 | M9: 1,369,711 | N9: 591,966 | O9: 1,337,248 | P9: 1,545,566 | Q9: 1,228,936 | R9: 1,227,447 | S9: 1,020,455 | T9: 843,894 | U9: 496,194 | V9: 774,133 | W9: 954,715 | X9: 916,824 | Y9: 820,649
A10: Çin | B10: - | C10: - | D10: - | E10: - | F10: - | G10: - | H10: 463,091 | I10: 512,979 | J10: 447,720 | K10: 401,852 | L10: 1,145,455 | M10: 4,478,867 | N10: 1,778,784 | O10: 3,573,152 | P10: 4,027,840 | Q10: 3,412,108 | R10: 3,697,376 | S10: 3,949,143 | T10: 6,004,948 | U10: 8,188,019 | V10: 7,320,738 | W10: 8,711,267 | X10: 6,324,880 | Y10: 8,369,107
A11: Danimarka | B11: 71,074 | C11: 93,766 | D11: 98,881 | E11: 105,293 | F11: 107,665 | G11: 85,145 | H11: 76,750 | I11: 118,167 | J11: - | K11: - | L11: - | M11: - | N11: - | O11: - | P11: - | Q11: - | R11: - | S11: - | T11: - | U11: - | V11: - | W11: - | X11: - | Y11: -
A12: Endonezya | B12: 90,857 | C12: 29,050 | D12: 22,078 | E12: 64,045 | F12: 26,813 | G12: 22,998 | H12: 30,067 | I12: 54,659 | J12: 73,251 | K12: 81,428 | L12: 138,886 | M12: 211,693 | N12: 98,760 | O12: 214,940 | P12: 360,388 | Q12: 390,107 | R12: 428,223 | S12: 346,674 | T12: 422,127 | U12: 353,271 | V12: 433,822 | W12: 520,687 | X12: 486,766 | Y12: -
A13: Filipinler | B13: 80,464 | C13: 31,211 | D13: 34,911 | E13: 41,536 | F13: 25,261 | G13: 20,606 | H13: 18,198 | I13: 23,190 | J13: 28,602 | K13: 39,818 | L13: 68,270 | M13: 102,853 | N13: 52,031 | O13: 86,349 | P13: 157,321 | Q13: 165,066 | R13: 229,317 | S13: 217,320 | T13: 261,841 | U13: 238,820 | V13: 239,882 | W13: 290,401 | X13: 258,156 | Y13: 277,128
A14: Finlandiya | B14: 62,579 | C14: 73,322 | D14: 153,811 | E14: 349,394 | F14: 293,635 | G14: 190,456 | H14: 138,833 | I14: 170,283 | J14: - | K14: - | L14: - | M14: - | N14: - | O14: - | P14: - | Q14: - | R14: - | S14: - | T14: - | U14: - | V14: - | W14: - | X14: - | Y14: -
A15: Hindistan | B15: - | C15: - | D15: - | E15: - | F15: - | G15: - | H15: 130,390 | I15: 278,663 | J15: 386,321 | K15: 553,074 | L15: 818,879 | M15: 1,819,101 | N15: 647,205 | O15: 1,306,520 | P15: 1,631,830 | Q15: 1,007,183 | R15: 1,263,335 | S15: 1,138,834 | T15: 1,558,300 | U15: 1,516,217 | V15: 1,561,270 | W15: 2,351,462 | X15: 2,083,483 | Y15: 2,179,096
A16: İrlanda | B16: 34,738 | C16: 49,371 | D16: 66,596 | E16: 68,773 | F16: 81,883 | G16: 75,298 | H16: 59,938 | I16: 85,071 | J16: 114,086 | K16: 114,086 | L16: 163,269 | M16: 143,905 | N16: 49,490 | O16: 61,291 | P16: 60,368 | Q16: 108,393 | R16: 108,989 | S16: 170,123 | T16: 143,466 | U16: 128,009 | V16: 120,962 | W16: 146,554 | X16: 110,154 | Y16: -
A17: İspanya | B17: 241,028 | C17: 290,355 | D17: 399,848 | E17: 431,649 | F17: 504,222 | G17: 468,203 | H17: 461,560 | I17: 726,243 | J17: 940,673 | K17: 959,910 | L17: 1,322,915 | M17: 1,781,133 | N17: 948,352 | O17: 1,297,227 | P17: 1,171,625 | Q17: 1,030,988 | R17: 995,088 | S17: 1,116,561 | T17: 992,914 | U17: 787,192 | V17: 711,214 | W17: 888,838 | X17: 723,691 | Y17: 770,908
A18: İsrail | B18: 34,463 | C18: 44,371 | D18: 39,230 | E18: 63,472 | F18: 65,338 | G18: 58,229 | H18: 40,774 | I18: 68,904 | J18: 90,158 | K18: 122,578 | L18: 161,732 | M18: 235,056 | N18: 134,802 | O18: 188,734 | P18: 227,614 | Q18: 156,939 | R18: 161,855 | S18: 203,301 | T18: 200,525 | U18: 243,904 | V18: 215,007 | W18: 231,049 | X18: 187,466 | Y18: 205,455
A19: Japonya | B19: 3,011,161 | C19: 2,160,585 | D19: 2,439,549 | E19: 4,463,298 | F19: 3,157,222 | G19: 2,264,528 | H19: 2,069,299 | I19: 2,953,098 | J19: 3,557,674 | K19: 4,572,901 | L19: 4,726,269 | M19: 4,451,576 | N19: 3,208,980 | O19: 3,395,649 | P19: 3,827,774 | Q19: 3,325,388 | R19: 3,478,832 | S19: 4,543,169 | T19: 4,377,994 | U19: 4,894,919 | V19: 5,061,537 | W19: 6,222,825 | X19: 5,296,811 | Y19: 5,608,260
A20: Kanada | B20: 486,978 | C20: 567,635 | D20: 543,394 | E20: 789,180 | F20: 766,204 | G20: 611,493 | H20: 570,223 | I20: 888,678 | J20: 1,177,518 | K20: 1,482,185 | L20: 1,700,708 | M20: 2,186,550 | N20: 1,033,449 | O20: 1,608,053 | P20: 2,170,433 | Q20: 1,912,122 | R20: 2,058,839 | S20: 2,113,822 | T20: 2,093,697 | U20: 1,591,929 | V20: 2,041,534 | W20: 2,367,060 | X20: 1,937,903 | Y20: 2,216,350
A21: Kolombiya | B21: - | C21: - | D21: - | E21: - | F21: - | G21: - | H21: - | I21: 14,259 | J21: 25,223 | K21: 50,501 | L21: 56,204 | M21: 101,956 | N21: 87,716 | O21: 140,520 | P21: 208,502 | Q21: 201,296 | R21: 262,101 | S21: 202,693 | T21: 146,746 | U21: 85,955 | V21: 103,405 | W21: 99,218 | X21: 103,848 | Y21: 127,594
A22: Kore | B22: 139,122 | C22: 41,881 | D22: 114,593 | E22: 306,128 | F22: 148,361 | G22: 194,470 | H22: 215,894 | I22: 298,248 | J22: 398,559 | K22: 718,011 | L22: 834,404 | M22: 1,122,606 | N22: 470,798 | O22: 834,597 | P22: 1,091,911 | Q22: 996,140 | R22: 1,179,419 | S22: 1,234,549 | T22: 1,212,759 | U22: 1,231,200 | V22: 1,282,166 | W22: 1,771,796 | X22: 1,413,717 | Y22: 1,468,213
A23: Lüksemburg | B23: 32,411 | C23: 33,892 | D23: 37,931 | E23: 35,939 | F23: 34,016 | G23: 23,783 | H23: 24,551 | I23: 37,333 | J23: 50,144 | K23: 51,248 | L23: 79,514 | M23: 166,094 | N23: 66,615 | O23: 105,048 | P23: 101,129 | Q23: 67,627 | R23: 70,338 | S23: 78,641 | T23: 63,168 | U23: 47,131 | V23: 61,486 | W23: 68,639 | X23: 49,483 | Y23: 49,410
A24: Macaristan | B24: - | C24: - | D24: - | E24: - | F24: 11,909 | G24: 10,367 | H24: 12,989 | I24: 18,868 | J24: 28,300 | K24: 32,576 | L24: 41,934 | M24: 46,196 | N24: 18,465 | O24: 30,037 | P24: 27,708 | Q24: 18,773 | R24: 20,760 | S24: 19,797 | T24: 14,513 | U24: 17,687 | V24: 18,073 | W24: 31,554 | X24: 28,935 | Y24: 30,692
A25: Malezya | B25: 306,165 | C25: 93,174 | D25: 95,561 | E25: 139,908 | F25: 113,155 | G25: 118,981 | H25: 122,892 | I25: 160,970 | J25: 181,624 | K25: 180,518 | L25: 235,581 | M25: 325,290 | N25: 189,087 | O25: 289,219 | P25: 408,689 | Q25: 395,624 | R25: 466,588 | S25: 500,387 | T25: 459,004 | U25: 382,977 | V25: 363,150 | W25: 455,772 | X25: 398,019 | Y25: 409,662
A26: Meksika | B26: 106,770 | C26: 156,595 | D26: 91,746 | E26: 154,044 | F26: 125,204 | G26: 126,258 | H26: 103,941 | I26: 122,533 | J26: 171,940 | K26: 239,128 | L26: 348,345 | M26: 397,725 | N26: 234,055 | O26: 352,045 | P26: 454,345 | Q26: 408,690 | R26: 525,057 | S26: 526,016 | T26: 480,245 | U26: 402,253 | V26: 333,541 | W26: 455,772 | X26: 385,051 | Y26: 401,394
A27: Mısır | B27: - | C27: - | D27: - | E27: - | F27: - | G27: - | H27: - | I27: - | J27: 38,533 | K27: 79,509 | L27: 93,496 | M27: 139,274 | N27: 85,247 | O27: 91,207 | P27: 84,277 | Q27: 48,682 | R27: 59,182 | S27: 61,630 | T27: 70,084 | U27: 55,192 | V27: 32,118 | W27: 46,546 | X27: 42,006 | Y27: 47,206
A28: NNE | B28: - | C28: - | D28: - | E28: - | F28: - | G28: - | H28: - | I28: - | J28: 728,769 | K28: 802,561 | L28: 1,122,705 | M28: 1,242,578 | N28: 563,100 | O28: 817,223 | P28: 1,042,154 | Q28: 842,101 | R28: 995,719 | S28: 1,269,214 | T28: 1,196,725 | U28: 1,268,042 | V28: 1,249,628 | W28: 1,533,497 | X28: 1,322,817 | Y28: 1,432,585
A29: Peru | B29: 12,583 | C29: 15,485 | D29: 9,869 | E29: 12,092 | F29: 9,750 | G29: 9,790 | H29: 11,441 | I29: 14,125 | J29: 17,975 | K29: 24,140 | L29: 40,022 | M29: 69,386 | N29: 37,877 | O29: 71,663 | P29: 103,347 | Q29: 81,878 | R29: 102,617 | S29: 80,978 | T29: 78,840 | U29: 56,556 | V29: 80,138 | W29: 99,218 | X29: 93,385 | Y29: 101,491
A30: Polonya | B30: 8,413 | C30: 12,135 | D30: 20,461 | E30: 29,577 | F30: 31,429 | G30: 26,155 | H30: 28,849 | I30: 37,405 | J30: 71,547 | K30: 93,602 | L30: 151,809 | M30: 211,620 | N30: 90,815 | O30: 150,962 | P30: 190,232 | Q30: 138,244 | R30: 177,408 | S30: 204,543 | T30: 168,896 | U30: 137,770 | V30: 140,859 | W30: 201,393 | X30: 160,483 | Y30: 162,467
A31: Rusya | B31: - | C31: - | D31: - | E31: - | F31: - | G31: - | H31: - | I31: - | J31: - | K31: - | L31: - | M31: - | N31: - | O31: - | P31: - | Q31: - | R31: 825,340 | S31: 770,657 | T31: 385,927 | U31: 393,238 | V31: 635,945 | W31: 623,425 | X31: 576,116 | Y31: 636,896
A32: Sri Lanka | B32: 1,865 | C32: 2,096 | D32: 1,705 | E32: 1,584 | F32: 1,074 | G32: 1,332 | H32: 1,680 | I32: 2,711 | J32: 3,657 | K32: 5,720 | L32: 7,769 | M32: 7,553 | N32: 4,286 | O32: 9,547 | P32: 19,924 | Q32: 19,437 | R32: 16,974 | S32: 18,807 | T32: 23,665 | U32: 20,804 | V32: 18,627 | W32: 18,960 | X32: 15,575 | Y32: 14,880
A33: Şili | B33: 65,971 | C33: 72,046 | D33: 51,866 | E33: 68,228 | F33: 60,401 | G33: 56,310 | H33: 49,828 | I33: 87,508 | J33: 116,924 | K33: 136,493 | L33: 174,419 | M33: 212,910 | N33: 131,808 | O33: 230,732 | P33: 341,799 | Q33: 270,289 | R33: 313,325 | S33: 265,150 | T33: 233,245 | U33: 190,352 | V33: 212,465 | W33: 294,676 | X33: 250,740 | Y33: 259,829
A34: Tayland | B34: 95,901 | C34: 22,792 | D34: 34,118 | E34: 57,177 | F34: 29,217 | G34: 35,950 | H34: 45,406 | I34: 119,017 | J34: 115,390 | K34: 123,885 | L34: 140,161 | M34: 197,129 | N34: 103,128 | O34: 176,956 | P34: 277,732 | Q34: 268,489 | R34: 389,756 | S34: 354,340 | T34: 430,427 | U34: 348,798 | V34: 437,314 | W34: 548,795 | X34: 500,741 | Y34: 535,299
A35: TÜRKİYE | B35: 30,312 | C35: 61,095 | D35: 33,646 | E35: 112,716 | F35: 69,659 | G35: 47,150 | H35: 34,217 | I35: 68,379 | J35: 98,299 | K35: 161,538 | L35: 162,399 | M35: 286,572 | N35: 118,329 | O35: 233,997 | P35: 307,052 | Q35: 197,074 | R35: 315,198 | S35: 195,746 | T35: 219,763 | U35: 188,862 | V35: 157,702 | W35: 227,512 | X35: 149,264 | Y35: 143,192
A36: Yunanistan | B36: 23,558 | C36: 33,784 | D36: 80,126 | E36: 196,847 | F36: 107,503 | G36: 83,481 | H36: 66,040 | I36: 103,764 | J36: 121,921 | K36: 145,121 | L36: 208,256 | M36: 264,961 | N36: 90,945 | O36: 112,632 | P36: 67,586 | Q36: 33,779 | R36: 44,877 | S36: 70,192 | T36: 55,154 | U36: 42,080 | V36: 37,515 | W36: 50,605 | X36: 38,371 | Y36: 43,150
A37: Kaynak: WFE
A38: Not 1: NNE (Nasdaq Nordic Exchange), Helsinki, İzlanda,Kopenhag, Riga, Stockholm, Tallinn ve Vilnius Borsalarından oluşmaktadır.
A39: Not 2: Ülkelerin rakamlarına WFE'de verilen o ülkeye ait olan borsa ya da borsaların verileri toplanarak ulaşılmıştır.
A40: Güncelleme tarihi: 08.05.2019
A42: İÇİNDEKİLER SAYFASI

Sheet I.3
A1: I.3. BORSA ŞİRKETLERİNİN PİYASA KAPİTALİZASYONU/GSYH
A3: Ülkeler | B3: 1997 | C3: 1998 | D3: 1999 | E3: 2000 | F3: 2001 | G3: 2002 | H3: 2003 | I3: 2004 | J3: 2005 | K3: 2006 | L3: 2007 | M3: 2008 | N3: 2009 | O3: 2010 | P3: 2011 | Q3: 2012 | R3: 2013 | S3: 2014(*) | T3: 2015(*) | U3: 2016(*) | V3: 2017(*) | W3: 2018(*) | X3: 2019/03(*)
A4: Almanya | B4: 0.37 | C4: 0.48 | D4: 0.65 | E4: 0.65 | F4: 0.55 | G4: 0.33 | H4: 0.43 | I4: 0.42 | J4: 0.43 | K4: 0.54 | L4: 0.61 | M4: 0.29 | N4: 0.38 | O4: 0.42 | P4: 0.31 | Q4: 0.42 | R4: 0.52 | S4: 0.45 | T4: 0.51 | U4: 0.50 | V4: 0.61 | W4: 0.44 | X4: 0.47
A5: ABD | B5: 1.25 | C5: 1.40 | D5: 1.74 | E5: 1.48 | F5: 1.31 | G5: 1.01 | H5: 1.25 | I5: 1.34 | J5: 1.34 | K5: 1.42 | L5: 1.38 | M5: 0.80 | N5: 1.04 | O5: 1.15 | P5: 1.01 | Q5: 1.15 | R5: 1.43 | S5: 1.50 | T5: 1.38 | U5: 1.46 | V5: 1.65 | W5: 1.49 | X5: 1.61
A6: Arjantin | B6: 0.19 | C6: 0.14 | D6: 0.18 | E6: 0.15 | F6: 0.11 | G6: 0.15 | H6: 0.25 | I6: 0.25 | J6: 0.24 | K6: 0.22 | L6: 0.20 | M6: 0.11 | N6: 0.14 | O6: 0.15 | P6: 0.08 | Q6: 0.06 | R6: 0.09 | S6: 0.11 | T6: 0.09 | U6: 0.11 | V6: 0.17 | W6: 0.09 | X6: 0.09
A7: Avusturya | B7: 0.18 | C7: 0.16 | D7: 0.15 | E7: 0.15 | F7: 0.13 | G7: 0.16 | H7: 0.22 | I7: 0.29 | J7: 0.40 | K7: 0.59 | L7: 0.61 | M7: 0.18 | N7: 0.28 | O7: 0.32 | P7: 0.20 | Q7: 0.26 | R7: 0.27 | S7: 0.22 | T7: 0.25 | U7: 0.26 | V7: 0.36 | W7: 0.26 | X7: 0.27
A8: Brezilya | B8: 0.29 | C8: 0.19 | D8: 0.38 | E8: 0.35 | F8: 0.33 | G8: 0.24 | H8: 0.41 | I8: 0.49 | J8: 0.53 | K8: 0.64 | L8: 0.98 | M8: 0.35 | N8: 0.80 | O8: 0.70 | P8: 0.47 | Q8: 0.50 | R8: 0.41 | S8: 0.34 | T8: 0.28 | U8: 0.43 | V8: 0.46 | W8: 0.49 | X8: 0.42
A9: Çin | B9: - | C9: - | D9: - | E9: - | F9: - | G9: 0.31 | H9: 0.31 | I9: 0.23 | J9: 0.17 | K9: 0.41 | L9: 1.25 | M9: 0.39 | N9: 0.70 | O9: 0.66 | P9: 0.45 | Q9: 0.43 | R9: 0.41 | S9: 0.57 | T9: 0.73 | U9: 0.65 | V9: 0.72 | W9: 0.47 | X9: 0.59
A10: Danimarka | B10: 0.54 | C10: 0.56 | D10: 0.59 | E10: 0.66 | F10: 0.52 | G10: 0.43 | H10: 0.54 | I10: - | J10: - | K10: - | L10: - | M10: - | N10: - | O10: - | P10: - | Q10: - | R10: - | S10: - | T10: - | U10: - | V10: - | W10: - | X10: -
A11: Endonezya | B11: 0.11 | C11: 0.19 | D11: 0.38 | E11: 0.15 | F11: 0.13 | G11: 0.14 | H11: 0.21 | I11: 0.26 | J11: 0.26 | K11: 0.35 | L11: 0.45 | M11: 0.18 | N11: 0.37 | O11: 0.48 | P11: 0.44 | Q11: 0.47 | R11: 0.38 | S11: 0.47 | T11: 0.41 | U11: 0.47 | V11: 0.51 | W11: 0.48 | X11: -
A12: Filipinler | B12: 0.34 | C12: 0.48 | D12: 0.50 | E12: 0.31 | F12: 0.27 | G12: 0.22 | H12: 0.28 | I12: 0.31 | J12: 0.39 | K12: 0.56 | L12: 0.69 | M12: 0.30 | N12: 0.51 | O12: 0.79 | P12: 0.74 | Q12: 0.92 | R12: 0.80 | S12: 0.92 | T12: 0.82 | U12: 0.79 | V12: 0.93 | W12: 0.78 | X12: 0.78
A13: Finlandiya | B13: 0.58 | C13: 1.15 | D13: 2.58 | E13: 2.33 | F13: 1.47 | G13: 0.99 | H13: 0.99 | I13: - | J13: - | K13: - | L13: - | M13: - | N13: - | O13: - | P13: - | Q13: - | R13: - | S13: - | T13: - | U13: - | V13: - | W13: - | X13: -
A14: Hindistan | B14: - | C14: - | D14: - | E14: - | F14: - | G14: 0.25 | H14: 0.45 | I14: 0.54 | J14: 0.66 | K14: 0.86 | L14: 1.47 | M14: 0.53 | N14: 0.96 | O14: 0.96 | P14: 0.55 | Q14: 0.69 | R14: 0.61 | S14: 0.76 | T14: 0.72 | U14: 0.68 | V14: 0.89 | W14: 0.77 | X14: 0.73
A15: İrlanda | B15: 0.60 | C15: 0.74 | D15: 0.70 | E15: 0.82 | F15: 0.69 | G15: 0.47 | H15: 0.52 | I15: 0.59 | J15: 0.54 | K15: 0.70 | L15: 0.53 | M15: 0.18 | N15: 0.26 | O15: 0.27 | P15: 0.46 | Q15: 0.48 | R15: 0.71 | S15: 0.55 | T15: 0.44 | U15: 0.40 | V15: 0.44 | W15: 0.30 | X15: -
A16: İspanya | B16: 0.49 | C16: 0.65 | D16: 0.68 | E16: 0.84 | F16: 0.75 | G16: 0.65 | H16: 0.80 | I16: 0.88 | J16: 0.83 | K16: 1.05 | L16: 1.20 | M16: 0.58 | N16: 0.86 | O16: 0.82 | P16: 0.69 | Q16: 0.74 | R16: 0.82 | S16: 0.72 | T16: 0.66 | U16: 0.57 | V16: 0.67 | W16: 0.51 | X16: 0.54
A17: İsrail | B17: 0.39 | C17: 0.34 | D17: 0.54 | E17: 0.49 | F17: 0.45 | G17: 0.34 | H17: 0.54 | I17: 0.67 | J17: 0.86 | K17: 1.05 | L17: 1.32 | M17: 0.62 | N17: 0.91 | O17: 0.97 | P17: 0.60 | Q17: 0.63 | R17: 0.69 | S17: 0.65 | T17: 0.81 | U17: 0.67 | V17: 0.65 | W17: 0.51 | X17: 0.54
A18: Japonya | B18: 0.49 | C18: 0.60 | D18: 0.98 | E18: 0.65 | F18: 0.53 | G18: 0.50 | H18: 0.66 | I18: 0.74 | J18: 0.96 | K18: 1.04 | L18: 0.99 | M18: 0.64 | N18: 0.65 | O18: 0.67 | P18: 0.54 | Q18: 0.56 | R18: 0.88 | S18: 0.90 | T18: 1.12 | U18: 1.03 | V18: 1.28 | W18: 1.07 | X18: 1.08
A19: Kanada | B19: 0.87 | C19: 0.86 | D19: 1.16 | E19: 1.03 | F19: 0.83 | G19: 0.75 | H19: 0.99 | I19: 1.15 | J19: 1.26 | K19: 1.29 | L19: 1.49 | M19: 0.67 | N19: 1.17 | O19: 1.34 | P19: 1.07 | Q19: 1.13 | R19: 1.14 | S19: 1.16 | T19: 1.02 | U19: 1.33 | V19: 1.43 | W19: 1.13 | X19: 1.27
A20: Kolombiya | B20: - | C20: - | D20: - | E20: - | F20: - | G20: - | H20: 0.15 | I20: 0.22 | J20: 0.35 | K20: 0.35 | L20: 0.50 | M20: 0.36 | N20: 0.60 | O20: 0.73 | P20: 0.60 | Q20: 0.71 | R20: 0.53 | S20: 0.38 | T20: 0.29 | U20: 0.37 | V20: 0.32 | W20: 0.31 | X20: 0.38
A21: Kore | B21: 0.08 | C21: 0.31 | D21: 0.63 | E21: 0.26 | F21: 0.36 | G21: 0.35 | H21: 0.44 | I21: 0.52 | J21: 0.80 | K21: 0.82 | L21: 1.00 | M21: 0.47 | N21: 0.93 | O21: 1.00 | P21: 0.83 | Q21: 0.96 | R21: 0.95 | S21: 0.86 | T21: 0.89 | U21: 0.91 | V21: 1.16 | W21: 0.87 | X21: 0.89
A22: Lüksemburg | B22: 1.83 | C22: 1.96 | D22: 1.70 | E22: 1.60 | F22: 1.12 | G22: 1.04 | H22: 1.26 | I22: 1.44 | J22: 1.37 | K22: 1.87 | L22: 3.26 | M22: 1.19 | N22: 2.04 | O22: 1.90 | P22: 1.13 | Q22: 1.24 | R22: 1.27 | S22: 0.95 | T22: 0.82 | U22: 1.04 | V22: 1.10 | W22: 0.72 | X22: 0.71
A23: Macaristan | B23: - | C23: - | D23: - | E23: 0.25 | F23: 0.19 | G23: 0.19 | H23: 0.22 | I23: 0.27 | J23: 0.29 | K23: 0.36 | L23: 0.33 | M23: 0.12 | N23: 0.23 | O23: 0.21 | P23: 0.13 | Q23: 0.16 | R23: 0.15 | S23: 0.10 | T23: 0.14 | U23: 0.14 | V23: 0.23 | W23: 0.19 | X23: 0.18
A24: Malezya | B24: 0.87 | C24: 1.23 | D24: 1.65 | E24: 1.12 | F24: 1.19 | G24: 1.13 | H24: 1.36 | I24: 1.36 | J24: 1.22 | K24: 1.40 | L24: 1.63 | M24: 0.79 | N24: 1.38 | O24: 1.60 | P24: 1.33 | Q24: 1.48 | R24: 1.55 | S24: 1.36 | T24: 1.29 | U24: 1.22 | V24: 1.45 | W24: 1.12 | X24: 1.10
A25: Meksika | B25: 0.33 | C25: 0.17 | D25: 0.26 | E25: 0.18 | F25: 0.17 | G25: 0.13 | H25: 0.17 | I25: 0.22 | J25: 0.27 | K25: 0.36 | L25: 0.38 | M25: 0.21 | N25: 0.39 | O25: 0.43 | P25: 0.35 | Q25: 0.44 | R25: 0.41 | S25: 0.37 | T25: 0.34 | U25: 0.31 | V25: 0.39 | W25: 0.31 | X25: 0.32
A26: Mısır | B26: - | C26: - | D26: - | E26: - | F26: - | G26: - | H26: - | I26: 0.47 | J26: 0.84 | K26: 0.83 | L26: 1.02 | M26: 0.50 | N26: 0.46 | O26: 0.37 | P26: 0.20 | Q26: 0.21 | R26: 0.21 | S26: 0.23 | T26: 0.17 | U26: 0.10 | V26: 0.20 | W26: 0.17 | X26: 0.16
A27: Peru | B27: 0.27 | C27: 0.18 | D27: 0.24 | E27: 0.19 | F27: 0.19 | G27: 0.21 | H27: 0.24 | I27: 0.27 | J27: 0.32 | K27: 0.46 | L27: 0.68 | M27: 0.31 | N27: 0.59 | O27: 0.69 | P27: 0.48 | Q27: 0.53 | R27: 0.40 | S27: 0.39 | T27: 0.30 | U27: 0.41 | V27: 0.46 | W27: 0.41 | X27: 0.44
A28: Polonya | B28: 0.08 | C28: 0.12 | D28: 0.18 | E28: 0.18 | F28: 0.14 | G28: 0.15 | H28: 0.17 | I28: 0.28 | J28: 0.31 | K28: 0.44 | L28: 0.49 | M28: 0.17 | N28: 0.34 | O28: 0.40 | P28: 0.26 | Q28: 0.35 | R28: 0.39 | S28: 0.31 | T28: 0.29 | U28: 0.30 | V28: 0.38 | W28: 0.27 | X28: 0.27
A29: Rusya | B29: - | C29: - | D29: - | E29: - | F29: - | G29: - | H29: - | I29: - | J29: - | K29: - | L29: - | M29: - | N29: - | O29: - | P29: - | Q29: 0.37 | R29: 0.34 | S29: 0.19 | T29: 0.29 | U29: 0.50 | V29: 0.39 | W29: 0.35 | X29: 0.40
A30: Sri Lanka | B30: 0.12 | C30: 0.09 | D30: 0.09 | E30: 0.06 | F30: 0.07 | G30: 0.09 | H30: 0.13 | I30: 0.15 | J30: 0.20 | K30: 0.24 | L30: 0.20 | M30: 0.09 | N30: 0.20 | O30: 0.35 | P30: 0.30 | Q30: 0.25 | R30: 0.25 | S30: 0.30 | T30: 0.26 | U30: 0.23 | V30: 0.22 | W30: 0.18 | X30: 0.18
A31: Şili | B31: 0.85 | C31: 0.64 | D31: 0.91 | E31: 0.78 | F31: 0.79 | G31: 0.71 | H31: 1.16 | I31: 1.18 | J31: 1.11 | K31: 1.13 | L31: 1.23 | M31: 0.73 | N31: 1.34 | O31: 1.57 | P31: 1.07 | Q31: 1.17 | R31: 0.95 | S31: 0.90 | T31: 0.78 | U31: 0.85 | V31: 1.06 | W31: 0.84 | X31: 0.88
A32: Tayland | B32: 0.15 | C32: 0.30 | D32: 0.45 | E32: 0.23 | F32: 0.30 | G32: 0.34 | H32: 0.78 | I32: 0.67 | J32: 0.65 | K32: 0.63 | L32: 0.75 | M32: 0.35 | N32: 0.63 | O32: 0.81 | P32: 0.72 | Q32: 0.98 | R32: 0.84 | S32: 1.06 | T32: 0.87 | U32: 1.06 | V32: 1.21 | W32: 1.03 | X32: 1.04
A33: TÜRKİYE | B33: 0.23 | C33: 0.12 | D33: 0.44 | E33: 0.26 | F33: 0.24 | G33: 0.14 | H33: 0.22 | I33: 0.24 | J33: 0.32 | K33: 0.29 | L33: 0.42 | M33: 0.15 | N33: 0.36 | O33: 0.40 | P33: 0.24 | Q33: 0.36 | R33: 0.21 | S33: 0.24 | T33: 0.22 | U33: 0.18 | V33: 0.27 | W33: 0.19 | X33: 0.20
A34: Yunanistan | B34: 0.24 | C34: 0.55 | D34: 1.32 | E34: 0.81 | F34: 0.61 | G34: 0.43 | H34: 0.51 | I34: 0.51 | J34: 0.58 | K34: 0.76 | L34: 0.83 | M34: 0.26 | N34: 0.34 | O34: 0.23 | P34: 0.12 | Q34: 0.18 | R34: 0.29 | S34: 0.23 | T34: 0.21 | U34: 0.19 | V34: 0.25 | W34: 0.18 | X34: 0.20
A35: Kaynak: IMF. WFE
A36: * Gölgeli hücrelerdeki GSYH rakamları IMF tahminidir.
A37: Güncelleme tarihi: 13.05.2019
A38: İÇİNDEKİLER SAYFASI

Sheet I.4
A1: I.4. TOPLAM İŞLEM HACMİ (milyon dolar)
A3: Ülkeler | B3: 1996 | C3: 1997 | D3: 1998 | E3: 1999 | F3: 2000 | G3: 2001 | H3: 2002 | I3: 2003 | J3: 2004 | K3: 2005 | L3: 2006 | M3: 2007 | N3: 2008 | O3: 2009 | P3: 2010 | Q3: 2011 | R3: 2012 | S3: 2013 | T3: 2014 | U3: 2015 | V3: 2016 | W3: 2017 | X3: 2018 | Y3: 2019/01-03
A4: Almanya | B4: 811,626.0 | C4: 1,067,688.3 | D4: 1,491,796 | E4: 1,551,467 | F4: 2,119,785 | G4: 1,423,371 | H4: 1,212,302 | I4: 1,299,327 | J4: 1,541,123 | K4: 1,915,305 | L4: 2,737,195 | M4: 4,324,928 | N4: 4,678,829 | O4: 2,240,331 | P4: 1,628,496 | Q4: 1,758,185 | R4: 1,275,949 | S4: 1,334,545 | T4: 1,469,729 | U4: 1,555,549 | V4: 1,306,428 | W4: 1,481,703 | X4: 1,818,479 | Y4: 377,710
A5: ABD | B5: 7,456,760.8 | C5: 10,402,513.7 | D5: 13,124,824 | E5: 19,890,396 | F5: 31,804,236 | G5: 22,240,645 | H5: 18,206,831 | I5: 17,322,982 | J5: 20,975,924 | K5: 24,820,123 | L5: 34,198,150 | M5: 57,900,406 | N5: 70,647,088 | O5: 46,735,935 | P5: 30,454,798 | Q5: 30,750,596 | R5: 23,226,926 | S5: 23,285,193 | T5: 28,104,938 | U5: 29,992,641 | V5: 28,388,867 | W5: 25,871,633 | X5: 36,130,732 | Y5: 8,195,498
A6: Arjantin | B6: 31,325.7 | C6: 38,424.0 | D6: 26,056 | E6: 11,875 | F6: 9,701 | G6: 7,564 | H6: 1,277 | I6: 3,078 | J6: 4,832 | K6: 6,853 | L6: 5,277 | M6: 7,381 | N6: 6,617 | O6: 2,983 | P6: 3,805 | Q6: 3,284 | R6: 2,191 | S6: 3,342 | T6: 4,803 | U6: 5,091 | V6: 4,624 | W6: 7,402 | X6: 7,195 | Y6: 1,167
A7: Avusturya | B7: 10,692.4 | C7: 12,723.8 | D7: 18,677 | E7: 12,734 | F7: 9,642 | G7: 7,693 | H7: 6,109 | I7: 11,135 | J7: 24,159 | K7: 46,468 | L7: 82,049 | M7: 129,974 | N7: 104,688 | O7: 51,327 | P7: 48,626 | Q7: 42,356 | R7: 23,405 | S7: 25,843 | T7: 31,592 | U7: 32,197 | V7: 30,867 | W7: 37,906 | X7: 41,626 | Y7: 6,457
A8: Brezilya | B8: 97,510.4 | C8: 190,657.5 | D8: 139,583 | E8: 83,772 | F8: 101,537 | G8: 63,475 | H8: 46,300 | I8: 66,428 | J8: 103,990 | K8: 165,276 | L8: 276,150 | M8: 597,995 | N8: 724,199 | O8: 644,732 | P8: 868,813 | Q8: 930,698 | R8: 875,418 | S8: 810,596 | T8: 728,403 | U8: 498,336 | V8: 535,163 | W8: 663,882 | X8: 816,898 | Y8: 264,334
A9: Çin | B9: - | C9: - | D9: - | E9: - | F9: - | G9: 493,731 | H9: 352,305 | I9: 396,252 | J9: 517,286 | K9: 392,772 | L9: 1,158,997 | M9: 6,074,604 | N9: 3,848,930 | O9: 7,836,305 | P9: 8,068,723 | Q9: 6,496,032 | R9: 4,967,885 | S9: 7,589,638 | T9: 12,026,132 | U9: 40,954,093 | V9: 19,098,233 | W9: 16,675,379 | X9: 13,678,599 | Y9: 5,063,156
A10: Danimarka | B10: 36,439.6 | C10: 46,731.5 | D10: 64,954 | E10: 66,605 | F10: 102,636 | G10: 70,772 | H10: 53,262 | I10: 67,959 | J10: - | K10: - | L10: - | M10: - | N10: - | O10: - | P10: - | Q10: - | R10: - | S10: - | T10: - | U10: - | V10: - | W10: - | X10: - | Y10: -
A11: Endonezya | B11: 32,452.3 | C11: 42,604.9 | D11: 10,637 | E11: 17,241 | F11: 15,109 | G11: 9,410 | H11: 13,050 | I11: 14,652 | J11: 27,518 | K11: 41,633 | L11: 48,810 | M11: 114,631 | N11: 109,432 | O11: 96,714 | P11: 103,842 | Q11: 109,421 | R11: 94,586 | S11: 115,972 | T11: 87,867 | U11: 77,674 | V11: 92,162 | W11: 93,653 | X11: 106,439 | Y11: 21,857
A12: Filipinler | B12: 25,510.4 | C12: 20,350.0 | D12: 10,148 | E12: 19,950 | F12: 8,187 | G12: 3,129 | H12: 3,093 | I12: 2,673 | J12: 3,681 | K12: 6,982 | L12: 11,214 | M12: 29,172 | N12: 17,090 | O12: 20,849 | P12: 21,778 | Q12: 27,765 | R12: 34,783 | S12: 46,670 | T12: 39,068 | U12: 39,683 | V12: 37,425 | W12: 33,494 | X12: 29,187 | Y12: 8,010
A13: Finlandiya | B13: 21,961.2 | C13: 36,251.9 | D13: 61,117 | E13: 109,902 | F13: 208,326 | G13: 180,927 | H13: 178,202 | I13: 165,622 | J13: - | K13: - | L13: - | M13: - | N13: - | O13: - | P13: - | Q13: - | R13: - | S13: - | T13: - | U13: - | V13: - | W13: - | X13: - | Y13: -
A14: Hindistan | B14: - | C14: - | D14: - | E14: - | F14: - | G14: 247,883 | H14: 197,073 | I14: 291,975 | J14: 378,657 | K14: 473,671 | L14: 638,051 | M14: 1,095,109 | N14: 1,027,047 | O14: 1,056,885 | P14: 1,059,713 | Q14: 730,122 | R14: 636,509 | S14: 563,507 | T14: 756,170 | U14: 797,400 | V14: 798,643 | W14: 1,166,283 | X14: 1,282,579 | Y14: 307,478
A15: İrlanda | B15: 11,794.4 | C15: 17,300.9 | D15: 39,865 | E15: 47,611 | F15: 14,381 | G15: 22,789 | H15: 33,270 | I15: 44,074 | J15: 45,144 | K15: 67,423 | L15: 81,669 | M15: 136,936 | N15: 81,916 | O15: 37,336 | P15: 8,894 | Q15: 8,956 | R15: 9,262 | S15: 14,471 | T15: 18,147 | U15: 21,219 | V15: 26,000 | W15: 27,578 | X15: 33,156 | Y15: -
A16: İspanya | B16: - | C16: - | D16: - | E16: - | F16: 450,000 | G16: 500,000 | H16: 653,221 | I16: 933,060 | J16: 1,203,360 | K16: 1,566,107 | L16: 1,933,793 | M16: 2,969,519 | N16: 2,410,721 | O16: 1,610,210 | P16: 1,360,910 | Q16: 1,226,224 | R16: 851,828 | S16: 893,572 | T16: 1,098,457 | U16: 997,646 | V16: 684,032 | W16: 701,711 | X16: 649,890 | Y16: 116,905
A17: İsrail | B17: 8,100.1 | C17: 14,158.2 | D17: 15,079 | E17: 20,958 | F17: 28,539 | G17: 15,674 | H17: 12,676 | I17: 19,115 | J17: 33,067 | K17: 48,970 | L17: 65,476 | M17: 100,960 | N17: 110,136 | O17: 87,374 | P17: 102,694 | Q17: 82,043 | R17: 49,365 | S17: 53,703 | T17: 51,209 | U17: 56,443 | V17: 51,970 | W17: 66,970 | X17: 65,098 | Y17: 14,768
A18: Japonya | B18: 1,191,940.8 | C18: 1,118,044.9 | D18: 932,919 | E18: 1,891,669 | F18: 2,641,068 | G18: 1,834,418 | H18: 1,688,261 | I18: 2,221,254 | J18: 3,352,475 | K18: 4,679,558 | L18: 6,258,821 | M18: 6,765,972 | N18: 5,887,892 | O18: 4,158,347 | P18: 3,966,746 | Q18: 4,160,543 | R18: 3,605,593 | S18: 6,516,058 | T18: 5,443,887 | U18: 5,540,697 | V18: 5,618,264 | W18: 5,812,880 | X18: 6,296,851 | Y18: 1,296,509
A19: Kanada | B19: 221,215.9 | C19: 305,154.9 | D19: 331,848 | E19: 357,443 | F19: 636,533 | G19: 461,557 | H19: 408,165 | I19: 471,544 | J19: 651,059 | K19: 900,493 | L19: 1,281,799 | M19: 1,634,870 | N19: 1,716,228 | O19: 1,245,457 | P19: 1,368,954 | Q19: 1,542,174 | R19: 1,357,293 | S19: 1,371,478 | T19: 1,408,145 | U19: 1,184,829 | V19: 1,176,203 | W19: 1,244,344 | X19: 1,447,555 | Y19: 384,140
A20: Kolombiya | B20: - | C20: - | D20: - | E20: - | F20: - | G20: - | H20: - | I20: 806 | J20: 2,080 | K20: 9,419 | L20: 14,845 | M20: 16,775 | N20: 20,274 | O20: 19,169 | P20: 25,149 | Q20: 34,044 | R20: 39,433 | S20: 25,943 | T20: 24,490 | U20: 14,868 | V20: 13,967 | W20: 13,989 | X20: 15,056 | Y20: 3,768
A21: Kore | D21: - | E21: - | F21: - | G21: - | H21: - | I21: - | J21: - | K21: - | L21: - | M21: - | N21: - | O21: - | P21: - | Q21: - | R21: 1,517,897 | S21: 1,284,599 | T21: 1,350,370 | U21: 1,929,558 | V21: 1,672,918 | W21: 1,919,974 | X21: 2,520,791 | Y21: 488,000
A22: Lüksemburg | B22: 785.6 | C22: 1,048.1 | D22: 1,673 | E22: 1,421 | F22: 1,661 | G22: 703 | H22: 496 | I22: 414 | J22: 645 | K22: 330 | L22: 264 | M22: 242 | N22: 1,910 | O22: 296 | P22: 216 | Q22: 156 | R22: 132 | S22: 140 | T22: 141 | U22: 110 | V22: 82 | W22: 89 | X22: 97 | Y22: 12
A23: Macaristan | B23: - | C23: - | D23: - | E23: - | F23: 12,162 | G23: 4,815 | H23: 5,908 | I23: 8,270 | J23: 12,994 | K23: 24,151 | L23: 31,158 | M23: 47,586 | N23: 30,706 | O23: 25,972 | P23: 26,277 | Q23: 19,172 | R23: 10,883 | S23: 10,429 | T23: 7,971 | U23: 7,605 | V23: 8,130 | W23: 9,886 | X23: 10,239 | Y23: 2,518
A24: Malezya | B24: 178,011.4 | C24: 145,687.8 | D24: 26,840 | E24: 42,431 | F24: 52,869 | G24: 23,880 | H24: 32,923 | I24: 52,233 | J24: 61,636 | K24: 51,601 | L24: 75,205 | M24: 169,723 | N24: 93,784 | O24: 86,214 | P24: 112,292 | Q24: 135,949 | R24: 124,333 | S24: 147,873 | T24: 153,075 | U24: 124,113 | V24: 106,965 | W24: 130,401 | X24: 143,447 | Y24: 28,271
A25: Meksika | B25: 43,583.7 | C25: 54,961.9 | D25: 31,192 | E25: 35,172 | F25: 45,768 | G25: 38,469 | H25: 32,286 | I25: 25,868 | J25: 45,389 | K25: 56,683 | L25: 96,918 | M25: 143,945 | N25: 110,474 | O25: 84,909 | P25: 122,584 | Q25: 121,640 | R25: 126,139 | S25: 177,356 | T25: 156,574 | U25: 127,412 | V25: 122,989 | W25: 114,028 | X25: 111,970 | Y25: 24,603
A26: Mısır | B26: - | C26: - | D26: - | E26: - | F26: - | G26: - | H26: - | I26: - | J26: 6,513 | K26: 26,241 | L26: 48,084 | M26: 60,196 | N26: 93,476 | O26: 73,652 | P26: 38,397 | Q26: 16,133 | R26: 17,856 | S26: 12,920 | T26: 26,847 | U26: 15,209 | V26: 16,985 | W26: 14,426 | X26: 14,753 | Y26: 3,331
A27: NNE | B27: - | C27: - | D27: - | E27: - | F27: - | G27: - | H27: - | I27: - | J27: 793,241 | K27: 951,421 | L27: 1,332,369 | M27: 1,818,208 | N27: 1,338,181 | O27: 778,356 | P27: 750,279 | Q27: 828,308 | R27: 586,971 | S27: 625,832 | T27: 722,720 | U27: 754,640 | V27: 709,689 | W27: 801,475 | X27: 849,594 | Y27: 190,998
A28: Peru | B28: 3,830.1 | C28: 4,278.6 | D28: 3,050 | E28: 2,729 | F28: 2,518 | G28: 934 | H28: 1,187 | I28: 1,140 | J28: 1,560 | K28: 2,650 | L28: 5,486 | M28: 11,266 | N28: 6,329 | O28: 4,592 | P28: 5,012 | Q28: 6,228 | R28: 6,102 | S28: 4,051 | T28: 3,439 | U28: 1,887 | V28: 2,683 | W28: 6,355 | X28: 4,082 | Y28: 714
A29: Polonya | B29: 5,543.8 | C29: 7,952.9 | D29: 8,913 | E29: 11,139 | F29: 19,305 | G29: 9,876 | H29: 7,811 | I29: 9,663 | J29: 16,269 | K29: 30,422 | L29: 56,373 | M29: 87,962 | N29: 69,499 | O29: 58,374 | P29: 69,231 | Q29: 86,518 | R29: 58,364 | S29: 69,952 | T29: 65,274 | U29: 54,091 | V29: 48,188 | W29: 6,355 | X29: 57,038 | Y29: 13,657
A30: Rusya | D30: - | E30: - | F30: - | G30: - | H30: - | I30: - | J30: - | K30: - | L30: - | M30: - | N30: - | O30: - | P30: - | Q30: - | R30: 337,111 | S30: 242,002 | T30: 227,922 | U30: 140,904 | V30: 128,853 | W30: 144,361 | X30: 167,273 | Y30: 33,584
A31: Sri Lanka | B31: 130.2 | C31: 309.2 | D31: 282 | E31: 209 | F31: 143 | G31: 156 | H31: 319 | I31: 765 | J31: 575 | K31: 1,096 | L31: 1,010 | M31: 950 | N31: 1,016 | O31: 1,241 | P31: 5,009 | Q31: - | R31: 1,679 | S31: 1,555 | T31: 2,610 | U31: 1,889 | V31: 1,228 | W31: 1,458 | X31: 1,228 | Y31: 212
A32: Şili | B32: 8,488.3 | C32: 7,443.8 | D32: 4,412 | E32: 6,859 | F32: 6,083 | G32: 4,450 | H32: 3,011 | I32: 6,647 | J32: 12,123 | K32: 18,961 | L32: 29,620 | M32: 47,997 | N32: 36,196 | O32: 38,107 | P32: 53,818 | Q32: 55,260 | R32: 45,653 | S32: 43,980 | T32: 28,834 | U32: 21,350 | V32: 23,684 | W32: 36,331 | X32: 46,872 | Y32: 10,485
A33: Tayland | B33: 51,396.9 | C33: 24,598.7 | D33: 20,976 | E33: 37,246 | F33: 21,117 | G33: 30,811 | H33: 41,289 | I33: 102,421 | J33: 116,381 | K33: 95,646 | L33: 100,929 | M33: 117,893 | N33: 115,980 | O33: 127,141 | P33: 214,086 | Q33: 222,605 | R33: 235,168 | S33: 376,024 | T33: 314,190 | U33: 285,755 | V33: 330,367 | W33: 328,325 | X33: 389,324 | Y33: 77,521
A34: TÜRKİYE | B34: 36,232.8 | C34: 56,087.9 | D34: 68,485 | E34: 81,099 | F34: 178,998 | G34: 74,530 | H34: 69,937 | I34: 98,160 | J34: 146,605 | K34: 200,858 | L34: 222,724 | M34: 294,295 | N34: 247,893 | O34: 305,036 | P34: 411,469 | Q34: 393,910 | R34: 357,779 | S34: 419,362 | T34: 393,976 | U34: 374,449 | V34: 327,118 | W34: 391,157 | X34: 415,378 | Y34: 61,094
A35: Yunanistan | B35: 8,234.4 | C35: 21,136.6 | D35: 50,020 | E35: 189,280 | F35: 94,163 | G35: 37,812 | H35: 23,462 | I35: 39,672 | J35: 44,383 | K35: 65,131 | L35: 107,893 | M35: 168,318 | N35: 113,666 | O35: 71,829 | P35: 43,261 | Q35: 27,660 | R35: 15,950 | S35: 23,776 | T35: 36,905 | U35: 18,584 | V35: 14,222 | W35: 13,097 | X35: 12,802 | Y35: 2,627
A36: Kaynak: WFE
A37: Not 1: NNE (Nasdaq Nordic Exchange), Helsinki, İzlanda,Kopenhag, Riga, Stockholm, Tallinn ve Vilnius Borsalarından oluşmaktadır.
A38: Not 2: Ülkelerin rakamlarına WFE'de verilen o ülkeye ait olan borsa yada borsaların verileri toplanarak ulaşılmıştır.
A39: Not 3: ABD rakamı Nasdaq-US ve NYSE toplamından oluşmaktadır.
A40: Güncelleme tarihi: 09.05.2019
A42: İÇİNDEKİLER SAYFASI

Sheet I.5
A1: I.5. TOPLAM İŞLEM HACMİ/GSYH
A3: Ülkeler | B3: 1996 | C3: 1997 | D3: 1998 | E3: 1999 | F3: 2000 | G3: 2001 | H3: 2002 | I3: 2003 | J3: 2004 | K3: 2005 | L3: 2006 | M3: 2007 | N3: 2008 | O3: 2009 | P3: 2010 | Q3: 2011 | R3: 2012 | S3: 2013 | T3: 2014(*) | U3: 2015(*) | V3: 2016(*) | W3: 2017 (*) | X3: 2018 (*)
A4: Almanya | B4: 0.33 | C4: 0.48 | D4: 0.66 | E4: 0.70 | F4: 1.08 | G4: 0.73 | H4: 0.58 | I4: 0.52 | J4: 0.55 | K4: 0.67 | L4: 0.91 | M4: 1.26 | N4: 1.24 | O4: 0.65 | P4: 0.48 | Q4: 0.47 | R4: 0.36 | S4: 0.36 | T4: 0.38 | U4: 0.46 | V4: 0.37 | W4: 0.41 | X4: 0.45
A5: ABD | B5: 0.92 | C5: 1.21 | D5: 1.44 | E5: 2.06 | F5: 3.09 | G5: 2.09 | H5: 1.66 | I5: 1.50 | J5: 1.71 | K5: 1.90 | L5: 2.47 | M5: 4.00 | N5: 4.80 | O5: 3.24 | P5: 2.04 | Q5: 1.98 | R5: 1.44 | S5: 1.40 | T5: 1.62 | U5: 1.66 | V5: 1.53 | W5: 1.34 | X5: 1.76
A6: Arjantin | B6: 0.10 | C6: 0.12 | D6: 0.08 | E6: 0.04 | F6: 0.03 | G6: 0.03 | H6: 0.01 | I6: 0.02 | J6: 0.03 | K6: 0.03 | L6: 0.02 | M6: 0.03 | N6: 0.02 | O6: 0.01 | P6: 0.01 | Q6: 0.01 | R6: 0.00 | S6: 0.01 | T6: 0.01 | U6: 0.01 | V6: 0.01 | W6: 0.01 | X6: 0.02
A7: Avusturya | B7: 0.05 | C7: 0.06 | D7: 0.09 | E7: 0.06 | F7: 0.05 | G7: 0.04 | H7: 0.03 | I7: 0.04 | J7: 0.08 | K7: 0.15 | L7: 0.25 | M7: 0.34 | N7: 0.24 | O7: 0.13 | P7: 0.12 | Q7: 0.10 | R7: 0.06 | S7: 0.06 | T7: 0.07 | U7: 0.09 | V7: 0.08 | W7: 0.09 | X7: 0.09
A8: Brezilya | B8: 0.12 | C8: 0.22 | D8: 0.16 | E8: 0.14 | F8: 0.15 | G8: 0.11 | H8: 0.09 | I8: 0.12 | J8: 0.16 | K8: 0.19 | L8: 0.25 | M8: 0.43 | N8: 0.43 | O8: 0.39 | P8: 0.39 | Q8: 0.36 | R8: 0.36 | S8: 0.33 | T8: 0.30 | U8: 0.28 | V8: 0.30 | W8: 0.32 | X8: 0.43
A9: Çin | B9: - | C9: - | D9: - | E9: - | F9: - | G9: 0.37 | H9: 0.24 | I9: 0.24 | J9: 0.26 | K9: 0.17 | L9: 0.42 | M9: 1.70 | N9: 0.84 | O9: 1.53 | P9: 1.33 | Q9: 0.86 | R9: 0.58 | S9: 0.79 | T9: 1.14 | U9: 3.66 | V9: 1.68 | W9: 1.40 | X9: 1.02
A10: Danimarka | B10: 0.20 | C10: 0.27 | D10: 0.37 | E10: 0.37 | F10: 0.63 | G10: 0.43 | H10: 0.30 | I10: 0.31 | J10: - | K10: - | L10: - | M10: - | N10: - | O10: - | P10: - | Q10: - | R10: - | S10: - | T10: - | U10: - | V10: - | W10: - | X10: -
A11: Endonezya | B11: 0.14 | C11: 0.16 | D11: 0.09 | E11: 0.10 | F11: 0.08 | G11: 0.05 | H11: 0.06 | I11: 0.06 | J11: 0.10 | K11: 0.13 | L11: 0.12 | M11: 0.24 | N11: 0.20 | O11: 0.17 | P11: 0.14 | Q11: 0.12 | R11: 0.10 | S11: 0.13 | T11: 0.10 | U11: 0.09 | V11: 0.10 | W11: 0.09 | X11: 0.11
A12: Filipinler | B12: 0.28 | C12: 0.22 | D12: 0.14 | E12: 0.24 | F12: 0.10 | G12: 0.04 | H12: 0.04 | I12: 0.03 | J12: 0.04 | K12: 0.07 | L12: 0.09 | M12: 0.20 | N12: 0.10 | O12: 0.12 | P12: 0.11 | Q12: 0.12 | R12: 0.14 | S12: 0.17 | T12: 0.14 | U12: 0.14 | V12: 0.12 | W12: 0.10 | X12: 0.09
A13: Finlandiya | B13: 0.16 | C13: 0.29 | D13: 0.46 | E13: 0.81 | F13: 1.65 | G13: 1.40 | H13: 1.27 | I13: 0.97 | J13: - | K13: - | L13: - | M13: - | N13: - | O13: - | P13: - | Q13: - | R13: - | S13: - | T13: - | U13: - | V13: - | W13: - | X13: -
A14: Hindistan | B14: - | C14: - | D14: - | E14: - | F14: - | G14: 0.50 | H14: 0.38 | I14: 0.47 | J14: 0.52 | K14: 0.57 | L14: 0.67 | M14: 0.88 | N14: 0.84 | O14: 0.77 | P14: 0.62 | Q14: 0.40 | R14: 0.35 | S14: 0.30 | T14: 0.37 | U14: 0.38 | V14: 0.35 | W14: 0.48 | X14: 0.48
A15: İrlanda | B15: 0.16 | C15: 0.21 | D15: 0.44 | E15: 0.48 | F15: 0.14 | G15: 0.21 | H15: 0.26 | I15: 0.27 | J15: 0.23 | K15: 0.32 | L15: 0.35 | M15: 0.51 | N15: 0.30 | O15: 0.16 | P15: 0.04 | Q15: 0.04 | R15: 0.04 | S15: 0.06 | T15: 0.07 | U15: 0.07 | V15: 0.08 | W15: 0.08 | X15: 0.09
A16: İspanya | B16: - | C16: - | D16: - | E16: - | F16: 0.75 | G16: 0.80 | H16: 0.92 | I16: 1.03 | J16: 1.12 | K16: 1.35 | L16: 1.53 | M16: 2.00 | N16: 1.47 | O16: 1.07 | P16: 0.95 | Q16: 0.82 | R16: 0.64 | S16: 0.65 | T16: 0.79 | U16: 0.83 | V16: 0.55 | W16: 0.54 | X16: 0.45
A17: İsrail | B17: 0.07 | C17: 0.12 | D17: 0.13 | E17: 0.18 | F17: 0.22 | G17: 0.12 | H17: 0.10 | I17: 0.15 | J17: 0.24 | K17: 0.34 | L17: 0.43 | M17: 0.56 | N17: 0.51 | O17: 0.42 | P17: 0.44 | Q17: 0.31 | R17: 0.19 | S17: 0.18 | T17: 0.17 | U17: 0.19 | V17: 0.17 | W17: 0.19 | X17: 0.18
A18: Japonya | B18: 0.25 | C18: 0.26 | D18: 0.24 | E18: 0.43 | F18: 0.56 | G18: 0.44 | H18: 0.42 | I18: 0.52 | J18: 0.72 | K18: 1.02 | L18: 1.44 | M18: 1.55 | N18: 1.21 | O18: 0.83 | P18: 0.72 | Q18: 0.70 | R18: 0.61 | S18: 1.33 | T18: 1.18 | U18: 1.34 | V18: 1.19 | W18: 1.19 | X18: 1.24
A19: Kanada | B19: 0.35 | C19: 0.47 | D19: 0.53 | E19: 0.53 | F19: 0.86 | G19: 0.63 | H19: 0.54 | I19: 0.53 | J19: 0.64 | K19: 0.77 | L19: 0.97 | M19: 1.12 | N19: 1.11 | O19: 0.91 | P19: 0.85 | Q19: 0.86 | R19: 0.74 | S19: 0.75 | T19: 0.79 | U19: 0.76 | V19: 0.77 | W19: 0.76 | X19: 0.83
A20: Kolombiya | B20: - | C20: - | D20: - | E20: - | F20: - | G20: - | H20: - | I20: 0.01 | J20: 0.02 | K20: 0.06 | L20: 0.09 | M20: 0.08 | N20: 0.08 | O20: 0.08 | P20: 0.09 | Q20: 0.10 | R20: 0.11 | S20: 0.07 | T20: 0.06 | U20: 0.05 | V20: 0.05 | W20: 0.05 | X20: 0.04
A21: Kore | B21: 0.00 | C21: 0.00 | D21: - | E21: - | F21: - | G21: - | H21: - | I21: - | J21: - | K21: - | L21: - | M21: - | N21: - | O21: - | P21: - | Q21: - | R21: 1.24 | S21: 0.98 | T21: 0.96 | U21: 1.40 | V21: 1.19 | W21: 1.26 | X21: 1.52
A22: Lüksemburg | B22: 0.04 | C22: 0.06 | D22: 0.09 | E22: 0.07 | F22: 0.08 | G22: 0.03 | H22: 0.02 | I22: 0.01 | J22: 0.02 | K22: 0.01 | L22: 0.01 | M22: 0.00 | N22: 0.03 | O22: 0.01 | P22: 0.00 | Q22: 0.00 | R22: 0.00 | S22: 0.00 | T22: 0.00 | U22: 0.00 | V22: 0.00 | W22: 0.00 | X22: 0.00
A23: Macaristan | B23: - | C23: - | D23: - | E23: - | F23: 0.26 | G23: 0.09 | H23: 0.09 | I23: 0.10 | J23: 0.13 | K23: 0.21 | L23: 0.27 | M23: 0.34 | N23: 0.20 | O23: 0.20 | P23: 0.20 | Q23: 0.14 | R23: 0.09 | S23: 0.08 | T23: 0.06 | U23: 0.06 | V23: 0.07 | W23: 0.07 | X23: 0.07
A24: Malezya | B24: 1.77 | C24: 1.35 | D24: 0.35 | E24: 0.50 | F24: 0.52 | G24: 0.24 | H24: 0.30 | I24: 0.44 | J24: 0.46 | K24: 0.35 | L24: 0.45 | M24: 0.85 | N24: 0.39 | O24: 0.41 | P24: 0.44 | Q24: 0.46 | R24: 0.40 | S24: 0.46 | T24: 0.45 | U24: 0.42 | V24: 0.35 | W24: 0.42 | X24: 0.41
A25: Meksika | B25: 0.11 | C25: 0.11 | D25: 0.06 | E25: 0.06 | F25: 0.07 | G25: 0.05 | H25: 0.04 | I25: 0.04 | J25: 0.06 | K25: 0.07 | L25: 0.10 | M25: 0.14 | N25: 0.10 | O25: 0.09 | P25: 0.12 | Q25: 0.10 | R25: 0.11 | S25: 0.14 | T25: 0.12 | U25: 0.11 | V25: 0.12 | W25: 0.10 | X25: 0.09
A26: Mısır | B26: - | C26: - | D26: - | E26: - | F26: - | G26: - | H26: - | I26: - | J26: 0.08 | K26: 0.28 | L26: 0.43 | M26: 0.44 | N26: 0.55 | O26: 0.37 | P26: 0.17 | Q26: 0.07 | R26: 0.06 | S26: 0.05 | T26: 0.09 | U26: 0.05 | V26: - | W26: - | X26: 0.06
A27: Peru | B27: 0.07 | C27: 0.08 | D27: 0.06 | E27: 0.06 | F27: 0.05 | G27: 0.02 | H27: 0.02 | I27: 0.02 | J27: 0.02 | K27: 0.04 | L27: 0.06 | M27: 0.11 | N27: 0.05 | O27: 0.04 | P27: 0.03 | Q27: 0.04 | R27: 0.03 | S27: 0.02 | T27: 0.02 | U27: 0.01 | V27: 0.01 | W27: 0.03 | X27: 0.02
A28: Polonya | B28: 0.04 | C28: 0.05 | D28: 0.05 | E28: 0.07 | F28: 0.11 | G28: 0.05 | H28: 0.04 | I28: 0.04 | J28: 0.06 | K28: 0.10 | L28: 0.16 | M28: 0.20 | N28: 0.13 | O28: 0.13 | P28: 0.14 | Q28: 0.16 | R28: 0.12 | S28: - | T28: - | U28: - | V28: - | W28: 0.01 | X28: 0.10
A29: Rusya | B29: 0.00 | C29: 0.00 | D29: - | E29: - | F29: - | G29: - | H29: - | I29: - | J29: - | K29: - | L29: - | M29: - | N29: - | O29: - | P29: - | Q29: - | R29: 0.16 | S29: 0.11 | T29: 0.11 | U29: 0.11 | V29: 0.10 | W29: 0.10 | X29: 0.11
A30: Sri Lanka | B30: 0.01 | C30: 0.02 | D30: 0.02 | E30: 0.01 | F30: 0.01 | G30: 0.01 | H30: 0.02 | I30: 0.04 | J30: 0.03 | K30: 0.04 | L30: 0.04 | M30: 0.03 | N30: 0.02 | O30: 0.03 | P30: 0.10 | Q30: - | R30: 0.03 | S30: 0.02 | T30: 0.03 | U30: 0.02 | V30: 0.01 | W30: 0.02 | X30: 0.01
A31: Şili | B31: 0.11 | C31: 0.09 | D31: 0.05 | E31: 0.09 | F31: 0.08 | G31: 0.06 | H31: 0.04 | I31: 0.09 | J31: 0.12 | K31: 0.15 | L31: 0.19 | M31: 0.28 | N31: 0.20 | O31: 0.22 | P31: 0.25 | Q31: 0.22 | R31: 0.17 | S31: 0.16 | T31: 0.11 | U31: 0.09 | V31: 0.10 | W31: 0.14 | X31: 0.16
A32: Tayland | B32: 0.28 | C32: 0.16 | D32: 0.18 | E32: 0.29 | F32: 0.17 | G32: 0.26 | H32: 0.31 | I32: 0.67 | J32: 0.67 | K32: 0.51 | L32: 0.46 | M32: 0.45 | N32: 0.40 | O32: 0.45 | P32: 0.63 | Q32: 0.60 | R32: 0.59 | S32: 0.90 | T32: 0.78 | U32: 0.72 | V32: 0.85 | W32: 0.75 | X32: 0.79
A33: TÜRKİYE | B33: 0.15 | C33: 0.22 | D33: 0.25 | E33: 0.32 | F33: 0.67 | G33: 0.38 | H33: 0.30 | I33: 0.32 | J33: 0.37 | K33: 0.42 | L33: 0.42 | M33: 0.46 | N33: 0.34 | O33: 0.50 | P33: 0.56 | Q33: 0.51 | R33: 0.45 | S33: 0.51 | T33: 0.49 | U33: 0.52 | V33: 0.44 | W33: 0.46 | X33: 0.58
A34: Yunanistan | B34: 0.06 | C34: 0.15 | D34: 0.35 | E34: 1.27 | F34: 0.71 | G34: 0.28 | H34: 0.15 | I34: 0.20 | J34: 0.18 | K34: 0.26 | L34: 0.39 | M34: 0.53 | N34: 0.32 | O34: 0.22 | P34: 0.14 | Q34: 0.10 | R34: 0.06 | S34: 0.10 | T34: 0.16 | U34: 0.10 | V34: 0.07 | W34: 0.06 | X34: 0.06
A35: Kaynak: IMF, WFE
A36: * Gölgeli hücrelerdeki GSYH rakamları IMF tahminidir.
A37: Güncelleme tarihi: 05.02.2019
A39: İÇİNDEKİLER SAYFASI

Sheet I.6
A1: I.6. BORSALARDA İŞLEM GÖREN ŞİRKET SAYILARI (yerli ve yabancı toplamı)
A3: Ülkeler | B3: 1996 | C3: 1997 | D3: 1998 | E3: 1999 | F3: 2000 | G3: 2001 | H3: 2002 | I3: 2003 | J3: 2004 | K3: 2005 | L3: 2006 | M3: 2007 | N3: 2008 | O3: 2009 | P3: 2010 | Q3: 2011 | R3: 2012 | S3: 2013 | T3: 2014 | U3: 2015 | V3: 2016 | W3: 2017 | X3: 2018 | Y3: 2019/03
A4: Almanya | B4: - | C4: - | D4: 662 | E4: 851 | F4: 983 | G4: 983 | H4: 934 | I4: 866 | J4: 819 | K4: 764 | L4: 760 | M4: 866 | N4: 832 | O4: 783 | P4: 765 | Q4: 746 | R4: 747 | S4: 720 | T4: 670 | U4: 619 | V4: 592 | W4: 499 | X4: 514 | Y4: 516
A5: ABD | B5: 8,783 | C5: 8,823 | D5: 8,449 | E5: 8,504 | F5: 7,851 | G5: 7,069 | H5: 6,586 | I5: 6,159 | J5: 6,097 | K5: 6,029 | L5: 6,005 | M5: 5,941 | N5: 5,472 | O5: 5,179 | P5: 5,095 | Q5: 4,988 | R5: 4,916 | S5: 5,008 | T5: 5,248 | U5: 5,283 | V5: 5,204 | W5: 5,235 | X5: 5,343 | Y5: 5,357
A6: Arjantin | B6: 147 | C6: 136 | D6: 131 | E6: 125 | F6: 125 | G6: 119 | H6: 114 | I6: 110 | J6: 107 | K6: 104 | L6: 106 | M6: 111 | N6: 112 | O6: 106 | P6: 106 | Q6: 105 | R6: 107 | S6: 103 | T6: 101 | U6: 99 | V6: 99 | W6: 102 | X6: 99 | Y6: 97
A7: Avusturya | B7: 142 | C7: 138 | D7: 128 | E7: 114 | F7: 111 | G7: 111 | H7: 129 | I7: 125 | J7: 120 | K7: 111 | L7: 113 | M7: 119 | N7: 118 | O7: 115 | P7: 110 | Q7: 105 | R7: 99 | S7: 102 | T7: 99 | U7: 92 | V7: 83 | W7: 536 | X7: 677 | Y7: 680
A8: Brezilya | B8: 551 | C8: 545 | D8: 535 | E8: 487 | F8: 467 | G8: 441 | H8: 412 | I8: 391 | J8: 388 | K8: 381 | L8: 350 | M8: 404 | N8: 392 | O8: 386 | P8: 373 | Q8: 373 | R8: 364 | S8: 363 | T8: 366 | U8: 359 | V8: 349 | W8: 343 | X8: 339 | Y8: 336
A9: Çin | B9: - | C9: - | D9: - | E9: - | F9: - | G9: 1,154 | H9: 1,223 | I9: 1,285 | J9: 1,373 | K9: 1,377 | L9: 1,421 | M9: 1,530 | N9: 1,604 | O9: 1,700 | P9: 2,063 | Q9: 2,342 | R9: 2,494 | S9: 2,489 | T9: 2,613 | U9: 2,926 | V9: 3,052 | W9: 3,485 | X9: 3,584 | Y9: 3,617
A10: Danimarka | B10: 249 | C10: 249 | D10: 254 | E10: 242 | F10: 235 | G10: 217 | H10: 201 | I10: 194 | J10: 183 | K10: - | L10: - | M10: - | N10: - | O10: - | P10: - | Q10: - | R10: - | S10: - | T10: - | U10: - | V10: - | W10: - | X10: - | Y10: -
A11: Endonezya | B11: 252 | C11: 281 | D11: 287 | E11: 276 | F11: 286 | G11: 315 | H11: 331 | I11: 333 | J11: 331 | K11: 336 | L11: 344 | M11: 383 | N11: 396 | O11: 398 | P11: 420 | Q11: 440 | R11: 459 | S11: 483 | T11: - | U11: 521 | V11: 537 | W11: 566 | X11: - | Y11: -
A12: Filipinler | B12: 216 | C12: 221 | D12: 222 | E12: 226 | F12: 230 | G12: 232 | H12: 234 | I12: 236 | J12: 235 | K12: 237 | L12: 239 | M12: 244 | N12: 246 | O12: 248 | P12: 253 | Q12: 253 | R12: 254 | S12: 257 | T12: - | U12: 265 | V12: 265 | W12: 267 | X12: 267 | Y12: 267
A13: Finlandiya | B13: 71 | C13: 126 | D13: 131 | E13: 150 | F13: 158 | G13: 155 | H13: 149 | I13: 145 | J13: 137 | K13: - | L13: - | M13: - | N13: - | O13: - | P13: - | Q13: - | R13: - | S13: - | T13: - | U13: - | V13: - | W13: - | X13: - | Y13: -
A14: Hindistan* | B14: - | C14: - | D14: - | E14: - | F14: - | G14: 1,041 | H14: 916 | I14: 911 | J14: 5,687 | K14: 5,797 | L14: 5,952 | M14: 6,217 | N14: 6,327 | O14: 6,408 | P14: 6,586 | Q14: 6,752 | R14: 6,856 | S14: 6,932 | T14: 5,542 | U14: 7,630 | V14: 7,661 | W14: 5,775 | X14: 6,989 | Y14: 7,052
A15: İrlanda | B15: 86 | C15: 102 | D15: 100 | E15: 101 | F15: 96 | G15: 87 | H15: 76 | I15: 66 | J15: 65 | K15: 66 | L15: 70 | M15: 73 | N15: 68 | O15: 64 | P15: 59 | Q15: 55 | R15: 50 | S15: 50 | T15: 52 | U15: 53 | V15: 51 | W15: 52 | X15: 54 | Y15: -
A16: İspanya | B16: - | C16: - | D16: - | E16: - | F16: - | G16: - | H16: - | I16: - | J16: - | K16: - | L16: 3,378 | M16: 3,537 | N16: 3,576 | O16: 3,472 | P16: 3,345 | Q16: 3,276 | R16: 3,200 | S16: 3,245 | T16: 3,452 | U16: 3,651 | V16: 3,506 | W16: 3,136 | X16: 3,006 | Y16: 2,981
A17: İsrail | B17: 655 | C17: 659 | D17: 662 | E17: 654 | F17: 665 | G17: 649 | H17: 624 | I17: 577 | J17: 578 | K17: 584 | L17: 606 | M17: 657 | N17: 642 | O17: 622 | P17: 613 | Q17: 593 | R17: 549 | S17: 508 | T17: 473 | U17: 461 | V17: 491 | W17: 457 | X17: 448 | Y17: 447
A18: Japonya | B18: 3,089 | C18: 3,140 | D18: 3,162 | E18: 3,216 | F18: 3,406 | G18: 3,476 | H18: 3,465 | I18: 3,346 | J18: 3,396 | K18: 2,796 | L18: 3,854 | M18: 3,870 | N18: 3,786 | O18: 3,656 | P18: 3,565 | Q18: 3,520 | R18: 3,481 | S18: 3,419 | T18: 3,470 | U18: 3,513 | V18: 3,541 | W18: 3,604 | X18: 3,657 | Y18: 3,665
A19: Kanada | B19: 1,323 | C19: 1,420 | D19: 1,433 | E19: 1,456 | F19: 1,394 | G19: 1,299 | H19: 3,791 | I19: 3,599 | J19: 3,604 | K19: 3,758 | L19: 3,842 | M19: 3,951 | N19: 3,841 | O19: 3,700 | P19: 3,741 | Q19: 3,945 | R19: 3,972 | S19: 3,886 | T19: 3,761 | U19: 3,559 | V19: 3,419 | W19: 3,328 | X19: 3,383 | Y19: 3,399
A20: Kolombiya | B20: - | C20: - | D20: - | E20: - | F20: - | G20: - | H20: - | I20: 108 | J20: 106 | K20: 98 | L20: 94 | M20: 90 | N20: 89 | O20: 87 | P20: 86 | Q20: 83 | R20: 82 | S20: 78 | T20: 74 | U20: 73 | V20: 70 | W20: 69 | X20: 68 | Y20: 67
A21: Kore | C21: 776 | D21: 748 | E21: 712 | F21: 702 | G21: 688 | H21: 682 | I21: 684 | J21: 683 | K21: 1,616 | L21: 1,689 | M21: 1,757 | N21: 1,793 | O21: 1,788 | P21: 1,798 | Q21: 1,816 | R21: 1,784 | S21: 1,813 | T21: 1,864 | U21: 1,961 | V21: 2,059 | W21: 2,134 | X21: 2,207 | Y21: 2,215
A22: Lüksemburg | B22: 278 | C22: 284 | D22: 276 | E22: 277 | F22: 270 | G22: 257 | H22: 245 | I22: 242 | J22: 234 | K22: 245 | L22: 260 | M22: 261 | N22: 262 | O22: 266 | P22: 289 | Q22: 298 | R22: 293 | S22: 274 | T22: 220 | U22: 192 | V22: 180 | W22: 168 | X22: 162 | Y22: 161
A23: Macaristan | B23: - | C23: - | D23: - | E23: - | F23: 59 | G23: 56 | H23: 48 | I23: 51 | J23: 46 | K23: 44 | L23: 41 | M23: 41 | N23: 43 | O23: 47 | P23: 52 | Q23: 54 | R23: 52 | S23: 50 | T23: 48 | U23: 45 | V23: 43 | W23: 41 | X23: 43 | Y23: 43
A24: Malezya | B24: 618 | C24: 703 | D24: 731 | E24: 752 | F24: 790 | G24: 807 | H24: 861 | I24: 902 | J24: 959 | K24: 1,019 | L24: 1,025 | M24: 986 | N24: 976 | O24: 959 | P24: 956 | Q24: 940 | R24: 920 | S24: 910 | T24: 905 | U24: 902 | V24: 903 | W24: 904 | X24: 912 | Y24: 913
A25: Meksika | B25: 193 | C25: 198 | D25: 195 | E25: 190 | F25: 177 | G25: 172 | H25: 169 | I25: 237 | J25: 326 | K25: 326 | L25: 335 | M25: 367 | N25: 373 | O25: 406 | P25: 427 | Q25: 476 | R25: 136 | S25: 143 | T25: 147 | U25: 143 | V25: 144 | W25: 148 | X25: 145 | Y25: 145
A26: Mısır | B26: - | C26: - | D26: - | E26: - | F26: - | G26: - | H26: - | I26: - | J26: 795 | K26: 744 | L26: 595 | M26: 435 | N26: 373 | O26: 313 | P26: 228 | Q26: 232 | R26: 235 | S26: 236 | T26: 247 | U26: 252 | V26: 254 | W26: 255 | X26: 252 | Y26: 252
A27: NNE | B27: - | C27: - | D27: - | E27: - | F27: - | G27: - | H27: - | I27: - | J27: - | K27: 678 | L27: 791 | M27: 851 | N27: 824 | O27: 797 | P27: 754 | Q27: 773 | R27: 751 | S27: 755 | T27: 787 | U27: 832 | V27: 938 | W27: 984 | X27: 1,019 | Y27: 1,016
A28: Peru | B28: 238 | C28: 248 | D28: 249 | E28: 239 | F28: 227 | G28: 227 | H28: 230 | I28: 227 | J28: 224 | K28: 224 | L28: 221 | M28: 226 | N28: 244 | O28: 241 | P28: 248 | Q28: 254 | R28: 277 | S28: 271 | T28: 263 | U28: 310 | V28: 332 | W28: 258 | X28: 225 | Y28: 221
A29: Polonya | B29: 83 | C29: 143 | D29: 198 | E29: 221 | F29: 225 | G29: 230 | H29: 216 | I29: 203 | J29: 230 | K29: 241 | L29: 265 | M29: 375 | N29: 458 | O29: 486 | P29: 584 | Q29: 777 | R29: 867 | S29: 895 | T29: 902 | U29: 905 | V29: 893 | W29: 890 | X29: 851 | Y29: 845
A30: Rusya | C30: - | D30: - | E30: - | F30: - | G30: - | H30: - | I30: - | J30: - | K30: - | L30: - | M30: - | N30: - | O30: - | P30: - | Q30: - | R30: 293 | S30: 262 | T30: 257 | U30: 254 | V30: 245 | W30: 234 | X30: 225 | Y30: 225
A31: Sri Lanka | B31: 235 | C31: 239 | D31: 240 | E31: 237 | F31: 239 | G31: 238 | H31: 238 | I31: 244 | J31: 242 | K31: 239 | L31: 237 | M31: 235 | N31: 235 | O31: 231 | P31: 241 | Q31: 272 | R31: 287 | S31: 289 | T31: 294 | U31: 294 | V31: 295 | W31: 296 | X31: 297 | Y31: 297
A32: Şili | B32: 290 | C32: 294 | D32: 287 | E32: 282 | F32: 261 | G32: 249 | H32: 246 | I32: 240 | J32: 240 | K32: 246 | L32: 246 | M32: 241 | N32: 238 | O32: 236 | P32: 231 | Q32: 267 | R32: 245 | S32: 306 | T32: 307 | U32: 310 | V32: 298 | W32: 293 | X32: 285 | Y32: 284
A33: Tayland | B33: 454 | C33: 431 | D33: 418 | E33: 392 | F33: 381 | G33: 385 | H33: 398 | I33: 420 | J33: 463 | K33: 504 | L33: 518 | M33: 523 | N33: 525 | O33: 535 | P33: 541 | Q33: 545 | R33: 558 | S33: 585 | T33: 613 | U33: 639 | V33: 656 | W33: 688 | X33: 704 | Y33: 708
A34: TÜRKİYE** | B34: 228 | C34: 259 | D34: 278 | E34: 286 | F34: 316 | G34: 311 | H34: 289 | I34: 298 | J34: 307 | K34: 316 | L34: 329 | M34: 332 | N34: 323 | O34: 322 | P34: 344 | Q34: 368 | R34: 404 | S34: 424 | T34: 425 | U34: 416 | V34: 405 | W34: 399 | X34: 404 | Y34: 399
A35: Yunanistan | B35: 200 | C35: 210 | D35: 229 | E35: 262 | F35: 310 | G35: 314 | H35: 324 | I35: 332 | J35: 341 | K35: 304 | L35: 290 | M35: 283 | N35: 285 | O35: 288 | P35: 280 | Q35: 272 | R35: 265 | S35: 251 | T35: 244 | U35: 240 | V35: 218 | W35: 200 | X35: 187 | Y35: 187
A36: Kaynak:WFE, SPK
A37: Not 1: NNE (Nasdaq Nordic Exchange), Helsinki, İzlanda,Kopenhag, Riga, Stockholm, Tallinn ve Vilnius Borsalarından oluşmaktadır.
A38: Not 2: Ülkelerin rakamlarına WFE'de verilen o ülkeye ait olan borsa ya da borsaların verileri toplanarak ulaşılmıştır.
A39: * Hindistan için 2004 yılı öncesi rakamları National Stock Exchange India verilerinden oluşmaktadır.
A40: ** Türkiye için kaynak SPK Aylık İstatistik Bültenidir.
A41: Güncelleme tarihi: 09.05.2019
A43: İÇİNDEKİLER SAYFASI

Sheet I.7
A1: I.7.2 YATIRIM FONLARI NET AKTİF DEĞERİ (milyon euro)
A3: Ülkeler | B3: 2015 | C3: 2016 | D3: 2017 | E3: 2018
A5: Amerika
A6: ABD | B6: 16,306,052 | C6: 17,899,730 | D6: 18,466,594 | E6: 18,408,328
A7: Arjantin | B7: 15,096 | C7: 19,153 | D7: 24,358 | E7: 13,888
A8: Brezilya | B8: 682,952 | C8: 1,006,454 | D8: 1,032,301 | E8: 1,058,023
A9: Kanada | B9: 817,131 | C9: 944,967 | D9: 1,077,315 | E9: 1,016,130
A10: Kosta Rika | B10: 2,327 | C10: 2,179 | D10: 2,039 | E10: 1,851
A11: Meksika | B11: 97,309 | C11: 87,686 | D11: 91,261 | E11: 95,833
A12: Şili | B12: 36,647 | C12: 43,842 | D12: 45,647 | E12: 45,849
A13: Avrupa
A14: Almanya | B14: 1,653,122 | C14: 1,796,530 | D14: 1,927,834 | E14: 1,920,092
A15: Avusturya | B15: 138,880 | C15: 143,192 | D15: 149,419 | E15: 144,136
A16: Belçika | B16: 84,610 | C16: 79,968 | D16: 98,327 | E16: 85,675
A17: Çek Cumhuriyeti | B17: 7,176 | C17: 8,444 | D17: 10,692 | E17: 10,929
A18: Danimarka | B18: 102,424 | C18: 110,909 | D18: 121,602 | E18: 120,727
A19: Finlandiya | B19: 81,153 | C19: 88,945 | D19: 92,552 | E19: 87,341
A20: Fransa | B20: 1,682,808 | C20: 1,783,830 | D20: 1,929,115 | E20: 1,812,023
A21: Hollanda | B21: 669,694 | C21: 732,367 | D21: 769,840 | E21: 749,940
A22: İngiltere | B22: 1,454,560 | C22: 1,433,427 | D22: 1,596,722 | E22: 1,469,744
A23: İrlanda | B23: 1,898,825 | C23: 2,084,748 | D23: 2,396,089 | E23: 2,421,457
A24: İspanya | B24: 252,333 | C24: 266,413 | D24: 292,927 | E24: 283,717
A25: İsveç | B25: 257,166 | C25: 271,712 | D25: 296,804 | E25: 293,586
A26: İsviçre | B26: 419,915 | C26: 451,417 | D26: 465,913 | E26: 463,734
A27: İtalya | B27: 190,931 | C27: 192,946 | D27: 217,114 | E27: 206,554
A28: Lihtenştayn | B28: 41,276 | C28: 43,282 | D28: 45,588 | E28: 44,428
A29: Lüksemburg | B29: 3,506,201 | C29: 3,701,076 | D29: 4,159,614 | E29: 4,064,644
A30: Macaristan | B30: 13,617 | C30: 13,833 | D30: 14,160 | E30: 13,525
A31: Norveç | B31: 94,173 | C31: 108,108 | D31: 115,682 | E31: 120,570
A32: Polonya | B32: 29,656 | C32: 28,054 | D32: 34,562 | E32: 34,732
A33: Portekiz | B33: 20,456 | C33: 19,077 | D33: 19,759 | E33: 11,853
A34: Romanya | B34: 4,627 | C34: 4,812 | D34: 4,858 | E34: 4,128
A35: Slovakya | B35: 5,697 | C35: 5,887 | D35: 6,578 | E35: 6,605
A36: TÜRKİYE | B36: 11,837 | C36: 11,647 | D36: 10,994 | E36: 6,469
A37: Yunanistan | B37: 3,942 | C37: 3,900 | D37: 4,494 | E37: 4,143
A38: Asya ve Pasifik
A39: Avusturalya | B39: 1,397,367 | C39: 1,530,257 | D39: 1,787,753 | E39: 1,699,942
A40: Çin | B40: 1,160,219 | C40: 1,164,538 | D40: 1,408,305 | E40: 1,544,626
A41: Filipinler | B41: 4,619 | C41: 4,645 | D41: 4,938 | E41: 4,259
A42: Güney Kore | B42: 315,324 | C42: 351,580 | D42: 376,791 | E42: 404,492
A43: Hindistan | B43: 154,484 | C43: 205,678 | D43: 256,305 | E43: 259,273
A44: Japonya | B44: 1,220,386 | C44: 1,395,418 | D44: 1,467,063 | E44: 1,575,990
A45: Pakistan | B45: 3,825 | C45: 5,085 | D45: 3,828 | E45: 3,190
A46: Tayvan | B46: 58,002 | C46: - | D46: 60,731 | E46: 68,941
A47: Yeni Zelanda | B47: 38,494 | C47: 46,127 | D47: 47,896 | E47: 51,846
A48: Afrika
A49: Güney Afrika | B49: 112,122 | C49: 138,338 | D49: 151,556 | E49: 135,367
A50: Kaynak: EFAMA
A51: Not: İrlanda, Fransa, Hırvatistan,Japonya, Hollanda, Lüksemburg, Norveç, Slovakya ve Türkiye dışındaki ülkeler için fon sepeti fonları dahil edilmemektedir.
A53: Güncelleme tarihi: 13.05.2019
A55: İÇİNDEKİLER SAYFASI

Sheet I.8
A1: I.8. YATIRIM FONLARI SAYISI
N2: 2011 | O2: 2012 | Q2: 2014 | R2: 2015 | S2: 2016 | U2: 2018
A3: Ülkeler | B3: 2002 | C3: 2003 | D3: 2004 | E3: 2005 | G3: 2006 | I3: 2006 | J3: 2007 | K3: 2008 | L3: 2009 | M3: 2010 | P3: 2013 | T3: 2017
F4: 1. çeyrek | G4: 2. çeyrek | H4: 3. çeyrek
A5: Amerika
A6: ABD | B6: 8,244 | C6: 8,126 | D6: 8,041 | E6: 7,975 | F6: 7,992 | G6: 7,989 | H6: 8,056 | I6: 8,117 | J6: 8,027 | K6: 8,022 | L6: 7,663 | M6: 7,548 | N6: 7,580 | O6: 7,582 | P6: 7,707 | Q6: 7,923 | R6: 9,710 | S6: 9,782 | T6: 9,788 | U6: 10,066
A7: Arjantin | B7: 211 | C7: 186 | D7: 186 | E7: 200 | F7: 210 | G7: 212 | H7: 218 | I7: 223 | J7: 241 | K7: 253 | L7: 252 | M7: 254 | N7: 281 | O7: 291 | P7: 297 | Q7: 302 | R7: 346 | S7: 420 | T7: 487 | U7: 544
A8: Brezilya | B8: 2,755 | C8: 2,805 | D8: 2,859 | E8: 2,685 | F8: 2,729 | G8: 2,961 | H8: 2,994 | I8: 2,907 | J8: 3,381 | K8: 4,169 | L8: 4,744 | M8: 5,618 | N8: 6,513 | O8: 7,468 | P8: 8,072 | Q8: 8,560 | R8: 8,783 | S8: 9,224 | T8: 9,774 | U8: 10,257
A9: Kanada | B9: 1,956 | C9: 1,887 | D9: 1,915 | E9: 1,695 | F9: 1,723 | G9: 1,748 | H9: 1,748 | I9: 1,764 | J9: 2,038 | K9: 2,015 | L9: 2,075 | M9: 2,117 | N9: 2,655 | O9: 2,866 | P9: 2,963 | Q9: 3,164 | R9: 3,283 | S9: 3,298 | T9: 3,867 | U9: 4,086
A10: Kosta Rika | B10: 128 | C10: 129 | D10: 115 | E10: 110 | F10: 110 | G10: 108 | H10: 103 | I10: 100 | J10: 93 | K10: 85 | L10: 64 | M10: 68 | N10: 63 | O10: 66 | P10: 66 | Q10: 66 | R10: 65 | S10: 67 | T10: 67 | U10: 71
A11: Meksika | B11: 364 | C11: 374 | D11: 411 | E11: 416 | F11: 426 | G11: 428 | H11: 433 | I11: 437 | J11: 420 | K11: 431 | L11: 407 | M11: 434 | N11: 464 | O11: 488 | P11: 487 | Q11: 486 | R11: 499 | S11: 524 | T11: 553 | U11: 575
A12: Şili | B12: 226 | C12: 414 | D12: 537 | E12: 683 | F12: 714 | G12: 773 | H12: 838 | I12: 926 | J12: 1,260 | K12: 1,484 | L12: 1,691 | M12: 1,912 | N12: 2,150 | O12: 2,286 | P12: 2,385 | Q12: 2,418 | R12: 2,500 | S12: 2,539 | T12: 2,673 | U12: 2,726
A13: Avrupa
A14: Almanya | B14: 1,092 | C14: 1,050 | D14: 1,041 | E14: 1,076 | F14: 1,121 | G14: 1,154 | H14: 1,172 | I14: 1,199 | J14: 1,462 | K14: 1,675 | L14: 2,067 | M14: 2,106 | N14: 2,051 | O14: 2,059 | P14: 2,012 | Q14: 2,039 | R14: 5,604 | S14: 5,678 | T14: 5,863 | U14: 6,149
A15: Avusturya | B15: 808 | C15: 833 | D15: 840 | E15: 881 | F15: 906 | G15: 929 | H15: 936 | I15: 948 | J15: 1,070 | K15: 1,065 | L15: 1,016 | M15: 1,016 | N15: 1,003 | O15: 995 | P15: 981 | Q15: 938 | R15: 1,596 | S15: 1,575 | T15: 1,580 | U15: 1,603
A16: Belçika | B16: 1,141 | C16: 1,224 | D16: 1,281 | E16: 1,391 | F16: 1,435 | G16: 1,492 | H16: 1,531 | I16: 1,549 | J16: 1,655 | K16: 1,828 | L16: 1,845 | M16: 1,797 | N16: 1,723 | O16: 1,529 | P16: 1,432 | Q16: 1,209 | R16: 1,164 | S16: 962 | T16: 890 | U16: 735
A17: Çek Cumhuriyeti | B17: 76 | C17: 58 | D17: 53 | E17: 51 | F17: 51 | G17: 55 | H17: 59 | I17: 52 | J17: 66 | K17: 76 | L17: 78 | M17: 80 | N17: 80 | O17: 80 | P17: 85 | Q17: 106 | R17: 128 | S17: 129 | T17: 147 | U17: 159
A18: Danimarka | B18: 485 | C18: 400 | D18: 423 | E18: 471 | F18: 476 | G18: 491 | H18: 496 | I18: 494 | J18: 500 | K18: 489 | L18: 483 | M18: 490 | N18: 500 | O18: 495 | P18: 510 | Q18: 530 | R18: 532 | S18: 558 | T18: 565 | U18: 599
A19: Finlandiya | B19: 312 | C19: 249 | D19: 280 | E19: 333 | F19: 344 | G19: 338 | H19: 337 | I19: 376 | J19: 379 | K19: 389 | L19: 377 | M19: 366 | N19: 368 | O19: 375 | P19: 369 | Q19: 352 | R19: 371 | S19: 372 | T19: 380 | U19: 404
A20: Fransa | B20: 7,773 | C20: 7,902 | D20: 7,908 | E20: 7,758 | F20: 7,849 | G20: 7,894 | H20: 8,027 | I20: 8,092 | J20: 8,243 | K20: 8,301 | L20: 7,982 | M20: 7,791 | N20: 7,744 | O20: 7,392 | P20: 7,154 | Q20: 7,082 | R20: 11,122 | S20: 10,952 | T20: 10,860 | U20: 10,804
A21: İngiltere | B21: 1,787 | C21: 1,692 | D21: 1,710 | E21: 1,680 | F21: 1,955 | G21: 1,931 | H21: 1,899 | I21: 1,903 | J21: 2,057 | K21: 2,371 | L21: 2,266 | M21: 2,204 | N21: 1,941 | O21: 1,922 | P21: 1,910 | Q21: 1,920 | R21: 2,871 | S21: 2,802 | T21: 2,948 | U21: 3,033
A22: İrlanda | B22: 1,905 | C22: 1,978 | D22: 2,088 | E22: 2,127 | F22: 2,165 | G22: 2,163 | H22: 2,275 | I22: 2,531 | J22: 2,898 | K22: 3,097 | L22: 2,721 | M22: 2,899 | N22: 3,085 | O22: 3,167 | P22: 3,345 | Q22: 3,462 | R22: 6,201 | S22: 6,470 | T22: 6,831 | U22: 7,285
A23: İspanya | B23: 2,466 | C23: 2,471 | D23: 2,559 | E23: 2,672 | F23: 2,838 | G23: 2,893 | H23: 2,761 | I23: 3,235 | J23: 2,940 | K23: 2,944 | L23: 2,588 | M23: 2,486 | N23: 2,474 | O23: 2,349 | P23: 2,267 | Q23: 2,238 | R23: 2,238 | S23: 2,342 | T23: 2,332 | U23: 2,584
A24: İsveç | B24: 512 | C24: 485 | D24: 461 | E24: 464 | F24: 464 | G24: 458 | H24: 469 | I24: 474 | J24: 477 | K24: 508 | L24: 506 | M24: 504 | N24: 508 | O24: 456 | P24: 484 | Q24: 510 | R24: 471 | S24: 496 | T24: 519 | U24: 528
A25: İsviçre | B25: 512 | C25: 441 | D25: 385 | E25: 510 | F25: 646 | G25: 657 | H25: 612 | I25: 609 | J25: 567 | K25: 572 | L25: 509 | M25: 653 | N25: 664 | O25: 667 | P25: 765 | Q25: 843 | R25: 860 | S25: 858 | T25: 918 | U25: 887
A26: İtalya | B26: 1,073 | C26: 1,012 | D26: 1,142 | E26: 1,035 | F26: 1,018 | G26: 1,021 | H26: 1,006 | I26: 989 | J26: 924 | K26: 742 | L26: 675 | M26: 650 | N26: 659 | O26: 600 | P26: 661 | Q26: 719 | R26: 713 | S26: 760 | T26: 832 | U26: 866
A27: Lihtenştayn | B27: 111 | C27: 137 | D27: 171 | E27: 200 | F27: 206 | G27: 212 | H27: 226 | I27: 233 | J27: 391 | K27: 335 | L27: 348 | M27: 409 | N27: 437 | O27: 535 | P27: 657 | Q27: 587 | R27: 1,184 | S27: 1,287 | T27: 1,367 | U27: 1,566
A28: Luksemburg | B28: 6,874 | C28: 6,578 | D28: 6,855 | E28: 7,222 | F28: 7,401 | G28: 7,525 | H28: 7,686 | I28: 7,919 | J28: 8,782 | K28: 9,351 | L28: 9,017 | M28: 9,353 | N28: 9,462 | O28: 9,435 | P28: 9,500 | Q28: 9,839 | R28: 14,108 | S28: 14,211 | T28: 14,728 | U28: 14,898
A29: Macaristan | B29: 90 | D29: - | E29: - | F29: - | G29: - | H29: - | I29: - | J29: - | K29: - | L29: - | M29: - | N29: - | O29: - | P29: - | Q29: 307 | R29: 316 | S29: 306 | T29: 306 | U29: 298
A30: Norveç | B30: 419 | C30: 375 | D30: 406 | E30: 419 | F30: 460 | G30: 472 | H30: 476 | I30: 524 | J30: 511 | K30: 530 | L30: 487 | M30: 507 | N30: 507 | O30: 406 | P30: 573 | Q30: 616 | R30: 700 | S30: 720 | T30: 754 | U30: 865
A31: Polonya | B31: 107 | C31: 112 | D31: 130 | E31: 150 | F31: 147 | G31: 163 | H31: 147 | I31: 157 | J31: 188 | K31: 210 | L31: 208 | M31: 214 | N31: 226 | O31: 259 | P31: 264 | Q31: 278 | R31: 391 | S31: 423 | T31: 428 | U31: 440
A32: Portekiz | B32: 170 | C32: 160 | D32: 163 | E32: 169 | F32: 174 | G32: 173 | H32: 174 | I32: 175 | J32: 180 | K32: 184 | L32: 171 | M32: 171 | N32: 173 | O32: 157 | P32: 153 | Q32: 184 | R32: 399 | S32: 373 | T32: 344 | U32: 136
A33: Romanya | B33: 20 | C33: 20 | D33: 19 | E33: 23 | F33: 26 | G33: 31 | H33: 32 | I33: 32 | J33: 41 | K33: 52 | L33: 51 | M33: 56 | N33: 105 | O33: 62 | P33: 64 | Q33: 72 | R33: 74 | S33: 75 | T33: 74 | U33: 78
A34: Slovakya | C34: 37 | D34: 40 | E34: 43 | F34: 48 | G34: 53 | H34: 48 | I34: 43 | J34: 54 | K34: 56 | L34: 54 | M34: 58 | N34: 63 | O34: 58 | P34: 54 | Q34: 87 | R34: 88 | S34: 87 | T34: 87 | U34: 86
A35: TÜRKİYE | B35: 242 | C35: 241 | D35: 240 | E35: 275 | F35: 278 | G35: 279 | H35: 274 | I35: 282 | J35: 294 | K35: 304 | L35: 286 | M35: 311 | N35: 337 | O35: 351 | P35: 373 | Q35: 395 | R35: 387 | S35: 396 | T35: 387 | U35: 398
A36: Yunanistan | B36: 260 | C36: 265 | D36: 262 | E36: 247 | F36: 248 | G36: 251 | H36: 248 | I36: 247 | J36: 230 | K36: 239 | L36: 210 | M36: 213 | N36: 196 | O36: 177 | P36: 166 | Q36: 143 | R36: 139 | S36: 135 | T36: 146 | U36: 175
A37: Asya ve Pasifik
A38: Çin | B38: - | C38: - | D38: - | E38: - | I38: - | J38: 341 | K38: 429 | L38: 547 | M38: 660 | N38: 831 | O38: 1,065 | P38: 1,415 | Q38: 1,763 | R38: 2,558 | S38: 3,654 | T38: 4,361 | U38: 4,957
A39: Filipinler | B39: 21 | C39: 21 | D39: 24 | E39: 32 | F39: 34 | G39: 34 | H39: 34 | I39: 38 | J39: 40 | K39: 43 | L39: 41 | M39: 43 | N39: 47 | O39: 48 | P39: 47 | Q39: 52 | R39: 55 | S39: 57 | T39: 60 | U39: 61
A40: Güney Kore | B40: 5,873 | C40: 6,726 | D40: 6,636 | E40: 7,279 | F40: 7,478 | G40: 7,653 | H40: 7,536 | I40: 8,030 | J40: 8,609 | K40: 9,384 | L40: 8,703 | M40: 8,687 | N40: 9,064 | O40: 9,121 | P40: 9,876 | Q40: 11,063 | R40: 11,918 | S40: 12,626 | T40: 11,828 | U40: 13,258
A41: Hindistan | B41: 312 | C41: 350 | D41: 394 | E41: 445 | F41: 463 | G41: 467 | H41: 468 | I41: 468 | J41: 555 | K41: 551 | L41: 590 | M41: 658 | N41: 680 | O41: 692 | P41: 699 | Q41: 723 | R41: 804 | S41: 795 | T41: 807 | U41: 831
A42: Japonya | B42: 2,718 | C42: 2,617 | D42: 2,552 | E42: 2,640 | F42: 2,625 | G42: 2,678 | H42: 2,699 | I42: 2,753 | J42: 2,997 | K42: 3,333 | L42: 3,656 | M42: 3,905 | N42: 4,196 | O42: 4,384 | P42: 4,922 | Q42: 5,404 | R42: 9,804 | S42: 10,915 | T42: 11,662 | U42: 12,294
A43: Pakistan | B43: - | C43: - | D43: - | E43: - | F43: 21 | G43: 26 | H43: 28 | I43: 31 | J43: 64 | K43: 83 | L43: 96 | M43: 125 | N43: 137 | O43: 139 | P43: 152 | Q43: 159 | R43: 160 | S43: 171 | T43: 177 | U43: 192
A44: Tayvan | B44: 351 | C44: 401 | D44: 445 | E44: 459 | F44: 454 | G44: 458 | H44: 450 | I44: 447 | J44: 456 | K44: 443 | L44: 460 | M44: 487 | N44: 534 | O44: 554 | P44: 570 | Q44: 577 | R44: 602 | S44: - | T44: 714 | U44: 774
A45: Yeni Zelanda | B45: 577 | C45: 563 | D45: 553 | E45: 563 | F45: 578 | G45: 586 | H45: 605 | I45: 613 | J45: 623 | K45: 643 | L45: 702 | M45: 700 | N45: 709 | O45: 700 | P45: 694 | Q45: 632 | R45: 609 | S45: 615 | T45: 587 | U45: 629
A46: Afrika
A47: Güney Afrika | B47: 460 | C47: 466 | D47: 537 | E47: 617 | F47: 644 | G47: 679 | H47: 707 | I47: 750 | J47: 831 | K47: 884 | L47: 904 | M47: 943 | N47: 947 | O47: 967 | P47: 1,062 | Q47: 1,171 | R47: 1,327 | S47: 1,520 | T47: 1,626 | U47: 1,567
A48: Kaynak: EFAMA
A49: Not: İrlanda, Fransa, Hırvatistan,Japonya, Hollanda, Lüksemburg, Norveç, Slovakya ve Türkiye dışındaki ülkeler için fon sepeti fonları dahil edilmemektedir.
A50: *EFAMA'dan farklı tarihlerde çekilen verilerden zaman serisi oluşturulmuş olup bazı yıllar arasında önemli değişimler gözlenebilmektedir.
A51: Güncelleme Tarihi: 13.05.2019
A53: İÇİNDEKİLER SAYFASI

Sheet BOLUMII
A12: BÖLÜM II: KÜRESEL FİNANS PİYASALARINA İLİŞKİN GÖSTERGELER

Sheet II.1
A1: II.1. DOĞRUDAN YABANCI YATIRIMLAR* (milyar dolar)
B2: Dışarıya Yapılan Yatırımlar | P2: İçeriye Yapılan Yatırımlar
B3: 2005 | C3: 2006 | D3: 2007 | E3: 2008 | F3: 2009 | G3: 2010 | H3: 2011 | I3: 2012 | J3: 2013 | K3: 2014 | L3: 2015 | M3: 2016 | N3: 2017 | O3: 2018 | P3: 2005 | Q3: 2006 | R3: 2007 | S3: 2008 | T3: 2009 | U3: 2010 | V3: 2011 | W3: 2012 | X3: 2013 | Y3: 2014 | Z3: 2015 | AA3: 2016 | AB3: 2017 | AC3: 2018
A4: ABD | B4: 26.9 | C4: 232.7 | D4: 405.0 | E4: 320.9 | F4: 309.3 | G4: 296.3 | H4: 415.3 | I4: 338.4 | J4: 321.9 | K4: 347.7 | L4: 279.5 | M4: 304.6 | N4: 316.5 | O4: -47.8 | P4: 116.7 | Q4: 247.3 | R4: 227.7 | S4: 318.4 | T4: 157.7 | U4: 210.5 | V4: 242.2 | W4: 211.5 | X4: 217.3 | Y4: 212.0 | Z4: 481.5 | AA4: 486.0 | AB4: 292.1 | AC4: 269.9
A5: Japonya | B5: 45.8 | C5: 50.2 | D5: 73.5 | E5: 128.0 | F5: 74.7 | G5: 56.3 | H5: 107.6 | I5: 122.5 | J5: 135.7 | K5: 129.2 | L5: 128.7 | M5: 145.2 | N5: 160.4 | O5: 143.1 | P5: 2.8 | Q5: -6.5 | R5: 22.5 | S5: 24.4 | T5: 11.9 | U5: -1.3 | V5: -1.8 | W5: 1.7 | X5: 2.3 | Y5: 10.6 | Z5: -2.3 | AA5: 11.4 | AB5: 10.4 | AC5: 9.9
A6: TÜRKİYE | B6: 1.1 | C6: 0.9 | D6: 2.1 | E6: 2.5 | F6: 1.6 | G6: 1.5 | H6: 2.3 | I6: 4.1 | J6: 3.5 | K6: 6.7 | L6: 4.8 | M6: 2.9 | N6: 2.6 | O6: 3.6 | P6: 10.0 | Q6: 20.2 | R6: 22.0 | S6: 19.9 | T6: 8.6 | U6: 9.1 | V6: 16.1 | W6: 13.7 | X6: 13.6 | Y6: 13.0 | Z6: 18.9 | AA6: 13.7 | AB6: 11.5 | AC6: 13.1
A7: OECD Ülkeleri | B7: 719.1 | C7: 1,136.7 | D7: 1,876.9 | E7: 1,391.1 | F7: 879.9 | G7: 1,012.1 | H7: 1,221.2 | I7: 915.6 | J7: 986.3 | K7: 839.7 | L7: 1,275.0 | M7: 1,158.6 | N7: 1,008.5 | O7: 598.8 | P7: 625.2 | Q7: 960.5 | R7: 1,312.9 | S7: 844.9 | T7: 692.6 | U7: 717.2 | V7: 900.3 | W7: 724.9 | X7: 784.1 | Y7: 666.0 | Z7: 1,328.0 | AA7: 1,267.9 | AB7: 814.7 | AC7: 625.2
A8: Kaynak: OECD
A9: Güncelleme tarihi: 07.05.2019
A10: * DYY finansal akımlar - FDI financial flows
A11: İÇİNDEKİLER SAYFASI
A13: FDI Financial Flows, main aggregates

Sheet II.2
A1: II.2. EKONOMİK ÖZGÜRLÜK ENDEKSİ
B2: 1980 | C2: 1990 | D2: 2000 | E2: 2005 | F2: 2010 | G2: 2015 | H2: 2016
A3: Almanya | B3: 7.18 | C3: 7.64 | D3: 7.80 | E3: 7.75 | F3: 7.59 | G3: 7.67 | H3: 7.69
A4: Arnavutluk | B4: - | C4: 4.58 | D4: 6.53 | E4: 6.96 | F4: 7.35 | G4: 7.53 | H4: 7.54
A5: Avusturya | B5: 6.45 | C5: 6.95 | D5: 7.96 | E5: 7.85 | F5: 7.62 | G5: 7.64 | H5: 7.58
A6: Belçika | B6: 7.35 | C6: 7.56 | D6: 7.76 | E6: 7.41 | F6: 7.39 | G6: 7.43 | H6: 7.32
A7: Bulgaristan | B7: - | C7: 4.17 | D7: 5.55 | E7: 6.95 | F7: 7.30 | G7: 7.40 | H7: 7.41
A8: Çek Cumhuriyeti | B8: - | C8: - | D8: 6.74 | E8: 6.98 | F8: 7.22 | G8: 7.49 | H8: 7.56
A9: Danimarka | B9: 6.24 | C9: 7.16 | D9: 8.06 | E9: 7.89 | F9: 7.77 | G9: 7.75 | H9: 7.77
A10: Estonya | B10: - | C10: - | D10: 7.60 | E10: 7.96 | F10: 7.82 | G10: 7.93 | H10: 7.86
A11: Finlandiya | B11: 6.50 | C11: 6.99 | D11: 7.98 | E11: 7.86 | F11: 7.79 | G11: 7.71 | H11: 7.65
A12: Fransa | B12: 6.05 | C12: 7.04 | D12: 7.47 | E12: 7.31 | F12: 7.42 | G12: 7.35 | H12: 7.25
A13: Hırvatistan | B13: - | C13: - | D13: 6.28 | E13: 6.47 | F13: 6.68 | G13: 7.04 | H13: 6.96
A14: Hollanda | B14: 7.29 | C14: 7.56 | D14: 7.96 | E14: 7.73 | F14: 7.48 | G14: 7.73 | H14: 7.71
A15: İngiltere | B15: 6.72 | C15: 8.18 | D15: 8.56 | E15: 8.30 | F15: 7.89 | G15: 8.01 | H15: 8.00
A16: İrlanda | B16: 6.46 | C16: 7.06 | D16: 8.08 | E16: 8.22 | F16: 7.67 | G16: 8.25 | H16: 8.07
A17: İspanya | B17: 5.81 | C17: 6.56 | D17: 7.77 | E17: 7.62 | F17: 7.32 | G17: 7.53 | H17: 7.56
A18: İsrail | B18: 3.50 | C18: 4.48 | D18: 6.84 | E18: 7.30 | F18: 7.32 | G18: 7.47 | H18: 7.49
A19: İsveç | B19: 5.66 | C19: 6.96 | D19: 7.67 | E19: 7.50 | F19: 7.58 | G19: 7.65 | H19: 7.44
A20: İsviçre | B20: 7.62 | C20: 8.21 | D20: 8.73 | E20: 8.37 | F20: 8.30 | G20: 8.37 | H20: 8.39
A21: İtalya | B21: 5.58 | C21: 6.75 | D21: 7.59 | E21: 7.37 | F21: 7.19 | G21: 7.31 | H21: 7.27
A22: İzlanda | B22: 5.15 | C22: 6.92 | D22: 7.99 | E22: 8.13 | F22: 6.48 | G22: 7.25 | H22: 7.22
A23: Letonya | B23: - | C23: - | D23: 7.24 | E23: 7.62 | F23: 7.23 | G23: 7.72 | H23: 7.64
A24: Litvanya | B24: - | C24: - | D24: 6.92 | E24: 7.37 | F24: 7.47 | G24: 7.86 | H24: 7.86
A25: Lüksemburg | B25: 8.05 | C25: 8.07 | D25: 8.18 | E25: 7.60 | F25: 7.53 | G25: 7.64 | H25: 7.60
A26: Macaristan | B26: 4.07 | C26: 4.89 | D26: 7.01 | E26: 7.20 | F26: 7.31 | G26: 7.19 | H26: 7.22
A27: Malta | B27: 5.57 | C27: 5.54 | D27: 6.98 | E27: 7.55 | F27: 7.59 | G27: 7.72 | H27: 7.73
A28: Norveç | B28: 5.72 | C28: 6.99 | D28: 7.36 | E28: 7.73 | F28: 7.47 | G28: 7.65 | H28: 7.60
A29: Polonya | B29: - | C29: 3.51 | D29: 6.55 | E29: 6.89 | F29: 7.12 | G29: 7.36 | H29: 7.27
A30: Portekiz | B30: 5.62 | C30: 6.20 | D30: 7.46 | E30: 7.25 | F30: 7.00 | G30: 7.55 | H30: 7.51
A31: Romanya | B31: - | C31: 5.02 | D31: 5.73 | E31: 7.24 | F31: 7.30 | G31: 7.70 | H31: 7.69
A32: Rusya | B32: - | C32: - | D32: 5.50 | E32: 6.24 | F32: 6.54 | G32: 6.65 | H32: 6.83
A33: Slovak Cumhuriyeti | B33: - | C33: - | D33: 6.89 | E33: 7.63 | F33: 7.47 | G33: 7.24 | H33: 7.30
A34: Slovenya | B34: - | C34: - | D34: 6.58 | E34: 6.91 | F34: 6.82 | G34: 7.08 | H34: 7.05
A35: Türkiye | B35: 3.59 | C35: 4.73 | D35: 5.84 | E35: 6.43 | F35: 6.83 | G35: 6.84 | H35: 6.84
A36: Ukrayna | B36: - | C36: - | D36: 4.71 | E36: 5.81 | F36: 5.90 | G36: 5.40 | H36: 5.98
A37: Yunanistan | B37: 5.72 | C37: 5.95 | D37: 6.97 | E37: 7.38 | F37: 6.81 | G37: 6.45 | H37: 6.46
A38: Kaynak: Fraser Institute, Economic Freedom of the World, 2018 Yıllık Raporu
A39: Not: Ekonomik Özgürlük Endeksi 5 ana bölümden oluşmaktadır. (1) Kamunun büyüklüğü, (2) adli sistem ve mülkiyet hakları, (3) para politikalarının sağlamlığı, (4) ticaret serbestisi ve (5) düzenleme (kredi, iş ve emek piyasasını içeren) alt endekslerin ölçümlerinin ortalamasıdır.
A40: Güncelleme tarihi: 12.10.2018
A42: İÇİNDEKİLER SAYFASI

Sheet BOLUMIII
A12: BÖLÜM III: ULUSLARARASI MAKROEKONOMİK GÖSTERGELER

Sheet III.1
A1: III.1. GSYH (milyar dolar)
A3: Ülkeler | B3: 1999 | C3: 2000 | D3: 2001 | E3: 2002 | F3: 2003 | G3: 2004 | H3: 2005 | I3: 2006 | J3: 2007 | K3: 2008 | L3: 2009 | M3: 2010 | N3: 2011 | O3: 2012 | P3: 2013 | Q3: 2014 | R3: 2015 | S3: 2016 | T3: 2017 | U3: 2018 (*) | V3: 2019 (*) | W3: 2020 (*) | X3: 2021 (*) | Y3: 2022 (*) | Z3: 2023 (*)
A4: Almanya | B4: 2,203 | C4: 1,955 | D4: 1,952 | E4: 2,086 | F4: 2,510 | G4: 2,822 | H4: 2,866 | I4: 3,005 | J4: 3,445 | K4: 3,770 | L4: 3,427 | M4: 3,423 | N4: 3,761 | O4: 3,546 | P4: 3,754 | Q4: 3,905 | R4: 3,383 | S4: 3,497 | T4: 3,701 | U4: 4,000 | V4: 3,964 | W4: 4,157 | X4: 4,335 | Y4: 4,527 | Z4: 4,714
A5: ABD | B5: 9,631 | C5: 10,252 | D5: 10,582 | E5: 10,936 | F5: 11,458 | G5: 12,214 | H5: 13,037 | I5: 13,815 | J5: 14,452 | K5: 14,713 | L5: 14,449 | M5: 14,992 | N5: 15,543 | O5: 16,197 | P5: 16,785 | Q5: 17,522 | R5: 18,219 | S5: 18,707 | T5: 19,485 | U5: 20,494 | V5: 21,345 | W5: 22,198 | X5: 23,060 | Y5: 23,923 | Z5: 24,813
A6: Arjantin | B6: 308 | C6: 308 | D6: 292 | E6: 109 | F6: 138 | G6: 165 | H6: 199 | I6: 233 | J6: 288 | K6: 364 | L6: 335 | M6: 425 | N6: 528 | O6: 580 | P6: 611 | Q6: 564 | R6: 642 | S6: 557 | T6: 643 | U6: 518 | V6: 478 | W6: 515 | X6: 561 | Y6: 605 | Z6: 649
A7: Avusturya | B7: 217 | C7: 197 | D7: 197 | E7: 214 | F7: 262 | G7: 301 | H7: 316 | I7: 336 | J7: 389 | K7: 432 | L7: 401 | M7: 393 | N7: 432 | O7: 410 | P7: 430 | Q7: 443 | R7: 382 | S7: 394 | T7: 418 | U7: 458 | V7: 460 | W7: 482 | X7: 502 | Y7: 523 | Z7: 544
A8: Brezilya | B8: 600 | C8: 655 | D8: 560 | E8: 509 | F8: 558 | G8: 668 | H8: 891 | I8: 1,106 | J8: 1,396 | K8: 1,695 | L8: 1,668 | M8: 2,208 | N8: 2,614 | O8: 2,464 | P8: 2,472 | Q8: 2,456 | R8: 1,800 | S8: 1,796 | T8: 2,053 | U8: 1,868 | V8: 1,960 | W8: 2,063 | X8: 2,156 | Y8: 2,256 | Z8: 2,360
A9: Çin | B9: 1,097 | C9: 1,215 | D9: 1,344 | E9: 1,478 | F9: 1,671 | G9: 1,966 | H9: 2,309 | I9: 2,774 | J9: 3,571 | K9: 4,604 | L9: 5,122 | M9: 6,066 | N9: 7,522 | O9: 8,570 | P9: 9,635 | Q9: 10,535 | R9: 11,226 | S9: 11,222 | T9: 12,062 | U9: 13,407 | V9: 14,217 | W9: 15,468 | X9: 16,807 | Y9: 18,207 | Z9: 19,714
A10: Danimarka | B10: 178 | C10: 164 | D10: 165 | E10: 179 | F10: 218 | G10: 251 | H10: 264 | I10: 283 | J10: 319 | K10: 353 | L10: 321 | M10: 322 | N10: 344 | O10: 327 | P10: 344 | Q10: 353 | R10: 303 | S10: 312 | T10: 330 | U10: 351 | V10: 350 | W10: 365 | X10: 380 | Y10: 398 | Z10: 418
A11: Endonezya | B11: 169 | C11: 179 | D11: 175 | E11: 213 | F11: 255 | G11: 280 | H11: 311 | I11: 396 | J11: 470 | K11: 559 | L11: 578 | M11: 755 | N11: 893 | O11: 919 | P11: 917 | Q11: 891 | R11: 861 | S11: 932 | T11: 1,015 | U11: 1,022 | V11: 1,101 | W11: 1,209 | X11: 1,306 | Y11: 1,399 | Z11: 1,499
A12: Filipinler | B12: 83 | C12: 81 | D12: 76 | E12: 81 | F12: 84 | G12: 91 | H12: 103 | I12: 122 | J12: 149 | K12: 174 | L12: 168 | M12: 200 | N12: 224 | O12: 250 | P12: 272 | Q12: 285 | R12: 293 | S12: 305 | T12: 314 | U12: 331 | V12: 357 | W12: 389 | X12: 424 | Y12: 466 | Z12: 513
A13: Finlandiya | B13: 135 | C13: 126 | D13: 129 | E13: 140 | F13: 171 | G13: 197 | H13: 205 | I13: 217 | J13: 256 | K13: 285 | L13: 252 | M13: 248 | N13: 274 | O13: 257 | P13: 270 | Q13: 273 | R13: 233 | S13: 239 | T13: 253 | U13: 275 | V13: 277 | W13: 289 | X13: 300 | Y13: 312 | Z13: 323
A14: Hindistan | B14: 467 | C14: 477 | D14: 494 | E14: 524 | F14: 618 | G14: 722 | H14: 834 | I14: 949 | J14: 1,239 | K14: 1,224 | L14: 1,365 | M14: 1,708 | N14: 1,823 | O14: 1,828 | P14: 1,857 | Q14: 2,039 | R14: 2,104 | S14: 2,290 | T14: 2,652 | U14: 2,717 | V14: 2,972 | W14: 3,258 | X14: 3,577 | Y14: 3,924 | Z14: 4,306
A15: İngiltere | B15: 1,669 | C15: 1,651 | D15: 1,626 | E15: 1,776 | F15: 2,046 | G15: 2,405 | H15: 2,528 | I15: 2,701 | J15: 3,085 | K15: 2,935 | L15: 2,403 | M15: 2,455 | N15: 2,636 | O15: 2,677 | P15: 2,755 | Q15: 3,036 | R15: 2,897 | S15: 2,669 | T15: 2,640 | U15: 2,829 | V15: 2,829 | W15: 2,927 | X15: 3,027 | Y15: 3,142 | Z15: 3,266
A16: İrlanda | B16: 99 | C16: 100 | D16: 109 | E16: 128 | F16: 165 | G16: 194 | H16: 212 | I16: 232 | J16: 270 | K16: 276 | L16: 237 | M16: 223 | N16: 238 | O16: 225 | P16: 239 | Q16: 259 | R16: 291 | S16: 302 | T16: 332 | U16: 373 | V16: 382 | W16: 405 | X16: 428 | Y16: 453 | Z16: 476
A17: İspanya | B17: 634 | C17: 597 | D17: 626 | E17: 707 | F17: 908 | G17: 1,071 | H17: 1,159 | I17: 1,266 | J17: 1,481 | K17: 1,643 | L17: 1,503 | M17: 1,434 | N17: 1,489 | O17: 1,337 | P17: 1,362 | Q17: 1,379 | R17: 1,200 | S17: 1,238 | T17: 1,317 | U17: 1,426 | V17: 1,429 | W17: 1,497 | X17: 1,560 | Y17: 1,627 | Z17: 1,693
A18: İsrail | B18: 117 | C18: 132 | D18: 131 | E18: 121 | F18: 127 | G18: 135 | H18: 142 | I18: 154 | J18: 179 | K18: 216 | L18: 207 | M18: 234 | N18: 262 | O18: 257 | P18: 293 | Q18: 310 | R18: 300 | S18: 319 | T18: 353 | U18: 370 | V18: 382 | W18: 404 | X18: 426 | Y18: 451 | Z18: 476
A19: İsveç | B19: 271 | C19: 260 | D19: 240 | E19: 264 | F19: 332 | G19: 382 | H19: 389 | I19: 421 | J19: 488 | K19: 515 | L19: 430 | M19: 489 | N19: 564 | O19: 544 | P19: 579 | Q19: 574 | R19: 498 | S19: 512 | T19: 536 | U19: 551 | V19: 547 | W19: 577 | X19: 606 | Y19: 643 | Z19: 682
A20: İtalya | B20: 1,250 | C20: 1,145 | D20: 1,163 | E20: 1,270 | F20: 1,572 | G20: 1,800 | H20: 1,856 | I20: 1,944 | J20: 2,206 | K20: 2,402 | L20: 2,191 | M20: 2,129 | N20: 2,278 | O20: 2,074 | P20: 2,131 | Q20: 2,155 | R20: 1,833 | S20: 1,870 | T20: 1,947 | U20: 2,072 | V20: 2,026 | W20: 2,090 | X20: 2,142 | Y20: 2,201 | Z20: 2,257
A21: Japonya | B21: 4,562 | C21: 4,888 | D21: 4,304 | E21: 4,115 | F21: 4,446 | G21: 4,815 | H21: 4,755 | I21: 4,530 | J21: 4,515 | K21: 5,038 | L21: 5,231 | M21: 5,700 | N21: 6,157 | O21: 6,203 | P21: 5,156 | Q21: 4,850 | R21: 4,389 | S21: 4,927 | T21: 4,860 | U21: 4,972 | V21: 5,176 | W21: 5,495 | X21: 5,808 | Y21: 6,134 | Z21: 6,476
A22: Kanada | B22: 678 | C22: 745 | D22: 739 | E22: 761 | F22: 896 | G22: 1,027 | H22: 1,173 | I22: 1,319 | J22: 1,469 | K22: 1,553 | L22: 1,375 | M22: 1,617 | N22: 1,793 | O22: 1,829 | P22: 1,847 | Q22: 1,804 | R22: 1,556 | S22: 1,530 | T22: 1,650 | U22: 1,711 | V22: 1,739 | W22: 1,832 | X22: 1,926 | Y22: 2,027 | Z22: 2,134
A23: Kolombiya | B23: 103 | C23: 99 | D23: 97 | E23: 97 | F23: 94 | G23: 116 | H23: 145 | I23: 161 | J23: 206 | K23: 242 | L23: 233 | M23: 286 | N23: 334 | O23: 370 | P23: 382 | Q23: 381 | R23: 293 | S23: 283 | T23: 312 | U23: 333 | V23: 337 | W23: 353 | X23: 373 | Y23: 394 | Z23: 416
A24: Kore | B24: 485 | C24: 562 | D24: 533 | E24: 609 | F24: 681 | G24: 765 | H24: 898 | I24: 1,012 | J24: 1,123 | K24: 1,002 | L24: 902 | M24: 1,094 | N24: 1,202 | O24: 1,223 | P24: 1,306 | Q24: 1,411 | R24: 1,383 | S24: 1,415 | T24: 1,531 | U24: 1,619 | V24: 1,657 | W24: 1,744 | X24: 1,832 | Y24: 1,930 | Z24: 2,036
A25: Lüksemburg | B25: 21 | C25: 21 | D25: 21 | E25: 24 | F25: 30 | G25: 35 | H25: 37 | I25: 42 | J25: 51 | K25: 56 | L25: 52 | M25: 53 | N25: 60 | O25: 57 | P25: 62 | Q25: 66 | R25: 57 | S25: 59 | T25: 62 | U25: 69 | V25: 70 | W25: 74 | X25: 78 | Y25: 82 | Z25: 86
A26: Macaristan | B26: 49 | C26: 47 | D26: 54 | E26: 68 | F26: 85 | G26: 104 | H26: 113 | I26: 115 | J26: 140 | K26: 158 | L26: 131 | M26: 131 | N26: 141 | O26: 128 | P26: 135 | Q26: 140 | R26: 123 | S26: 126 | T26: 140 | U26: 156 | V26: 169 | W26: 178 | X26: 188 | Y26: 197 | Z26: 206
A27: Malezya | B27: 85 | C27: 101 | D27: 100 | E27: 108 | F27: 118 | G27: 134 | H27: 148 | I27: 168 | J27: 200 | K27: 239 | L27: 209 | M27: 255 | N27: 298 | O27: 314 | P27: 323 | Q27: 338 | R27: 297 | S27: 297 | T27: 315 | U27: 354 | V27: 373 | W27: 402 | X27: 432 | Y27: 464 | Z27: 500
A28: Meksika | B28: 600 | C28: 708 | D28: 757 | E28: 772 | F28: 729 | G28: 782 | H28: 877 | I28: 975 | J28: 1,053 | K28: 1,110 | L28: 900 | M28: 1,058 | N28: 1,180 | O28: 1,201 | P28: 1,274 | Q28: 1,315 | R28: 1,171 | S28: 1,078 | T28: 1,158 | U28: 1,223 | V28: 1,241 | W28: 1,298 | X28: 1,358 | Y28: 1,424 | Z28: 1,495
A29: Mısır | B29: 95 | C29: 105 | D29: 102 | E29: 90 | F29: 85 | G29: 83 | H29: 94 | I29: 113 | J29: 137 | K29: 171 | L29: 198 | M29: 230 | N29: 248 | O29: 279 | P29: 288 | Q29: 306 | R29: 332 | S29: 332 | T29: 237 | U29: 250 | V29: 300 | W29: 331 | X29: 345 | Y29: 361 | Z29: 377
A30: Peru | B30: 49 | C30: 51 | D30: 52 | E30: 54 | F30: 59 | G30: 67 | H30: 75 | I30: 88 | J30: 102 | K30: 122 | L30: 121 | M30: 149 | N30: 171 | O30: 193 | P30: 202 | Q30: 202 | R30: 192 | S30: 194 | T30: 214 | U30: 225 | V30: 232 | W30: 244 | X30: 258 | Y30: 272 | Z30: 288
A31: Polonya | B31: 168 | C31: 171 | D31: 190 | E31: 199 | F31: 218 | G31: 255 | H31: 306 | I31: 345 | J31: 429 | K31: 534 | L31: 440 | M31: 479 | N31: 529 | O31: 501 | P31: 524 | Q31: 545 | R31: 478 | S31: 472 | T31: 527 | U31: 586 | V31: 593 | W31: 643 | X31: 695 | Y31: 753 | Z31: 816
A32: Rusya | B32: 210 | C32: 278 | D32: 328 | E32: 370 | F32: 461 | G32: 633 | H32: 818 | I32: 1,060 | J32: 1,392 | K32: 1,778 | L32: 1,309 | M32: 1,633 | N32: 2,045 | O32: 2,203 | P32: 2,289 | Q32: 2,057 | R32: 1,364 | S32: 1,283 | T32: 1,578 | U32: 1,631 | V32: 1,610 | W32: 1,667 | X32: 1,725 | Y32: 1,783 | Z32: 1,846
A33: Sri Lanka | B33: 19 | C33: 19 | D33: 19 | E33: 20 | F33: 22 | G33: 24 | H33: 28 | I33: 32 | J33: 37 | K33: 47 | L33: 48 | M33: 57 | N33: 65 | O33: 68 | P33: 74 | Q33: 79 | R33: 81 | S33: 82 | T33: 87 | U33: 88 | V33: 84 | W33: 90 | X33: 96 | Y33: 103 | Z33: 110
A34: Şili | B34: 75 | C34: 78 | D34: 71 | E34: 70 | F34: 76 | G34: 99 | H34: 123 | I34: 155 | J34: 174 | K34: 179 | L34: 173 | M34: 218 | N34: 252 | O34: 267 | P34: 278 | Q34: 260 | R34: 244 | S34: 250 | T34: 278 | U34: 298 | V34: 296 | W34: 314 | X34: 330 | Y34: 347 | Z34: 364
A35: Tayland | B35: 127 | C35: 126 | D35: 120 | E35: 134 | F35: 152 | G35: 173 | H35: 189 | I35: 222 | J35: 263 | K35: 291 | L35: 282 | M35: 341 | N35: 371 | O35: 398 | P35: 420 | Q35: 407 | R35: 401 | S35: 412 | T35: 455 | U35: 487 | V35: 517 | W35: 547 | X35: 578 | Y35: 610 | Z35: 645
A36: TÜRKİYE | B36: 256 | C36: 273 | D36: 200 | E36: 238 | F36: 312 | G36: 405 | H36: 501 | I36: 551 | J36: 675 | K36: 765 | L36: 644 | M36: 772 | N36: 832 | O36: 874 | P36: 950 | Q36: 934 | R36: 859 | S36: 863 | T36: 852 | U36: 766 | V36: 706 | W36: 810 | X36: 930 | Y36: 988 | Z36: 1,044
A37: Yunanistan | B37: 149 | C37: 132 | D37: 136 | E37: 154 | F37: 202 | G37: 241 | H37: 248 | I37: 274 | J37: 319 | K37: 356 | L37: 331 | M37: 300 | N37: 288 | O37: 246 | P37: 240 | Q37: 237 | R37: 197 | S37: 195 | T37: 203 | U37: 219 | V37: 220 | W37: 231 | X37: 240 | Y37: 248 | Z37: 256
A38: Kaynak: IMF
A39: (*) Gölgeli hücreler IMF tahmini rakamlarını vermektedir.
A40: Güncelleme tarihi: 30.04.2019
A42: İÇİNDEKİLER SAYFASI

Sheet III.2
A1: III.2. KİŞİBAŞI GSYH (dolar)
A3: Ülkeler | B3: 1999 | C3: 2000 | D3: 2001 | E3: 2002 | F3: 2003 | G3: 2004 | H3: 2005 | I3: 2006 | J3: 2007 | K3: 2008 | L3: 2009 | M3: 2010 | N3: 2011 | O3: 2012 | P3: 2013 | Q3: 2014 (*) | R3: 2015 (*) | S3: 2016(*) | T3: 2017(*) | U3: 2018(*) | V3: 2019(*) | W3: 2020(*) | X3: 2021(*) | Y3: 2022(*) | Z3: 2023(*)
A4: Almanya | B4: 27,053.85 | C4: 24,003.79 | D4: 23,945.53 | E4: 25,565.13 | F4: 30,779.57 | G4: 34,646.67 | H4: 35,236.68 | I4: 37,018.78 | J4: 42,531.25 | K4: 46,681.07 | L4: 42,576.21 | M4: 42,641.42 | N4: 46,852.93 | O4: 44,089.28 | P4: 46,544.95 | Q4: 48,218.87 | R4: 41,415.17 | S4: 42,460.69 | T4: 44,770.58 | U4: 48,264.01 | V4: 47,785.51 | W4: 50,110.17 | X4: 52,289.02 | Y4: 54,645.10 | Z4: 56,948.10
A5: ABD | B5: 34,494.54 | C5: 36,317.74 | D5: 37,101.10 | E5: 37,971.28 | F5: 39,411.55 | G5: 41,629.86 | H5: 44,025.56 | I5: 46,213.51 | J5: 47,869.24 | K5: 48,283.41 | L5: 47,007.67 | M5: 48,402.58 | N5: 49,825.50 | O5: 51,556.17 | P5: 53,061.24 | Q5: 54,992.73 | R5: 56,770.40 | S5: 57,876.63 | T5: 59,895.00 | U5: 62,605.59 | V5: 64,767.44 | W5: 66,899.87 | X5: 69,024.58 | Y5: 71,122.21 | Z5: 73,267.80
A6: Arjantin | B6: 8,452.88 | C6: 8,386.59 | D6: 7,851.66 | E6: 2,898.29 | F6: 3,648.06 | G6: 4,314.40 | H6: 5,163.55 | I6: 5,976.08 | J6: 7,315.73 | K6: 9,146.79 | L6: 8,337.81 | M6: 10,412.95 | N6: 12,787.81 | O6: 13,889.79 | P6: 14,488.83 | Q6: 13,208.83 | R6: 14,895.32 | S6: 12,772.87 | T6: 14,588.01 | U6: 11,626.92 | V6: 10,604.15 | W6: 11,313.87 | X6: 12,178.42 | Y6: 12,983.08 | Z6: 13,782.28
A7: Avusturya | B7: 27,209.31 | C7: 24,631.58 | D7: 24,554.25 | E7: 26,482.84 | F7: 32,290.95 | G7: 36,871.58 | H7: 38,477.27 | I7: 40,672.61 | J7: 46,922.42 | K7: 51,953.56 | L7: 48,095.40 | M7: 46,958.52 | N7: 51,441.11 | O7: 48,615.82 | P7: 50,748.09 | Q7: 51,814.37 | R7: 44,266.41 | S7: 45,105.75 | T7: 47,383.87 | U7: 51,509.03 | V7: 51,348.95 | W7: 53,450.66 | X7: 55,358.00 | Y7: 57,349.66 | Z7: 59,354.36
A8: Brezilya | B8: 3,502.75 | C8: 3,771.94 | D8: 3,177.83 | E8: 2,853.57 | F8: 3,086.09 | G8: 3,655.33 | H8: 4,814.67 | I8: 5,914.46 | J8: 7,385.33 | K8: 8,873.19 | L8: 8,641.66 | M8: 11,327.46 | N8: 13,295.72 | O8: 12,426.69 | P8: 12,357.57 | Q8: 12,176.25 | R8: 8,846.38 | S8: 8,752.33 | T8: 9,928.23 | U8: 8,967.66 | V8: 9,343.55 | W8: 9,765.50 | X8: 10,145.32 | Y8: 10,546.89 | Z8: 10,969.01
A9: Çin | B9: 872.23 | C9: 958.57 | D9: 1,053.13 | E9: 1,150.23 | F9: 1,293.12 | G9: 1,512.64 | H9: 1,765.73 | I9: 2,110.56 | J9: 2,703.00 | K9: 3,467.03 | L9: 3,837.90 | M9: 4,524.06 | N9: 5,582.89 | O9: 6,329.46 | P9: 7,080.83 | Q9: 7,701.69 | R9: 8,166.76 | S9: 8,115.83 | T9: 8,677.40 | U9: 9,608.42 | V9: 10,153.39 | W9: 11,013.68 | X9: 11,935.03 | Y9: 12,900.46 | Z9: 13,969.54
A10: Danimarka | B10: 33,492.35 | C10: 30,798.72 | D10: 30,806.61 | E10: 33,275.56 | F10: 40,512.05 | G10: 46,571.28 | H10: 48,872.10 | I10: 52,121.25 | J10: 58,641.19 | K10: 64,531.12 | L10: 58,286.54 | M10: 58,177.16 | N10: 61,864.09 | O10: 58,623.41 | P10: 61,325.58 | Q10: 62,729.50 | R10: 53,478.50 | S10: 54,665.22 | T10: 57,380.20 | U10: 60,692.42 | V10: 59,999.38 | W10: 62,107.72 | X10: 64,243.40 | Y10: 66,822.52 | Z10: 69,706.52
A11: Endonezya | B11: 829.57 | C11: 870.15 | D11: 834.14 | E11: 1,002.91 | F11: 1,186.85 | G11: 1,280.70 | H11: 1,403.88 | I11: 1,764.79 | J11: 2,064.23 | K11: 2,418.04 | L11: 2,464.96 | M11: 3,178.13 | N11: 3,688.53 | O11: 3,744.53 | P11: 3,684.00 | Q11: 3,533.61 | R11: 3,367.69 | S11: 3,605.72 | T11: 3,884.72 | U11: 3,870.56 | V11: 4,123.30 | W11: 4,479.50 | X11: 4,787.08 | Y11: 5,074.95 | Z11: 5,381.09
A12: Filipinler | B12: 1,078.00 | C12: 1,051.97 | D12: 970.38 | E12: 1,013.42 | F12: 1,024.77 | G12: 1,093.48 | H12: 1,208.93 | I12: 1,405.21 | J12: 1,683.69 | K12: 1,941.00 | L12: 1,851.07 | M12: 2,155.41 | N12: 2,379.94 | O12: 2,591.63 | P12: 2,768.47 | Q12: 2,849.27 | R12: 2,882.77 | S12: 2,953.21 | T12: 2,988.90 | U12: 3,103.62 | V12: 3,280.38 | W12: 3,507.88 | X12: 3,748.64 | Y12: 4,039.72 | Z12: 4,355.49
A13: Finlandiya | B13: 26,242.13 | C13: 24,342.60 | D13: 24,963.42 | E13: 26,946.52 | F13: 32,915.02 | G13: 37,736.55 | H13: 39,103.00 | I13: 41,238.71 | J13: 48,463.31 | K13: 53,785.14 | L13: 47,337.94 | M13: 46,391.71 | N13: 50,960.18 | O13: 47,553.40 | P13: 49,766.13 | Q13: 50,087.85 | R13: 42,505.91 | S13: 43,582.43 | T13: 45,937.75 | U13: 49,845.02 | V13: 49,897.01 | W13: 52,008.07 | X13: 53,848.00 | Y13: 55,681.07 | Z13: 57,604.32
A14: Hindistan | B14: 462.22 | C14: 462.98 | D14: 471.70 | E14: 491.99 | F14: 571.56 | G14: 656.52 | H14: 747.34 | I14: 837.46 | J14: 1,076.84 | K14: 1,048.74 | L14: 1,153.19 | M14: 1,422.93 | N14: 1,497.75 | O14: 1,481.56 | P14: 1,485.60 | Q14: 1,610.36 | R14: 1,639.69 | S14: 1,761.63 | T14: 2,014.01 | U14: 2,036.20 | V14: 2,198.59 | W14: 2,378.67 | X14: 2,578.11 | Y14: 2,791.31 | Z14: 3,023.39
A15: İngiltere | B15: 28,435.06 | C15: 28,043.87 | D15: 27,510.33 | E15: 29,912.99 | F15: 34,302.42 | G15: 40,111.75 | H15: 41,842.70 | I15: 44,403.81 | J15: 50,315.56 | K15: 47,469.38 | L15: 38,601.32 | M15: 39,122.19 | N15: 41,649.66 | O15: 42,023.10 | P15: 42,981.25 | Q15: 47,003.88 | R15: 44,494.86 | S15: 40,657.86 | T15: 39,975.38 | U15: 42,558.00 | V15: 42,310.04 | W15: 43,522.46 | X15: 44,771.81 | Y15: 46,245.29 | Z15: 47,836.09
A16: İrlanda | B16: 26,189.63 | C16: 26,151.62 | D16: 28,079.52 | E16: 32,438.47 | F16: 40,921.16 | G16: 47,336.15 | H16: 50,475.60 | I16: 53,762.86 | J16: 60,812.43 | K16: 61,193.20 | L16: 52,100.83 | M16: 48,716.46 | N16: 51,932.00 | O16: 48,892.23 | P16: 51,550.93 | Q16: 55,534.10 | R16: 61,702.51 | S16: 63,289.73 | T16: 68,722.58 | U16: 76,098.59 | V16: 76,911.15 | W16: 80,862.20 | X16: 84,585.73 | Y16: 88,561.33 | Z16: 92,283.03
A17: İspanya | B17: 15,774.44 | C17: 14,721.70 | D17: 15,365.80 | E17: 17,075.47 | F17: 21,528.29 | G17: 24,981.31 | H17: 26,547.91 | I17: 28,530.04 | J17: 32,748.09 | K17: 35,725.35 | L17: 32,412.77 | M17: 30,803.47 | N17: 31,868.86 | O17: 28,583.74 | P17: 29,237.72 | Q17: 29,686.68 | R17: 25,849.69 | S17: 26,681.82 | T17: 28,377.76 | U17: 30,697.26 | V17: 30,631.33 | W17: 31,943.58 | X17: 33,135.13 | Y17: 34,414.48 | Z17: 35,663.55
A18: İsrail | B18: 19,127.56 | C18: 21,038.05 | D18: 20,302.39 | E18: 18,433.05 | F18: 18,963.27 | G18: 19,885.35 | H18: 20,559.21 | I18: 21,836.34 | J18: 24,907.92 | K18: 29,557.07 | L18: 27,726.36 | M18: 30,670.34 | N18: 33,713.12 | O18: 32,556.96 | P18: 36,359.93 | Q18: 37,750.29 | R18: 35,869.73 | S18: 37,382.96 | T18: 40,560.26 | U18: 41,644.08 | V18: 42,144.01 | W18: 43,765.33 | X18: 45,271.64 | Y18: 46,980.92 | Z18: 48,710.10
A19: İsveç | B19: 30,601.86 | C19: 29,287.80 | D19: 26,970.43 | E19: 29,566.18 | F19: 36,936.66 | G19: 42,407.83 | H19: 43,048.11 | I19: 46,145.74 | J19: 53,185.65 | K19: 55,592.67 | L19: 46,047.31 | M19: 51,925.60 | N19: 59,454.40 | O19: 56,978.61 | P19: 60,069.35 | Q19: 58,930.15 | R19: 50,565.10 | S19: 51,245.36 | T19: 52,924.37 | U19: 53,873.38 | V19: 53,004.47 | W19: 55,340.25 | X19: 57,584.10 | Y19: 60,604.84 | Z19: 63,756.00
A20: İtalya | B20: 21,967.88 | C20: 20,112.61 | D20: 20,419.54 | E20: 22,288.64 | F20: 27,488.53 | G20: 31,239.99 | H20: 31,958.53 | I20: 33,339.75 | J20: 37,685.36 | K20: 40,689.11 | L20: 36,849.94 | M20: 35,657.65 | N20: 38,003.36 | O20: 34,469.65 | P20: 35,219.82 | Q20: 35,456.68 | R20: 30,153.41 | S20: 30,824.30 | T20: 32,132.47 | U20: 34,260.34 | V20: 33,352.93 | W20: 34,428.48 | X20: 35,300.30 | Y20: 36,278.63 | Z20: 37,226.68
A21: Japonya | B21: 36,039.08 | C21: 38,535.59 | D21: 33,850.88 | E21: 32,300.67 | F21: 34,831.20 | G21: 37,696.72 | H21: 37,223.77 | I21: 35,463.87 | J21: 35,342.48 | K21: 39,453.49 | L21: 41,014.19 | M21: 44,673.61 | N21: 48,168.80 | O21: 48,632.90 | P21: 40,490.16 | Q21: 38,156.33 | R21: 34,568.93 | S21: 38,804.86 | T21: 38,344.02 | U21: 39,305.78 | V21: 41,021.25 | W21: 43,700.82 | X21: 46,357.59 | Y21: 49,163.89 | Z21: 52,140.07
A22: Kanada | B22: 22,339.86 | C22: 24,301.11 | D22: 23,860.72 | E22: 24,294.89 | F22: 28,337.81 | G22: 32,182.89 | H22: 36,428.39 | I22: 40,557.36 | J22: 44,714.78 | K22: 46,775.92 | L22: 40,934.50 | M22: 47,625.00 | N22: 52,271.54 | O22: 52,753.35 | P22: 52,726.05 | Q22: 50,958.06 | R22: 43,615.80 | S22: 42,446.55 | T22: 45,223.97 | U22: 46,260.71 | V22: 46,419.23 | W22: 48,451.24 | X22: 50,438.94 | Y22: 52,620.59 | Z22: 54,879.52
A23: Kolombiya | B23: 2,588.92 | C23: 2,455.11 | D23: 2,383.31 | E23: 2,347.51 | F23: 2,240.21 | G23: 2,737.58 | H23: 3,384.61 | I23: 3,717.55 | J23: 4,684.01 | K23: 5,444.82 | L23: 5,170.53 | M23: 6,285.20 | N23: 7,264.11 | O23: 7,950.38 | P23: 8,103.49 | Q23: 7,998.84 | R23: 6,088.68 | S23: 5,799.62 | T23: 6,325.49 | U23: 6,684.44 | V23: 6,680.89 | W23: 6,933.32 | X23: 7,251.52 | Y23: 7,588.89 | Z23: 7,949.82
A24: Kore | B24: 10,409.36 | C24: 11,947.60 | D24: 11,252.87 | E24: 12,782.54 | F24: 14,209.34 | G24: 15,907.68 | H24: 18,639.52 | I24: 20,888.38 | J24: 23,060.71 | K24: 20,430.64 | L24: 18,291.92 | M24: 22,086.95 | N24: 24,079.79 | O24: 24,358.78 | P24: 25,890.02 | Q24: 27,811.37 | R24: 27,105.08 | S24: 27,608.25 | T24: 29,749.80 | U24: 31,345.62 | V24: 31,936.73 | W24: 33,490.77 | X24: 35,029.80 | Y24: 36,751.68 | Z24: 38,612.42
A25: Lüksemburg | B25: 49,539.61 | C25: 49,173.44 | D25: 48,489.55 | E25: 53,348.37 | F25: 66,045.43 | G25: 76,318.34 | H25: 81,104.54 | I25: 90,494.69 | J25: 107,013.82 | K25: 115,987.04 | L25: 104,357.92 | M25: 106,184.61 | N25: 117,340.49 | O25: 108,047.82 | P25: 114,998.32 | Q25: 120,449.61 | R25: 101,665.00 | S25: 102,361.02 | T25: 105,712.98 | U25: 114,234.24 | V25: 112,846.46 | W25: 116,510.09 | X25: 119,582.85 | Y25: 122,822.84 | Z25: 125,635.03
A26: Macaristan | B26: 4,795.71 | C26: 4,628.31 | D26: 5,276.60 | E26: 6,655.22 | F26: 8,413.01 | G26: 10,286.31 | H26: 11,193.84 | I26: 11,441.42 | J26: 13,893.38 | K26: 15,729.06 | L26: 13,019.04 | M26: 13,073.96 | N26: 14,097.94 | O26: 12,873.20 | P26: 13,646.27 | Q26: 14,182.70 | R26: 12,487.23 | S26: 12,818.72 | T26: 14,264.25 | U26: 15,923.82 | V26: 17,296.33 | W26: 18,251.32 | X26: 19,383.71 | Y26: 20,278.41 | Z26: 21,294.62
A27: Malezya | B27: 3,710.07 | C27: 4,286.83 | D27: 4,130.38 | E27: 4,379.64 | F27: 4,673.91 | G27: 5,171.42 | H27: 5,599.05 | I27: 6,264.42 | J27: 7,378.59 | K27: 8,646.57 | L27: 7,439.44 | M27: 8,920.48 | N27: 10,252.59 | O27: 10,655.46 | P27: 10,699.66 | Q27: 11,008.87 | R27: 9,511.81 | S27: 9,380.98 | T27: 9,827.67 | U27: 10,941.75 | V27: 11,385.11 | W27: 12,100.44 | X27: 12,826.16 | Y27: 13,632.21 | Z27: 14,489.70
A28: Meksika | B28: 6,019.94 | C28: 7,016.24 | D28: 7,409.68 | E28: 7,465.92 | F28: 6,964.63 | G28: 7,383.02 | H28: 8,189.16 | I28: 8,997.27 | J28: 9,588.51 | K28: 9,973.02 | L28: 7,975.42 | M28: 9,258.20 | N28: 10,204.51 | O28: 10,261.05 | P28: 10,764.33 | Q28: 10,980.99 | R28: 9,673.64 | S28: 8,814.92 | T28: 9,376.99 | U28: 9,807.44 | V28: 9,858.30 | W28: 10,211.14 | X28: 10,593.17 | Y28: 11,012.38 | Z28: 11,461.32
A29: Mısır | B29: 1,532.89 | C29: 1,642.63 | D29: 1,569.04 | E29: 1,356.68 | F29: 1,254.10 | G29: 1,195.37 | H29: 1,330.46 | I29: 1,563.48 | J29: 1,861.05 | K29: 2,270.36 | L29: 2,578.05 | M29: 2,921.76 | N29: 3,077.34 | O29: 3,383.11 | P29: 3,400.32 | Q29: 3,524.42 | R29: 3,731.18 | S29: 3,686.07 | T29: 2,495.02 | U29: 2,573.29 | V29: 3,019.72 | W29: 3,264.86 | X29: 3,325.05 | Y29: 3,394.54 | Z29: 3,469.99
A30: Peru | B30: 1,929.71 | C30: 1,962.98 | D30: 1,957.52 | E30: 2,036.38 | F30: 2,178.49 | G30: 2,429.34 | H30: 2,695.73 | I30: 3,121.91 | J30: 3,587.80 | K30: 4,227.53 | L30: 4,165.80 | M30: 5,051.26 | N30: 5,733.22 | O30: 6,402.12 | P30: 6,632.22 | Q30: 6,561.78 | R30: 6,147.84 | S30: 6,175.88 | T30: 6,728.09 | U30: 7,002.09 | V30: 7,141.91 | W30: 7,438.48 | X30: 7,770.52 | Y30: 8,140.97 | Z30: 8,533.72
A31: Polonya | B31: 4,339.60 | C31: 4,476.25 | D31: 4,978.05 | E31: 5,195.28 | F31: 5,691.34 | G31: 6,684.46 | H31: 8,019.77 | I31: 9,035.26 | J31: 11,264.72 | K31: 14,004.76 | L31: 11,541.35 | M31: 12,601.92 | N31: 13,886.83 | O31: 13,158.07 | P31: 13,777.30 | Q31: 14,342.83 | R31: 12,565.74 | S31: 12,427.65 | T31: 13,867.61 | U31: 15,430.93 | V31: 15,629.88 | W31: 16,957.14 | X31: 18,340.34 | Y31: 19,892.36 | Z31: 21,582.30
A32: Rusya | B32: 1,427.75 | C32: 1,899.41 | D32: 2,251.27 | E32: 2,547.87 | F32: 3,186.72 | G32: 4,392.86 | H32: 5,693.94 | I32: 7,395.82 | J32: 9,721.86 | K32: 12,429.09 | L32: 9,149.11 | M32: 11,406.19 | N32: 14,271.68 | O32: 15,358.09 | P32: 15,942.14 | Q32: 14,305.57 | R32: 9,477.56 | S32: 8,909.55 | T32: 10,961.99 | U32: 11,326.77 | V32: 11,191.29 | W32: 11,596.73 | X32: 12,006.78 | Y32: 12,430.17 | Z32: 12,889.88
A33: Sri Lanka | B33: 992.64 | C33: 1,031.36 | D33: 983.97 | E33: 1,027.57 | F33: 1,125.19 | G33: 1,221.08 | H33: 1,431.30 | I33: 1,645.07 | J33: 1,869.83 | K33: 2,336.44 | L33: 2,396.63 | M33: 2,807.66 | N33: 3,212.76 | O33: 3,349.78 | P33: 3,608.29 | Q33: 3,818.40 | R33: 3,842.25 | S33: 3,856.82 | T33: 4,073.44 | U33: 4,067.85 | V33: 3,837.11 | W33: 4,054.43 | X33: 4,291.53 | Y33: 4,546.30 | Z33: 4,809.55
A34: Şili | B34: 4,952.69 | C34: 5,071.56 | D34: 4,572.85 | E34: 4,443.66 | F34: 4,770.31 | G34: 6,192.91 | H34: 7,600.08 | I34: 9,473.01 | J34: 10,507.89 | K34: 10,749.24 | L34: 10,219.73 | M34: 12,793.55 | N34: 14,610.75 | O34: 15,307.77 | P34: 15,804.36 | Q34: 14,643.85 | R34: 13,571.97 | S34: 13,775.71 | T34: 15,127.76 | U34: 16,078.71 | V34: 15,777.72 | W34: 16,564.42 | X34: 17,243.92 | Y34: 17,933.99 | Z34: 18,649.62
A35: Tayland | B35: 2,057.32 | C35: 2,030.73 | D35: 1,921.67 | E35: 2,133.12 | F35: 2,404.94 | G35: 2,714.64 | H35: 2,955.79 | I35: 3,442.39 | J35: 4,058.39 | K35: 4,471.12 | L35: 4,298.30 | M35: 5,174.53 | N35: 5,600.64 | O35: 5,979.22 | P35: 6,296.19 | Q35: 6,079.69 | R35: 5,967.67 | S35: 6,113.80 | T35: 6,730.56 | U35: 7,187.19 | V35: 7,607.67 | W35: 8,048.58 | X35: 8,485.68 | Y35: 8,952.21 | Z35: 9,458.70
A36: TÜRKİYE | B36: 4,019.00 | C36: 4,218.86 | D36: 3,053.28 | E36: 3,589.39 | F36: 4,642.90 | G36: 5,952.83 | H36: 7,277.94 | I36: 7,898.99 | J36: 9,562.94 | K36: 10,691.76 | L36: 8,881.76 | M36: 10,475.57 | N36: 11,140.95 | O36: 11,552.69 | P36: 12,395.37 | Q36: 12,022.18 | R36: 10,914.89 | S36: 10,817.39 | T36: 10,537.19 | U36: 9,346.23 | V36: 8,506.56 | W36: 9,632.93 | X36: 10,932.91 | Y36: 11,476.15 | Z36: 11,994.34
A37: Yunanistan | B37: 13,901.67 | C37: 12,268.25 | D37: 12,577.02 | E37: 14,171.84 | F37: 18,530.22 | G37: 22,007.85 | H37: 22,624.07 | I37: 24,857.21 | J37: 28,899.95 | K37: 32,198.01 | L37: 29,819.23 | M37: 26,972.87 | N37: 25,896.93 | O37: 22,171.91 | P37: 21,805.26 | Q37: 21,726.89 | R37: 18,114.72 | S37: 18,110.87 | T37: 18,897.64 | U37: 20,407.88 | V37: 20,571.75 | W37: 21,686.32 | X37: 22,668.02 | Y37: 23,610.42 | Z37: 24,448.36
A38: Kaynak: IMF
A39: (*) Gölgeli hücreler IMF tahmini rakamlarını vermektedir.
A40: Güncelleme tarihi: 30.04.2019
A42: İÇİNDEKİLER SAYFASI

Sheet III.3
A1: III.3. BÜYÜME (%)
A3: Ülkeler | B3: 1999 | C3: 2000 | D3: 2001 | E3: 2002 | F3: 2003 | G3: 2004 | H3: 2005 | I3: 2006 | J3: 2007 | K3: 2008 | L3: 2009 | M3: 2010 | N3: 2011 | O3: 2012 | P3: 2013 | Q3: 2014 | R3: 2015 | S3: 2016 | T3: 2017 | U3: 2018(*) | V3: 2019(*) | W3: 2020(*) | X3: 2021(*) | Y3: 2022(*) | Z3: 2023(*)
A4: Almanya | B4: 1.84 | C4: 3.20 | D4: 1.83 | E4: 0.03 | F4: -0.72 | G4: 0.70 | H4: 0.88 | I4: 3.88 | J4: 3.37 | K4: 0.82 | L4: -5.56 | M4: 3.94 | N4: 3.72 | O4: 0.69 | P4: 0.60 | Q4: 2.18 | R4: 1.48 | S4: 2.16 | T4: 2.46 | U4: 1.45 | V4: 0.75 | W4: 1.44 | X4: 1.50 | Y4: 1.44 | Z4: 1.30
A5: ABD | B5: 4.75 | C5: 4.13 | D5: 1.00 | E5: 1.74 | F5: 2.86 | G5: 3.80 | H5: 3.51 | I5: 2.86 | J5: 1.88 | K5: -0.14 | L5: -2.54 | M5: 2.56 | N5: 1.55 | O5: 2.25 | P5: 1.84 | Q5: 2.45 | R5: 2.88 | S5: 1.57 | T5: 2.22 | U5: 2.86 | V5: 2.33 | W5: 1.87 | X5: 1.77 | Y5: 1.64 | Z5: 1.62
A6: Arjantin | B6: -3.39 | C6: -0.79 | D6: -4.41 | E6: -10.89 | F6: 8.96 | G6: 8.91 | H6: 8.85 | I6: 8.05 | J6: 9.01 | K6: 4.06 | L6: -5.92 | M6: 10.13 | N6: 6.00 | O6: -1.03 | P6: 2.41 | Q6: -2.51 | R6: 2.73 | S6: -2.08 | T6: 2.67 | U6: -2.52 | V6: -1.20 | W6: 2.16 | X6: 3.22 | Y6: 3.40 | Z6: 3.65
A7: Avusturya | B7: 3.56 | C7: 3.38 | D7: 1.27 | E7: 1.65 | F7: 0.94 | G7: 2.74 | H7: 2.24 | I7: 3.45 | J7: 3.73 | K7: 1.46 | L7: -3.77 | M7: 1.84 | N7: 2.92 | O7: 0.68 | P7: 0.03 | Q7: 0.66 | R7: 1.14 | S7: 2.04 | T7: 2.55 | U7: 2.71 | V7: 1.98 | W7: 1.70 | X7: 1.55 | Y7: 1.46 | Z7: 1.46
A8: Brezilya | B8: 0.47 | C8: 4.38 | D8: 1.38 | E8: 3.05 | F8: 1.14 | G8: 5.76 | H8: 3.19 | I8: 3.96 | J8: 6.06 | K8: 5.10 | L8: -0.12 | M8: 7.55 | N8: 3.99 | O8: 1.93 | P8: 3.01 | Q8: 0.51 | R8: -3.55 | S8: -3.31 | T8: 1.06 | U8: 1.11 | V8: 2.06 | W8: 2.53 | X8: 2.22 | Y8: 2.22 | Z8: 2.22
A9: Çin | B9: 7.60 | C9: 8.40 | D9: 8.30 | E9: 9.10 | F9: 10.00 | G9: 10.10 | H9: 11.30 | I9: 12.70 | J9: 14.20 | K9: 9.60 | L9: 9.20 | M9: 10.61 | N9: 9.50 | O9: 7.90 | P9: 7.80 | Q9: 7.30 | R9: 6.90 | S9: 6.73 | T9: 6.76 | U9: 6.57 | V9: 6.27 | W9: 6.12 | X9: 6.00 | Y9: 5.75 | Z9: 5.60
A10: Danimarka | B10: 2.95 | C10: 3.75 | D10: 0.82 | E10: 0.47 | F10: 0.39 | G10: 2.67 | H10: 2.34 | I10: 3.91 | J10: 0.91 | K10: -0.51 | L10: -4.91 | M10: 1.87 | N10: 1.34 | O10: 0.23 | P10: 0.94 | Q10: 1.62 | R10: 2.34 | S10: 2.40 | T10: 2.27 | U10: 1.22 | V10: 1.73 | W10: 1.80 | X10: 1.63 | Y10: 1.61 | Z10: 1.60
A11: Endonezya | B11: 0.79 | C11: 4.98 | D11: 3.64 | E11: 4.50 | F11: 4.78 | G11: 5.03 | H11: 5.69 | I11: 5.50 | J11: 6.35 | K11: 7.44 | L11: 4.70 | M11: 6.38 | N11: 6.17 | O11: 6.03 | P11: 5.56 | Q11: 5.01 | R11: 4.88 | S11: 5.03 | T11: 5.07 | U11: 5.17 | V11: 5.24 | W11: 5.17 | X11: 5.21 | Y11: 5.29 | Z11: 5.31
A12: Filipinler | B12: 3.08 | C12: 4.41 | D12: 2.89 | E12: 3.65 | F12: 4.97 | G12: 6.70 | H12: 4.78 | I12: 5.24 | J12: 6.62 | K12: 4.15 | L12: 1.15 | M12: 7.63 | N12: 3.66 | O12: 6.68 | P12: 7.06 | Q12: 6.15 | R12: 6.07 | S12: 6.88 | T12: 6.69 | U12: 6.20 | V12: 6.48 | W12: 6.61 | X12: 6.74 | Y12: 6.72 | Z12: 6.77
A13: Finlandiya | B13: 4.44 | C13: 5.64 | D13: 2.58 | E13: 1.68 | F13: 1.99 | G13: 3.93 | H13: 2.78 | I13: 4.06 | J13: 5.19 | K13: 0.72 | L13: -8.27 | M13: 2.99 | N13: 2.57 | O13: -1.43 | P13: -0.76 | Q13: -0.63 | R13: 0.14 | S13: 2.48 | T13: 2.80 | U13: 2.43 | V13: 1.94 | W13: 1.73 | X13: 1.39 | Y13: 1.26 | Z13: 1.26
A14: Hindistan | B14: 8.46 | C14: 3.98 | D14: 4.94 | E14: 3.91 | F14: 7.94 | G14: 7.85 | H14: 9.29 | I14: 9.26 | J14: 9.80 | K14: 3.89 | L14: 8.48 | M14: 10.26 | N14: 6.64 | O14: 5.46 | P14: 6.39 | Q14: 7.41 | R14: 8.00 | S14: 8.17 | T14: 7.17 | U14: 7.05 | V14: 7.26 | W14: 7.49 | X14: 7.74 | Y14: 7.73 | Z14: 7.74
A15: İngiltere | B15: 3.21 | C15: 3.45 | D15: 2.84 | E15: 2.50 | F15: 3.34 | G15: 2.35 | H15: 3.15 | I15: 2.55 | J15: 2.55 | K15: -0.35 | L15: -4.25 | M15: 1.71 | N15: 1.65 | O15: 1.45 | P15: 2.05 | Q15: 2.95 | R15: 2.35 | S15: 1.79 | T15: 1.82 | U15: 1.40 | V15: 1.18 | W15: 1.40 | X15: 1.54 | Y15: 1.56 | Z15: 1.59
A16: İrlanda | B16: 10.52 | C16: 9.48 | D16: 5.35 | E16: 5.95 | F16: 2.98 | G16: 6.64 | H16: 5.68 | I16: 5.05 | J16: 5.26 | K16: -4.41 | L16: -5.05 | M16: 1.88 | N16: 3.68 | O16: 0.19 | P16: 1.34 | Q16: 8.75 | R16: 25.01 | S16: 4.90 | T16: 7.21 | U16: 6.81 | V16: 4.15 | W16: 3.45 | X16: 3.13 | Y16: 2.87 | Z16: 2.67
A17: İspanya | B17: 4.75 | C17: 5.05 | D17: 4.00 | E17: 2.88 | F17: 3.19 | G17: 3.16 | H17: 3.72 | I17: 4.18 | J17: 3.77 | K17: 1.12 | L17: -3.57 | M17: 0.02 | N17: -1.00 | O17: -2.93 | P17: -1.71 | Q17: 1.38 | R17: 3.65 | S17: 3.17 | T17: 2.98 | U17: 2.53 | V17: 2.13 | W17: 1.88 | X17: 1.75 | Y17: 1.67 | Z17: 1.69
A18: İsrail | B18: 3.54 | C18: 8.87 | D18: 0.15 | E18: -0.16 | F18: 1.11 | G18: 4.98 | H18: 4.14 | I18: 5.77 | J18: 6.02 | K18: 3.18 | L18: 1.33 | M18: 5.54 | N18: 5.15 | O18: 2.21 | P18: 4.28 | Q18: 3.91 | R18: 2.59 | S18: 4.01 | T18: 3.46 | U18: 3.28 | V18: 3.30 | W18: 3.30 | X18: 3.13 | Y18: 3.11 | Z18: 3.05
A19: İsveç | B19: 4.49 | C19: 4.75 | D19: 1.57 | E19: 2.08 | F19: 2.36 | G19: 4.31 | H19: 2.82 | I19: 4.70 | J19: 3.41 | K19: -0.56 | L19: -5.20 | M19: 5.99 | N19: 2.68 | O19: -0.30 | P19: 1.24 | Q19: 2.60 | R19: 4.46 | S19: 2.68 | T19: 2.11 | U19: 2.34 | V19: 1.17 | W19: 1.78 | X19: 1.87 | Y19: 2.02 | Z19: 2.02
A20: İtalya | B20: 1.56 | C20: 3.71 | D20: 1.77 | E20: 0.25 | F20: 0.15 | G20: 1.58 | H20: 0.95 | I20: 2.01 | J20: 1.47 | K20: -1.05 | L20: -5.48 | M20: 1.69 | N20: 0.58 | O20: -2.82 | P20: -1.73 | Q20: 0.11 | R20: 0.92 | S20: 1.12 | T20: 1.60 | U20: 0.88 | V20: 0.09 | W20: 0.91 | X20: 0.66 | Y20: 0.61 | Z20: 0.58
A21: Japonya | B21: -0.25 | C21: 2.78 | D21: 0.41 | E21: 0.12 | F21: 1.53 | G21: 2.21 | H21: 1.66 | I21: 1.42 | J21: 1.65 | K21: -1.09 | L21: -5.42 | M21: 4.19 | N21: -0.12 | O21: 1.50 | P21: 2.00 | Q21: 0.38 | R21: 1.22 | S21: 0.61 | T21: 1.93 | U21: 0.81 | V21: 0.98 | W21: 0.45 | X21: 0.54 | Y21: 0.51 | Z21: 0.53
A22: Kanada | B22: 5.16 | C22: 5.18 | D22: 1.79 | E22: 3.02 | F22: 1.80 | G22: 3.09 | H22: 3.20 | I22: 2.64 | J22: 2.07 | K22: 1.01 | L22: -2.93 | M22: 3.09 | N22: 3.15 | O22: 1.76 | P22: 2.33 | Q22: 2.87 | R22: 0.69 | S22: 1.11 | T22: 2.98 | U22: 1.83 | V22: 1.46 | W22: 1.93 | X22: 1.79 | Y22: 1.64 | Z22: 1.60
A23: Kolombiya | B23: -4.20 | C23: 2.93 | D23: 1.68 | E23: 2.50 | F23: 3.92 | G23: 5.33 | H23: 4.71 | I23: 6.78 | J23: 6.85 | K23: 3.26 | L23: 1.21 | M23: 4.35 | N23: 7.36 | O23: 3.90 | P23: 4.57 | Q23: 4.73 | R23: 2.96 | S23: 2.09 | T23: 1.35 | U23: 2.66 | V23: 3.54 | W23: 3.65 | X23: 3.75 | Y23: 3.75 | Z23: 3.75
A24: Kore | B24: 11.31 | C24: 8.92 | D24: 4.53 | E24: 7.43 | F24: 2.93 | G24: 4.90 | H24: 3.92 | I24: 5.18 | J24: 5.46 | K24: 2.83 | L24: 0.71 | M24: 6.50 | N24: 3.68 | O24: 2.29 | P24: 2.90 | Q24: 3.34 | R24: 2.79 | S24: 2.93 | T24: 3.06 | U24: 2.67 | V24: 2.55 | W24: 2.85 | X24: 2.85 | Y24: 2.84 | Z24: 2.94
A25: Lüksemburg | B25: 8.42 | C25: 8.44 | D25: 2.53 | E25: 3.82 | F25: 1.63 | G25: 3.61 | H25: 3.17 | I25: 5.18 | J25: 8.36 | K25: -1.28 | L25: -4.36 | M25: 4.87 | N25: 2.54 | O25: -0.35 | P25: 3.65 | Q25: 4.30 | R25: 3.92 | S25: 2.41 | T25: 1.55 | U25: 2.96 | V25: 2.70 | W25: 2.75 | X25: 2.68 | Y25: 2.65 | Z25: 2.60
A26: Macaristan | B26: 3.19 | C26: 4.21 | D26: 3.84 | E26: 4.53 | F26: 3.85 | G26: 5.01 | H26: 4.39 | I26: 3.85 | J26: 0.42 | K26: 0.85 | L26: -6.60 | M26: 0.66 | N26: 1.66 | O26: -1.63 | P26: 2.09 | Q26: 4.23 | R26: 3.54 | S26: 2.28 | T26: 4.14 | U26: 4.94 | V26: 3.60 | W26: 2.70 | X26: 2.40 | Y26: 2.20 | Z26: 2.20
A27: Malezya | B27: 6.13 | C27: 8.67 | D27: 0.52 | E27: 5.39 | F27: 5.79 | G27: 6.78 | H27: 4.98 | I27: 5.58 | J27: 6.30 | K27: 4.83 | L27: -1.51 | M27: 7.53 | N27: 5.29 | O27: 5.47 | P27: 4.69 | Q27: 6.01 | R27: 5.09 | S27: 4.22 | T27: 5.90 | U27: 4.72 | V27: 4.66 | W27: 4.80 | X27: 4.84 | Y27: 4.84 | Z27: 4.84
A28: Meksika | B28: 2.75 | C28: 4.94 | D28: -0.40 | E28: -0.04 | F28: 1.45 | G28: 3.92 | H28: 2.31 | I28: 4.50 | J28: 2.29 | K28: 1.14 | L28: -5.29 | M28: 5.12 | N28: 3.66 | O28: 3.64 | P28: 1.35 | Q28: 2.80 | R28: 3.29 | S28: 2.92 | T28: 2.07 | U28: 1.99 | V28: 1.63 | W28: 1.94 | X28: 2.36 | Y28: 2.64 | Z28: 2.74
A29: Mısır | B29: 6.11 | C29: 5.38 | D29: 3.52 | E29: 3.19 | F29: 3.19 | G29: 4.09 | H29: 4.47 | I29: 6.84 | J29: 7.09 | K29: 7.16 | L29: 4.67 | M29: 5.15 | N29: 1.77 | O29: 2.23 | P29: 3.30 | Q29: 2.92 | R29: 4.37 | S29: 4.35 | T29: 4.18 | U29: 5.31 | V29: 5.49 | W29: 5.89 | X29: 6.00 | Y29: 6.01 | Z29: 5.99
A30: Peru | B30: 1.50 | C30: 2.70 | D30: 0.62 | E30: 5.45 | F30: 4.17 | G30: 4.96 | H30: 6.29 | I30: 7.53 | J30: 8.52 | K30: 9.14 | L30: 1.05 | M30: 8.45 | N30: 6.45 | O30: 5.95 | P30: 5.84 | Q30: 2.39 | R30: 3.27 | S30: 4.04 | T30: 2.48 | U30: 3.99 | V30: 3.93 | W30: 3.98 | X30: 3.96 | Y30: 3.90 | Z30: 3.81
A31: Polonya | B31: 4.52 | C31: 4.26 | D31: 1.21 | E31: 1.44 | F31: 3.56 | G31: 5.14 | H31: 3.49 | I31: 6.18 | J31: 7.04 | K31: 4.25 | L31: 2.82 | M31: 3.61 | N31: 5.02 | O31: 1.61 | P31: 1.39 | Q31: 3.32 | R31: 3.84 | S31: 3.06 | T31: 4.81 | U31: 5.10 | V31: 3.77 | W31: 3.14 | X31: 2.83 | Y31: 2.81 | Z31: 2.77
A32: Rusya | B32: 6.35 | C32: 10.05 | D32: 5.09 | E32: 4.74 | F32: 7.35 | G32: 7.18 | H32: 6.38 | I32: 8.15 | J32: 8.54 | K32: 5.25 | L32: -7.82 | M32: 4.50 | N32: 5.07 | O32: 3.70 | P32: 1.80 | Q32: 0.70 | R32: -2.50 | S32: 0.30 | T32: 1.65 | U32: 2.33 | V32: 1.62 | W32: 1.71 | X32: 1.65 | Y32: 1.58 | Z32: 1.65
A33: Sri Lanka | B33: 2.88 | C33: 8.42 | D33: -1.95 | E33: 3.73 | F33: 5.94 | G33: 5.45 | H33: 6.24 | I33: 7.67 | J33: 6.80 | K33: 5.95 | L33: 3.54 | M33: 8.02 | N33: 8.41 | O33: 9.15 | P33: 3.40 | Q33: 4.96 | R33: 5.01 | S33: 4.47 | T33: 3.31 | U33: 3.02 | V33: 3.50 | W33: 4.00 | X33: 4.26 | Y33: 4.47 | Z33: 4.63
A34: Şili | B34: -0.46 | C34: 5.34 | D34: 3.31 | E34: 3.09 | F34: 4.09 | G34: 7.20 | H34: 5.74 | I34: 6.32 | J34: 4.91 | K34: 3.57 | L34: -1.59 | M34: 5.83 | N34: 6.12 | O34: 5.33 | P34: 4.05 | Q34: 1.77 | R34: 2.31 | S34: 1.69 | T34: 1.26 | U34: 4.02 | V34: 3.40 | W34: 3.24 | X34: 3.00 | Y34: 3.00 | Z34: 2.98
A35: Tayland | B35: 4.57 | C35: 4.46 | D35: 3.44 | E35: 6.15 | F35: 7.19 | G35: 6.29 | H35: 4.19 | I35: 4.97 | J35: 5.44 | K35: 1.73 | L35: -0.69 | M35: 7.51 | N35: 0.84 | O35: 7.24 | P35: 2.69 | Q35: 0.98 | R35: 3.13 | S35: 3.36 | T35: 4.02 | U35: 4.13 | V35: 3.47 | W35: 3.55 | X35: 3.50 | Y35: 3.50 | Z35: 3.56
A36: TÜRKİYE | B36: -3.39 | C36: 6.64 | D36: -5.96 | E36: 6.43 | F36: 5.61 | G36: 9.64 | H36: 9.01 | I36: 7.11 | J36: 5.03 | K36: 0.85 | L36: -4.70 | M36: 8.49 | N36: 11.11 | O36: 4.79 | P36: 8.49 | Q36: 5.17 | R36: 6.09 | S36: 3.18 | T36: 7.44 | U36: 2.57 | V36: -2.54 | W36: 2.54 | X36: 2.96 | Y36: 3.01 | Z36: 3.49
A37: Yunanistan | B37: 3.07 | C37: 3.92 | D37: 4.13 | E37: 3.92 | F37: 5.80 | G37: 5.06 | H37: 0.60 | I37: 5.65 | J37: 3.27 | K37: -0.34 | L37: -4.30 | M37: -5.48 | N37: -9.13 | O37: -7.30 | P37: -3.24 | Q37: 0.74 | R37: -0.44 | S37: -0.19 | T37: 1.51 | U37: 2.10 | V37: 2.40 | W37: 2.16 | X37: 1.63 | Y37: 1.22 | Z37: 1.24
A38: Kaynak: IMF
A39: (*) Gölgeli hücreler IMF tahmini rakamlarını vermektedir.
A40: Güncelleme tarihi: 02.05.2019
A42: İÇİNDEKİLER SAYFASI

Sheet III.4
A1: III.4. ENFLASYON
B2: 1997 | C2: 1998 | D2: 1999 | E2: 2000 | F2: 2001 | G2: 2002 | H2: 2003 | I2: 2004 | J2: 2005 | K2: 2006 | L2: 2007 | M2: 2008 | N2: 2009 | O2: 2010 | P2: 2011 | Q2: 2012 | R2: 2013 | S2: 2014 | T2: 2015 | U2: 2016 | V2: 2017 | W2: 2018(*) | X2: 2019(*) | Y2: 2020(*) | Z2: 2021(*) | AA2: 2022(*) | AB2: 2023(*)
A3: Almanya | B3: 1.5 | C3: 0.6 | D3: 1.4 | E3: 2.0 | F3: 1.4 | G3: 1.0 | H3: 1.1 | I3: 2.2 | J3: 2.1 | K3: 1.4 | L3: 3.1 | M3: 1.0 | N3: 0.9 | O3: 1.8 | P3: 2.3 | Q3: 2.1 | R3: 1.3 | S3: 0.2 | T3: 0.2 | U3: 1.7 | V3: 1.5 | W3: 1.8 | X3: 1.6 | Y3: 1.8 | Z3: 2.1 | AA3: 2.2 | AB3: 2.2
A4: ABD | B4: 2.3 | C4: 1.5 | D4: 2.9 | E4: 3.4 | F4: 1.6 | G4: 2.6 | H4: 1.9 | I4: 3.2 | J4: 3.7 | K4: 2.2 | L4: 4.1 | M4: 0.7 | N4: 1.9 | O4: 1.7 | P4: 3.1 | Q4: 1.8 | R4: 1.3 | S4: 0.5 | T4: 0.7 | U4: 2.2 | V4: 2.2 | W4: 2.0 | X4: 2.7 | Y4: 2.4 | Z4: 2.2 | AA4: 2.2 | AB4: 2.2
A5: Arjantin | B5: n/a | C5: 0.9 | D5: -1.8 | E5: -0.7 | F5: -1.5 | G5: 41.0 | H5: 3.7 | I5: 6.1 | J5: 12.3 | K5: 9.8 | L5: 8.5 | M5: 7.2 | N5: 7.7 | O5: 10.9 | P5: 9.5 | Q5: 10.8 | R5: 10.9 | S5: 23.9 | T5: n/a | U5: n/a | V5: 24.8 | W5: 47.6 | X5: 30.5 | Y5: 21.2 | Z5: 16.3 | AA5: 10.1 | AB5: 7.0
A6: Avusturya | B6: 1.2 | C6: 0.8 | D6: 1.7 | E6: 1.9 | F6: 1.8 | G6: 1.7 | H6: 1.3 | I6: 2.5 | J6: 1.5 | K6: 1.6 | L6: 3.5 | M6: 1.5 | N6: 1.0 | O6: 2.2 | P6: 3.3 | Q6: 2.8 | R6: 1.9 | S6: 0.7 | T6: 1.0 | U6: 1.5 | V6: 2.3 | W6: 1.7 | X6: 1.9 | Y6: 2.0 | Z6: 2.1 | AA6: 2.1 | AB6: 2.0
A7: Brezilya | B7: 6.9 | C7: 3.2 | D7: 8.9 | E7: 6.0 | F7: 7.7 | G7: 12.5 | H7: 9.3 | I7: 7.6 | J7: 5.7 | K7: 3.1 | L7: 4.5 | M7: 5.9 | N7: 4.3 | O7: 5.9 | P7: 6.5 | Q7: 5.8 | R7: 5.9 | S7: 6.4 | T7: 10.7 | U7: 6.3 | V7: 2.9 | W7: 3.7 | X7: 3.9 | Y7: 4.0 | Z7: 4.0 | AA7: 4.0 | AB7: 4.0
A8: Çin | B8: 2.8 | C8: -0.8 | D8: -1.0 | E8: 1.5 | F8: -0.3 | G8: -0.4 | H8: 3.2 | I8: 2.4 | J8: 1.6 | K8: 2.8 | L8: 6.5 | M8: 1.2 | N8: 1.9 | O8: 4.6 | P8: 4.1 | Q8: 2.5 | R8: 2.5 | S8: 1.5 | T8: 1.6 | U8: 2.1 | V8: 1.8 | W8: 1.9 | X8: 2.2 | Y8: 2.5 | Z8: 2.8 | AA8: 2.9 | AB8: 3.0
A9: Danimarka | B9: 2.2 | C9: 1.8 | D9: 3.1 | E9: 2.4 | F9: 2.0 | G9: 2.6 | H9: 1.2 | I9: 1.0 | J9: 2.3 | K9: 1.6 | L9: 2.5 | M9: 2.5 | N9: 1.2 | O9: 2.8 | P9: 2.4 | Q9: 1.7 | R9: 0.5 | S9: 0.0 | T9: 0.3 | U9: 0.3 | V9: 0.9 | W9: 0.7 | X9: 1.2 | Y9: 1.4 | Z9: 1.7 | AA9: 1.9 | AB9: 2.0
A10: Endonezya | B10: 6.2 | C10: 58.0 | D10: 2.0 | E10: 9.3 | F10: 12.5 | G10: 9.9 | H10: 5.2 | I10: 6.4 | J10: 17.1 | K10: 6.6 | L10: 6.0 | M10: 11.1 | N10: 3.0 | O10: 7.0 | P10: 3.8 | Q10: 3.7 | R10: 8.1 | S10: 8.4 | T10: 3.4 | U10: 3.0 | V10: 3.6 | W10: 3.1 | X10: 3.6 | Y10: 3.5 | Z10: 3.1 | AA10: 3.0 | AB10: 3.0
A11: Filipinler | B11: 5.7 | C11: 9.2 | D11: 4.0 | E11: 6.3 | F11: 4.5 | G11: 2.7 | H11: 3.9 | I11: 8.4 | J11: 6.7 | K11: 4.4 | L11: 3.9 | M11: 8.1 | N11: 4.4 | O11: 3.6 | P11: 4.1 | Q11: 2.7 | R11: 3.8 | S11: 1.9 | T11: 0.8 | U11: 2.2 | V11: 2.9 | W11: 5.1 | X11: 3.5 | Y11: 3.1 | Z11: 3.0 | AA11: 3.0 | AB11: 3.0
A12: Finlandiya | B12: 1.2 | C12: 1.3 | D12: 2.2 | E12: 2.9 | F12: 2.4 | G12: 1.7 | H12: 1.2 | I12: 0.1 | J12: 1.0 | K12: 1.2 | L12: 1.9 | M12: 3.4 | N12: 1.8 | O12: 2.8 | P12: 2.6 | Q12: 3.4 | R12: 1.9 | S12: 0.6 | T12: -0.2 | U12: 1.1 | V12: 0.5 | W12: 1.3 | X12: 1.4 | Y12: 1.5 | Z12: 1.8 | AA12: 1.9 | AB12: 2.0
A13: Hindistan | B13: 6.8 | C13: 13.1 | D13: 3.7 | E13: 2.9 | F13: 5.1 | G13: 3.8 | H13: 4.0 | I13: 4.2 | J13: 4.9 | K13: 7.0 | L13: 6.3 | M13: 9.4 | N13: 10.5 | O13: 9.2 | P13: 8.8 | Q13: 10.5 | R13: 7.7 | S13: 5.3 | T13: 5.3 | U13: 3.6 | V13: 4.6 | W13: 2.7 | X13: 4.1 | Y13: 4.3 | Z13: 4.2 | AA13: 4.2 | AB13: 4.1
A14: İngiltere | B14: 1.8 | C14: 1.6 | D14: 1.1 | E14: 1.0 | F14: 1.0 | G14: 1.5 | H14: 1.3 | I14: 1.4 | J14: 2.1 | K14: 2.7 | L14: 2.1 | M14: 3.9 | N14: 2.1 | O14: 3.4 | P14: 4.6 | Q14: 2.6 | R14: 2.1 | S14: 0.9 | T14: 0.1 | U14: 1.2 | V14: 3.0 | W14: 2.3 | X14: 1.8 | Y14: 2.0 | Z14: 2.0 | AA14: 2.0 | AB14: 2.0
A15: İrlanda | B15: 1.3 | C15: 2.1 | D15: 1.1 | E15: 4.8 | F15: 4.3 | G15: 4.5 | H15: 3.0 | I15: 2.4 | J15: 2.0 | K15: 3.0 | L15: 3.3 | M15: 1.3 | N15: -2.5 | O15: -0.2 | P15: 1.4 | Q15: 1.7 | R15: 0.3 | S15: -0.3 | T15: 0.3 | U15: -0.2 | V15: 0.5 | W15: 0.8 | X15: 0.4 | Y15: 1.5 | Z15: 1.8 | AA15: 2.0 | AB15: 2.0
A16: İspanya | B16: 1.9 | C16: 1.8 | D16: 2.8 | E16: 4.0 | F16: 2.7 | G16: 4.0 | H16: 2.6 | I16: 3.2 | J16: 3.7 | K16: 2.7 | L16: 4.2 | M16: 1.4 | N16: 0.8 | O16: 3.0 | P16: 2.4 | Q16: 2.9 | R16: 0.3 | S16: -1.0 | T16: 0.0 | U16: 1.6 | V16: 1.1 | W16: 1.2 | X16: 1.3 | Y16: 1.7 | Z16: 1.7 | AA16: 1.9 | AB16: 1.9
A17: İsrail | B17: 9.0 | C17: 5.4 | D17: 1.3 | E17: 0.0 | F17: 1.4 | G17: 6.5 | H17: -1.9 | I17: 1.2 | J17: 2.3 | K17: -0.1 | L17: 3.5 | M17: 3.7 | N17: 3.9 | O17: 2.7 | P17: 2.1 | Q17: 1.6 | R17: 1.8 | S17: -0.2 | T17: -1.0 | U17: -0.2 | V17: 0.4 | W17: 0.8 | X17: 1.3 | Y17: 2.0 | Z17: 2.0 | AA17: 2.0 | AB17: 2.0
A18: İsveç | B18: 1.8 | C18: 1.0 | D18: 1.0 | E18: 1.5 | F18: 3.0 | G18: 1.6 | H18: 1.9 | I18: 1.1 | J18: 1.1 | K18: 1.4 | L18: 2.3 | M18: 2.7 | N18: 2.3 | O18: 1.8 | P18: 0.8 | Q18: 1.0 | R18: 0.3 | S18: 0.3 | T18: 0.9 | U18: 1.4 | V18: 1.8 | W18: 2.2 | X18: 1.8 | Y18: 1.7 | Z18: 1.9 | AA18: 2.0 | AB18: 2.0
A19: İtalya | B19: 1.8 | C19: 2.0 | D19: 2.1 | E19: 2.7 | F19: 2.3 | G19: 3.0 | H19: 2.5 | I19: 2.3 | J19: 2.0 | K19: 2.1 | L19: 2.8 | M19: 2.4 | N19: 1.1 | O19: 2.1 | P19: 3.7 | Q19: 2.6 | R19: 0.6 | S19: 0.0 | T19: 0.1 | U19: 0.5 | V19: 1.0 | W19: 1.2 | X19: 0.8 | Y19: 1.2 | Z19: 1.2 | AA19: 1.4 | AB19: 1.5
A20: Japonya | B20: 1.7 | C20: 0.7 | D20: -1.0 | E20: -0.8 | F20: -1.0 | G20: -0.5 | H20: -0.3 | I20: 0.5 | J20: -0.8 | K20: 0.4 | L20: 0.6 | M20: 1.1 | N20: -2.0 | O20: -0.2 | P20: -0.3 | Q20: -0.2 | R20: 1.4 | S20: 2.5 | T20: 0.2 | U20: 0.3 | V20: 0.6 | W20: 0.8 | X20: 1.7 | Y20: 1.0 | Z20: 1.2 | AA20: 1.2 | AB20: 1.4
A21: Kanada | B21: 1.6 | C21: 1.0 | D21: 2.4 | E21: 3.1 | F21: 1.1 | G21: 3.8 | H21: 1.7 | I21: 2.3 | J21: 2.3 | K21: 1.4 | L21: 2.5 | M21: 1.8 | N21: 0.8 | O21: 2.2 | P21: 2.7 | Q21: 1.0 | R21: 1.0 | S21: 2.0 | T21: 1.3 | U21: 1.4 | V21: 1.8 | W21: 2.1 | X21: 1.8 | Y21: 1.9 | Z21: 2.1 | AA21: 2.2 | AB21: 2.1
A22: Kolombiya | C22: 18.7 | D22: 9.0 | E22: 8.5 | F22: 7.5 | G22: 6.8 | H22: 6.4 | I22: 5.5 | J22: 4.8 | K22: 4.5 | L22: 5.7 | M22: 7.6 | N22: 1.9 | O22: 3.1 | P22: 3.7 | Q22: 2.5 | R22: 2.0 | S22: 3.7 | T22: 6.8 | U22: 5.8 | V22: 4.1 | W22: 3.2 | X22: 3.2 | Y22: 3.0 | Z22: 3.0 | AA22: 3.0 | AB22: 3.0
A23: Kore | B23: 4.4 | C23: 7.5 | D23: 1.4 | E23: 2.8 | F23: 3.2 | G23: 3.7 | H23: 3.4 | I23: 3.0 | J23: 2.6 | K23: 2.1 | L23: 3.6 | M23: 4.1 | N23: 2.8 | O23: 3.0 | P23: 4.2 | Q23: 1.4 | R23: 1.1 | S23: 0.8 | T23: 1.1 | U23: 1.3 | V23: 1.4 | W23: 1.3 | X23: 1.4 | Y23: 1.6 | Z23: 1.7 | AA23: 1.8 | AB23: 1.9
A24: Lüksemburg | B24: Inflation, average consumer prices | C24: 1.0 | D24: 2.4 | E24: 4.3 | F24: 1.0 | G24: 2.9 | H24: 2.5 | I24: 3.5 | J24: 3.5 | K24: 2.3 | L24: 4.4 | M24: 0.7 | N24: 2.5 | O24: 3.1 | P24: 3.4 | Q24: 2.4 | R24: 1.5 | S24: -1.0 | T24: 0.8 | U24: 1.5 | V24: 1.6 | W24: 1.9 | X24: 1.9 | Y24: 1.6 | Z24: 2.1 | AA24: 1.8 | AB24: 1.9
A25: Macaristan | B25: Inflation, average consumer prices | C25: 14.2 | D25: 11.2 | E25: 10.1 | F25: 6.8 | G25: 4.8 | H25: 5.7 | I25: 5.5 | J25: 3.3 | K25: 6.5 | L25: 7.4 | M25: 3.5 | N25: 5.6 | O25: 4.7 | P25: 4.1 | Q25: 5.0 | R25: 0.4 | S25: -0.9 | T25: 0.9 | U25: 1.8 | V25: 2.1 | W25: 2.7 | X25: 3.5 | Y25: 3.0 | Z25: 3.0 | AA25: 3.0 | AB25: 3.0
A26: Malezya | B26: Inflation, average consumer prices | C26: 5.3 | D26: 2.5 | E26: 1.2 | F26: 1.2 | G26: 1.6 | H26: 1.2 | I26: 2.2 | J26: 3.2 | K26: 3.1 | L26: 2.3 | M26: 4.5 | N26: 1.0 | O26: 2.1 | P26: 3.0 | Q26: 1.2 | R26: 3.2 | S26: 2.7 | T26: 2.7 | U26: 1.7 | V26: 3.5 | W26: 0.2 | X26: 2.4 | Y26: 2.6 | Z26: 2.5 | AA26: 2.4 | AB26: 2.3
A27: Meksika | B27: Inflation, average consumer prices | C27: 15.9 | D27: 12.3 | E27: 9.0 | F27: 4.4 | G27: 5.7 | H27: 4.0 | I27: 5.2 | J27: 3.3 | K27: 4.1 | L27: 3.8 | M27: 6.5 | N27: 3.6 | O27: 4.4 | P27: 3.8 | Q27: 3.6 | R27: 4.0 | S27: 4.1 | T27: 2.1 | U27: 3.4 | V27: 6.8 | W27: 4.8 | X27: 3.1 | Y27: 3.0 | Z27: 3.0 | AA27: 3.0 | AB27: 3.0
A28: Mısır | B28: Inflation, average consumer prices | C28: 5.0 | D28: 2.9 | E28: 2.5 | F28: 2.2 | G28: 2.7 | H28: 4.0 | I28: 11.7 | J28: 4.7 | K28: 7.3 | L28: 8.6 | M28: 19.9 | N28: 9.9 | O28: 10.6 | P28: 11.8 | Q28: 7.3 | R28: 9.8 | S28: 8.2 | T28: 11.4 | U28: 14.0 | V28: 29.8 | W28: 14.4 | X28: 12.8 | Y28: 10.7 | Z28: 7.7 | AA28: 7.2 | AB28: 6.9
A29: Peru | B29: Inflation, average consumer prices | C29: 7.3 | D29: 3.7 | E29: 3.7 | F29: -0.1 | G29: 1.5 | H29: 2.5 | I29: 3.5 | J29: 1.5 | K29: 1.1 | L29: 3.9 | M29: 6.7 | N29: 0.2 | O29: 2.1 | P29: 4.7 | Q29: 2.6 | R29: 2.9 | S29: 3.2 | T29: 4.4 | U29: 3.2 | V29: 1.4 | W29: 2.2 | X29: 2.2 | Y29: 2.0 | Z29: 2.0 | AA29: 2.0 | AB29: 2.0
A30: Polonya | B30: Inflation, average consumer prices | C30: 11.8 | D30: 9.8 | E30: 8.5 | F30: 3.6 | G30: 0.8 | H30: 1.7 | I30: 4.4 | J30: 0.7 | K30: 1.4 | L30: 4.0 | M30: 3.3 | N30: 3.5 | O30: 3.1 | P30: 4.6 | Q30: 2.4 | R30: 0.7 | S30: -1.0 | T30: -0.5 | U30: 0.8 | V30: 2.1 | W30: 1.1 | X30: 2.3 | Y30: 1.9 | Z30: 2.1 | AA30: 2.2 | AB30: 2.3
A31: Rusya | B31: Inflation, average consumer prices | C31: 27.7 | D31: 36.5 | E31: 20.2 | F31: 18.6 | G31: 15.1 | H31: 12.0 | I31: 11.7 | J31: 10.9 | K31: 9.0 | L31: 11.9 | M31: 13.3 | N31: 8.8 | O31: 8.8 | P31: 6.1 | Q31: 6.6 | R31: 6.5 | S31: 11.4 | T31: 12.9 | U31: 5.4 | V31: 2.5 | W31: 4.3 | X31: 4.8 | Y31: 4.2 | Z31: 4.1 | AA31: 4.0 | AB31: 4.0
A32: Sri Lanka | B32: Inflation, average consumer prices | C32: 9.4 | D32: 4.0 | E32: 10.8 | F32: 10.8 | G32: 11.3 | H32: 12.2 | I32: 13.1 | J32: 7.5 | K32: 13.3 | L32: 18.8 | M32: 13.9 | N32: 5.1 | O32: 6.8 | P32: 4.9 | Q32: 9.3 | R32: 4.6 | S32: 1.4 | T32: 4.6 | U32: 4.5 | V32: 7.1 | W32: 2.8 | X32: 4.5 | Y32: 4.7 | Z32: 4.7 | AA32: 4.9 | AB32: 5.0
A33: Şili | B33: Inflation, average consumer prices | C33: 5.1 | D33: 2.3 | E33: 4.6 | F33: 2.7 | G33: 2.9 | H33: 1.1 | I33: 2.4 | J33: 3.7 | K33: 2.6 | L33: 7.9 | M33: 7.1 | N33: -1.5 | O33: 2.9 | P33: 4.4 | Q33: 1.5 | R33: 3.1 | S33: 4.7 | T33: 4.4 | U33: 2.7 | V33: 2.3 | W33: 2.1 | X33: 2.7 | Y33: 3.0 | Z33: 3.0 | AA33: 3.0 | AB33: 3.0
A34: Tayland | B34: Inflation, average consumer prices | C34: 8.0 | D34: 0.6 | E34: 1.6 | F34: 0.6 | G34: 1.7 | H34: 1.8 | I34: 2.9 | J34: 5.8 | K34: 3.6 | L34: 3.0 | M34: 0.5 | N34: 3.5 | O34: 3.1 | P34: 3.5 | Q34: 3.6 | R34: 1.7 | S34: 0.6 | T34: -0.9 | U34: 1.1 | V34: 0.8 | W34: 0.4 | X34: 1.9 | Y34: 0.6 | Z34: 0.8 | AA34: 1.9 | AB34: 2.0
A35: Türkiye | B35: Inflation, average consumer prices | C35: 84.7 | D35: 68.8 | E35: 39.0 | F35: 68.5 | G35: 29.7 | H35: 18.4 | I35: 9.4 | J35: 7.7 | K35: 9.7 | L35: 8.4 | M35: 10.1 | N35: 6.5 | O35: 6.4 | P35: 10.4 | Q35: 6.2 | R35: 7.4 | S35: 8.2 | T35: 8.8 | U35: 8.5 | V35: 11.9 | W35: 20.3 | X35: 15.5 | Y35: 14.0 | Z35: 13.0 | AA35: 13.0 | AB35: 13.0
A36: Yunanistan | B36: Inflation, average consumer prices | C36: 4.5 | D36: 2.3 | E36: 3.7 | F36: 3.5 | G36: 3.5 | H36: 3.1 | I36: 3.1 | J36: 3.5 | K36: 3.2 | L36: 3.9 | M36: 2.2 | N36: 2.5 | O36: 5.2 | P36: 2.2 | Q36: 0.3 | R36: -1.8 | S36: -2.5 | T36: 0.4 | U36: 0.3 | V36: 1.0 | W36: 0.6 | X36: 0.8 | Y36: 1.6 | Z36: 1.6 | AA36: 1.7 | AB36: 1.8
A37: Kaynak: IMF
A38: Not1: Enflasyon, Dönem Sonu Tüketici Fiyatları, % Değişim
A39: (*) Gölgeli hücreler IMF tahmini rakamlarını vermektedir.
A40: Güncelleme tarihi: 02.05.2019
A42: İÇİNDEKİLER SAYFASI

Sheet III.5
A1: III.5. TAHVİL STOKU (milyar dolar)
A3: Ülkeler | B3: 1995 | C3: 1996 | D3: 1997 | E3: 1998 | F3: 1999 | G3: 2000 | H3: 2001 | I3: 2002 | J3: 2003 | K3: 2004 | L3: 2005 | M3: 2006 | N3: 2007 | O3: 2008 | P3: 2009 | Q3: 2010 | R3: 2011 | S3: 2012 | T3: 2013 | U3: 2014 | V3: 2015 | W3: 2016 | X3: 2017 | Y3: 2018/09
A4: Arjantin | B4: - | C4: - | D4: - | E4: - | F4: - | G4: - | H4: - | I4: 1 | J4: 3 | K4: 5 | L4: 9 | M4: 13 | N4: 16 | O4: 11 | P4: 12 | Q4: 18 | R4: 15 | S4: 16 | T4: 15 | U4: 25 | V4: - | W4: 33 | X4: - | Y4: 110
A5: Brezilya | B5: - | C5: - | D5: - | E5: - | F5: - | G5: - | H5: - | I5: 308 | J5: 414 | K5: 507 | L5: 681 | M5: 856 | N5: 1,191 | O5: 1,117 | P5: 1,675 | Q5: 2,006 | R5: 2,117 | S5: 2,134 | T5: 1,990 | U5: 2,023 | V5: - | W5: 1,983 | X5: 2,184 | Y5: 1,903
A6: Çin | B6: - | C6: - | D6: - | E6: - | F6: - | G6: 202 | H6: 238 | I6: 342 | J6: 448 | K6: 624 | L6: 899 | M6: 1,184 | N6: 1,688 | O6: 2,210 | P6: 2,567 | Q6: 3,046 | R6: 3,389 | S6: 3,777 | T6: 4,085 | U6: 4,368 | V6: 7,512 | W6: 7,874 | X6: 11,419 | Y6: 11,987
A7: Danimarka | B7: - | C7: - | D7: - | E7: - | F7: 260 | G7: 249 | H7: 262 | I7: 341 | J7: 427 | K7: 528 | L7: 481 | M7: 537 | N7: 634 | O7: 649 | P7: 739 | Q7: 711 | R7: 715 | S7: 745 | T7: 730 | U7: - | V7: 569 | W7: 581 | X7: 654 | Y7: 630
A8: Endonezya | B8: 5 | C8: 8 | D8: 2 | E8: 5 | F8: 45 | G8: 48 | H8: 43 | I8: 53 | J8: 59 | K8: 54 | L8: 48 | M8: 70 | N8: 77 | O8: 95 | P8: 96 | Q8: 135 | R8: 136 | S8: 130 | T8: 102 | U8: 117 | V8: 129 | W8: 157 | X8: 218 | Y8: 207
A9: Filipinler | B9: 26 | C9: 28 | D9: 17 | E9: 20 | F9: 23 | G9: 21 | H9: 24 | I9: 28 | J9: 31 | K9: 36 | L9: 41 | M9: 45 | N9: 54 | O9: 52 | P9: 55 | Q9: 64 | R9: 67 | S9: 83 | T9: 88 | U9: 86 | V9: 83 | W9: 82 | X9: 89 | Y9: 85
A10: Hindistan | B10: - | C10: - | D10: - | E10: 4 | F10: 4 | G10: 4 | H10: 5 | I10: 7 | J10: 8 | K10: 17 | L10: 26 | M10: 32 | N10: 43 | O10: 42 | P10: 51 | Q10: 46 | R10: 516 | S10: 621 | T10: 635 | U10: 684 | V10: 651 | W10: 727 | X10: 861 | Y10: 811
A11: İsveç | B11: - | C11: - | D11: - | E11: - | F11: - | G11: - | H11: 8 | I11: 9 | J11: 176 | K11: 201 | L11: 175 | M11: 202 | N11: 219 | O11: 169 | P11: 186 | Q11: 439 | R11: 438 | S11: 466 | T11: 413 | U11: - | V11: - | W11: 373 | X11: 426 | Y11: 397
A12: Japonya | B12: - | C12: - | D12: 5,055 | E12: 5,865 | F12: 7,180 | G12: 6,572 | H12: 6,162 | I12: 7,256 | J12: 8,598 | K12: 9,606 | L12: 8,997 | M12: 8,925 | N12: 9,481 | O12: 12,068 | P12: 12,067 | Q12: 14,315 | R12: 15,498 | S12: 14,371 | T12: 12,057 | U12: 10,835 | V12: 10,925 | W12: 13,582 | X12: 12,293 | Y12: 12,212
A13: Kanada | B13: 574 | C13: 588 | D13: 598 | E13: 578 | F13: 656 | G13: 655 | H13: 631 | I13: 646 | J13: 807 | K13: 900 | L13: 975 | M13: 1,032 | N13: 1,206 | O13: 1,029 | P13: 1,295 | Q13: 1,458 | R13: 1,521 | S13: 1,682 | T13: 1,685 | U13: 1,588 | V13: 1,424 | W13: 1,551 | X13: 1,699 | Y13: 2,244
A14: Kolombiya | B14: 6 | C14: 8 | D14: 10 | E14: 11 | F14: 14 | G14: 17 | H14: 20 | I14: 19 | J14: 23 | K14: 30 | L14: 41 | M14: 45 | N14: 52 | O14: 52 | P14: 61 | Q14: 72 | R14: 81 | S14: 91 | T14: 95 | U14: 85 | V14: 66 | W14: 78 | X14: 89 | Y14: -
A15: Kore | B15: - | C15: - | D15: - | E15: - | F15: - | G15: - | H15: - | I15: 491 | J15: 518 | K15: 655 | L15: 725 | M15: 867 | N15: 929 | O15: 741 | P15: 943 | Q15: 1,049 | R15: 1,110 | S15: 1,280 | T15: 1,406 | U15: 1,425 | V15: 1,432 | W15: - | X15: 1,693 | Y15: 1,698
A16: Macaristan | B16: - | C16: - | D16: - | E16: - | F16: - | G16: - | H16: - | I16: - | J16: - | K16: - | L16: - | M16: - | N16: - | O16: - | P16: - | Q16: 79 | R16: 65 | S16: 84 | T16: 97 | U16: 70 | V16: 68 | W16: 72 | X16: 92 | Y16: 90
A17: Malezya | B17: - | C17: - | D17: - | E17: - | F17: - | G17: - | H17: - | I17: - | J17: - | K17: - | L17: 133 | M17: 160 | N17: 193 | O17: 194 | P17: 209 | Q17: 268 | R17: 288 | S17: 352 | T17: 334 | U17: 339 | V17: 277 | W17: 303 | X17: 332 | Y17: 345
A18: Meksika | B18: - | C18: - | D18: - | E18: - | F18: - | G18: - | H18: - | I18: - | J18: - | K18: - | L18: 260 | M18: 311 | N18: 350 | O18: 319 | P18: 365 | Q18: 428 | R18: 445 | S18: 539 | T18: 606 | U18: 597 | V18: 545 | W18: 484 | X18: 521 | Y18: 579
A19: Peru | B19: 9 | C19: 8 | D19: 8 | E19: 7 | F19: 7 | G19: 7 | H19: 8 | I19: 7 | J19: 8 | K19: 10 | L19: 12 | M19: 13 | N19: 20 | O19: 17 | P19: 19 | Q19: 26 | R19: 25 | S19: 32 | T19: 25 | U19: 24 | V19: 24 | W19: 27 | X19: 46 | Y19: 46
A20: Rusya | B20: - | C20: - | D20: - | E20: - | F20: - | G20: - | H20: - | I20: - | J20: - | K20: 10 | L20: 54 | M20: 80 | N20: 108 | O20: 112 | P20: 149 | Q20: 181 | R20: 208 | S20: 257 | T20: 285 | U20: 189 | V20: 182 | W20: 219 | X20: 317 | Y20: 310
A21: Şili | B21: - | C21: - | D21: - | E21: - | F21: - | G21: - | H21: - | I21: - | J21: - | K21: - | L21: - | M21: - | N21: - | O21: 64 | P21: 91 | Q21: 106 | R21: 117 | S21: 134 | T21: 134 | U21: 132 | V21: 117 | W21: 140 | X21: - | Y21: -
A22: Tayland | B22: 3 | C22: 3 | D22: 1 | E22: 12 | F22: 17 | G22: 17 | H22: 18 | I22: 29 | J22: 51 | K22: 60 | L22: 81 | M22: 117 | N22: 161 | O22: 163 | P22: 204 | Q22: 259 | R22: 274 | S22: 291 | T22: 265 | U22: 287 | V22: 277 | W22: 298 | X22: 353 | Y22: 379
A23: TÜRKİYE | B23: - | C23: - | D23: - | E23: - | F23: - | G23: - | H23: - | I23: - | J23: 140 | K23: 169 | L23: 183 | M23: 179 | N23: 219 | O23: 181 | P23: 222 | Q23: 231 | R23: 202 | S23: 233 | T23: 206 | U23: 198 | V23: 168 | W23: 174 | X23: 161 | Y23: 112
A24: Kaynak: BIS
A25: Not: BIS 2012 Aralık ayından itibaren tahvil stokunun derlenme metodunu geçmiş verileri kapsayacak şekilde değiştirmiştir. Bilgi için bkz. http://www.bis.org/statistics/secstats.htm
A26: Güncelleme tarihi: 14.05.2019
A28: İÇİNDEKİLER SAYFASI

Sheet III.6
A1: III.6. TAHVİL STOKU/GSYH
B3: 1995 | C3: 1996 | D3: 1997 | E3: 1998 | F3: 1999 | G3: 2000 | H3: 2001 | I3: 2002 | J3: 2003 | K3: 2004 | L3: 2005 | M3: 2006 | N3: 2007 | O3: 2008 | P3: 2009 | Q3: 2010 | R3: 2011 | S3: 2012 | T3: 2013 | U3: 2014 | V3: 2015 | W3: 2016 | X3: 2017 (*) | Y3: 2018 (*)
A4: Arjantin | B4: - | C4: - | D4: - | E4: - | F4: - | G4: - | H4: - | I4: 0.01 | J4: 0.02 | K4: 0.03 | L4: 0.04 | M4: 0.06 | N4: 0.06 | O4: 0.03 | P4: 0.03 | Q4: 0.04 | R4: 0.03 | S4: 0.03 | T4: 0.02 | U4: 0.04 | V4: - | W4: 0.06 | X4: - | Y4: 0.21
A5: Brezilya | B5: - | C5: - | D5: - | E5: - | F5: - | G5: - | H5: - | I5: 0.60 | J5: 0.74 | K5: 0.76 | L5: 0.76 | M5: 0.77 | N5: 0.85 | O5: 0.66 | P5: 1.00 | Q5: 0.91 | R5: 0.81 | S5: 0.87 | T5: 0.81 | U5: 0.84 | V5: - | W5: 1.12 | X5: 1.06 | Y5: 1.02
A6: Çin | B6: - | C6: - | D6: - | E6: - | F6: - | G6: 0.17 | H6: 0.18 | I6: 0.23 | J6: 0.27 | K6: 0.32 | L6: 0.39 | M6: 0.43 | N6: 0.47 | O6: 0.48 | P6: 0.50 | Q6: 0.50 | R6: 0.45 | S6: 0.44 | T6: 0.42 | U6: 0.41 | V6: 0.67 | W6: 0.69 | X6: 0.95 | Y6: 0.89
A7: Danimarka | B7: - | C7: - | D7: - | E7: - | F7: 1.46 | G7: 1.52 | H7: 1.59 | I7: 1.91 | J7: 1.96 | K7: 2.10 | L7: 1.82 | M7: 1.90 | N7: 1.98 | O7: 1.84 | P7: 2.31 | Q7: 2.22 | R7: 2.09 | S7: 2.29 | T7: 2.16 | U7: - | V7: 1.93 | W7: 1.92 | X7: 2.02 | Y7: 1.80
A8: Endonezya | B8: 0.03 | C8: 0.03 | D8: 0.01 | E8: 0.05 | F8: 0.27 | G8: 0.27 | H8: 0.25 | I8: 0.25 | J8: 0.23 | K8: 0.19 | L8: 0.16 | M8: 0.18 | N8: 0.16 | O8: 0.17 | P8: 0.17 | Q8: 0.18 | R8: 0.15 | S8: 0.14 | T8: 0.11 | U8: 0.13 | V8: 0.15 | W8: 0.17 | X8: 0.21 | Y8: 0.20
A9: Filipinler | B9: 0.32 | C9: 0.30 | D9: 0.18 | E9: 0.28 | F9: 0.28 | G9: 0.26 | H9: 0.32 | I9: 0.34 | J9: 0.37 | K9: 0.39 | L9: 0.40 | M9: 0.37 | N9: 0.36 | O9: 0.30 | P9: 0.33 | Q9: 0.32 | R9: 0.30 | S9: 0.33 | T9: 0.32 | U9: 0.30 | V9: 0.28 | W9: 0.26 | X9: 0.28 | Y9: 0.26
A10: Hindistan | B10: - | C10: - | D10: - | E10: 0.01 | F10: 0.01 | G10: 0.01 | H10: 0.01 | I10: 0.01 | J10: 0.01 | K10: 0.02 | L10: 0.03 | M10: 0.03 | N10: 0.03 | O10: 0.03 | P10: 0.04 | Q10: 0.03 | R10: 0.28 | S10: 0.34 | T10: 0.34 | U10: 0.34 | V10: 0.31 | W10: 0.32 | X10: 0.33 | Y10: 0.30
A11: İsveç | B11: - | C11: - | D11: - | E11: - | F11: - | G11: - | H11: 0.03 | I11: 0.03 | J11: 0.53 | K11: 0.53 | L11: 0.45 | M11: 0.48 | N11: 0.45 | O11: 0.33 | P11: 0.43 | Q11: 0.90 | R11: 0.78 | S11: 0.86 | T11: 0.71 | U11: - | V11: - | W11: 0.72 | X11: 0.79 | Y11: 0.72
A12: Japonya | B12: - | C12: - | D12: 1.17 | E12: 1.50 | F12: 1.63 | G12: 1.39 | H12: 1.48 | I12: 1.82 | J12: 2.00 | K12: 2.06 | L12: 1.97 | M12: 2.05 | N12: 2.18 | O12: 2.49 | P12: 2.40 | Q12: 2.60 | R12: 2.62 | S12: 2.41 | T12: 2.46 | U12: 2.36 | V12: 2.65 | W12: 2.87 | X12: 2.52 | Y12: 2.46
A13: Kanada | B13: 0.97 | C13: 0.94 | D13: 0.92 | E13: 0.91 | F13: 0.97 | G13: 0.88 | H13: 0.86 | I13: 0.85 | J13: 0.90 | K13: 0.88 | L13: 0.83 | M13: 0.78 | N13: 0.82 | O13: 0.66 | P13: 0.94 | Q13: 0.90 | R13: 0.85 | S13: 0.92 | T13: 0.92 | U13: 0.89 | V13: 0.92 | W13: 1.01 | X13: 1.03 | Y13: 1.31
A14: Kolombiya | B14: 0.06 | C14: 0.07 | D14: 0.08 | E14: 0.10 | F14: 0.13 | G14: 0.17 | H14: 0.20 | I14: 0.20 | J14: 0.24 | K14: 0.26 | L14: 0.28 | M14: 0.27 | N14: 0.25 | O14: 0.21 | P14: 0.26 | Q14: 0.25 | R14: 0.24 | S14: 0.25 | T14: 0.25 | U14: 0.22 | V14: 0.23 | W14: 0.28 | X14: 0.29 | Y14: -
A15: Kore | B15: - | C15: - | D15: - | E15: - | F15: - | G15: - | H15: - | I15: 0.81 | J15: 0.76 | K15: 0.86 | L15: 0.81 | M15: 0.86 | N15: 0.83 | O15: 0.74 | P15: 1.05 | Q15: 0.96 | R15: 0.92 | S15: 1.05 | T15: 1.08 | U15: 1.01 | V15: 1.04 | W15: - | X15: 1.10 | Y15: 1.05
A16: Macaristan | B16: - | C16: - | D16: - | E16: - | F16: - | G16: - | H16: - | I16: - | J16: - | K16: - | L16: - | M16: - | N16: - | O16: - | P16: - | Q16: 0.60 | R16: 0.47 | S16: 0.66 | T16: 0.72 | U16: 0.50 | V16: 0.56 | W16: 0.62 | X16: 0.60 | Y16: 0.58
A17: Malezya | B17: - | C17: - | D17: - | E17: - | F17: - | G17: - | H17: - | I17: - | J17: - | K17: - | L17: 0.90 | M17: 0.95 | N17: 0.96 | O17: 0.81 | P17: 1.00 | Q17: 1.05 | R17: 0.97 | S17: 1.12 | T17: 1.03 | U17: 1.00 | V17: 0.94 | W17: 1.00 | X17: 1.06 | Y17: 0.97
A18: Meksika | B18: - | C18: - | D18: - | E18: - | F18: - | G18: - | H18: - | I18: - | J18: - | K18: - | L18: 0.30 | M18: 0.32 | N18: 0.34 | O18: 0.29 | P18: 0.41 | Q18: 0.41 | R18: 0.38 | S18: 0.45 | T18: 0.48 | U18: 0.46 | V18: 0.48 | W18: 0.46 | X18: 0.45 | Y18: 0.47
A19: Peru | B19: 0.16 | C19: 0.15 | D19: 0.14 | E19: 0.14 | F19: 0.14 | G19: 0.14 | H19: 0.15 | I19: 0.14 | J19: 0.14 | K19: 0.15 | L19: 0.16 | M19: 0.15 | N19: 0.20 | O19: 0.14 | P19: 0.16 | Q19: 0.17 | R19: 0.14 | S19: 0.16 | T19: 0.13 | U19: 0.12 | V19: 0.13 | W19: 0.15 | X19: 0.21 | Y19: 0.20
A20: Rusya | B20: - | C20: - | D20: - | E20: - | F20: - | G20: - | H20: - | I20: - | J20: - | K20: 0.01 | L20: 0.07 | M20: 0.08 | N20: 0.08 | O20: 0.06 | P20: 0.11 | Q20: 0.11 | R20: 0.10 | S20: 0.12 | T20: 0.13 | U20: 0.09 | V20: 0.14 | W20: 0.17 | X20: 0.21 | Y20: 0.19
A21: Şili | B21: - | C21: - | D21: - | E21: - | F21: - | G21: - | H21: - | I21: - | J21: - | K21: - | L21: - | M21: - | N21: - | O21: 0.36 | P21: 0.53 | Q21: 0.49 | R21: 0.46 | S21: 0.51 | T21: 0.48 | U21: 0.51 | V21: 0.49 | W21: 0.60 | X21: - | Y21: -
A22: Tayland | B22: 0.02 | C22: 0.01 | D22: 0.01 | E22: 0.10 | F22: 0.14 | G22: 0.13 | H22: 0.15 | I22: 0.22 | J22: 0.33 | K22: 0.35 | L22: 0.43 | M22: 0.53 | N22: 0.61 | O22: 0.56 | P22: 0.72 | Q22: 0.76 | R22: 0.74 | S22: 0.73 | T22: 0.63 | U22: 0.71 | V22: 0.70 | W22: 0.76 | X22: 0.78 | Y22: 0.78
A23: TÜRKİYE | B23: - | C23: - | D23: - | E23: - | F23: - | G23: - | H23: - | I23: - | J23: 0.46 | K23: 0.43 | L23: 0.38 | M23: 0.34 | N23: 0.34 | O23: 0.25 | P23: 0.36 | Q23: 0.32 | R23: 0.26 | S23: 0.29 | T23: 0.25 | U23: 0.25 | V23: 0.23 | W23: 0.24 | X23: 0.19 | Y23: 0.15
A24: Kaynak: BIS, IMF
A25: Not: BIS 2012 Aralık ayından itibaren tahvil stokunun derlenme metodunu geçmiş verileri kapsayacak şekilde değiştirmiştir. Bilgi için bkz. http://www.bis.org/statistics/secstats.htm
A26: * Gölgeli hücrelerdeki GSYH rakamları IMF tahminidir.
A27: Güncelleme tarihi: 14.05.2019
A29: İÇİNDEKİLER SAYFASI

Sheet III.7
A1: III.7. DIŞ BORÇ STOKU - BRÜT (milyon dolar)
A3: Ülkeler | B3: 2007/12 | C3: 2008/12 | D3: 2009/03 | E3: 2009/06 | F3: 2009/09 | G3: 2009/12 | H3: 2010/12 | I3: 2011/12 | J3: 2012/12 | K3: 2013/12 | L3: 2014/12 | M3: 2015/12 | N3: 2016/12 | O3: 2017/12 | P3: 2018/12
A4: Almanya | B4: 5,154,634 | C4: 5,158,439 | D4: 4,915,078 | E4: 5,211,907 | F4: 5,278,654 | G4: 5,116,072 | H4: 5,217,014 | I4: 5,338,151 | J4: 5,716,532 | K4: 5,502,627 | L4: 5,467,827 | M4: 4,893,111 | N4: 4,867,161 | O4: 5,700,623 | P4: 5,552,641
A5: ABD | B5: 13,427,103 | C5: 13,749,570 | D5: 13,501,451 | E5: 13,454,217 | F5: 13,671,606 | G5: 13,661,791 | H5: 14,456,194 | I5: 15,508,155 | J5: 15,680,472 | K5: 16,572,612 | L5: 17,258,054 | M5: 17,710,435 | N5: 18,025,120 | O5: 19,020,976 | P5: 19,765,887
A6: Arjantin | B6: 123,989 | C6: 124,702 | D6: 123,589 | E6: 122,932 | F6: 119,709 | G6: 116,415 | H6: 128,913 | I6: 140,654 | J6: 140,877 | K6: 144,186 | L6: 146,248 | M6: 170,625 | N6: 181,170 | O6: 234,549 | P6: 277,921
A7: Avusturya | B7: 801,400 | C7: 832,753 | D7: 788,415 | E7: 834,045 | F7: 869,225 | G7: 831,601 | H7: 822,045 | I7: 786,102 | J7: 811,983 | K7: 823,538 | L7: 740,078 | M7: 646,565 | N7: 614,831 | O7: 684,674 | P7: 647,329
A8: Brezilya | B8: 240,495 | C8: 262,910 | D8: 259,926 | E8: 270,107 | F8: 281,842 | G8: 277,563 | H8: 351,941 | I8: 404,117 | J8: 440,604 | K8: 482,771 | L8: 712,518 | M8: 665,101 | N8: 676,647 | O8: 667,103 | P8: 665,777
A9: Danimarka | B9: 567,413 | C9: 588,776 | D9: 577,445 | E9: 607,375 | F9: 630,603 | G9: 605,826 | H9: 596,102 | I9: 571,000 | J9: 586,560 | K9: 609,707 | L9: 535,880 | M9: 462,849 | N9: 469,730 | O9: 545,555 | P9: 487,066
A10: Endonezya | B10: 141,171 | C10: 155,067 | D10: 151,228 | E10: 153,826 | F10: 168,048 | G10: 172,871 | H10: 202,413 | I10: 225,375 | J10: 252,364 | K10: 265,589 | L10: 293,876 | M10: 310,179 | N10: 317,782 | O10: 352,936 | P10: 376,839
A11: Finlandiya | B11: 314,136 | C11: 339,454 | D11: 355,519 | E11: 370,937 | F11: 381,766 | G11: 406,812 | H11: 441,369 | I11: 538,365 | J11: 586,940 | K11: 455,139 | L11: 546,743 | M11: 480,325 | N11: 462,618 | O11: 489,216 | P11: 553,437
A12: Hindistan | B12: 206,005 | C12: 228,942 | D12: 223,953 | E12: 227,688 | F12: 242,612 | G12: 252,398 | H12: 295,890 | I12: 331,591 | J12: 378,490 | K12: 427,607 | L12: 458,769 | M12: 479,264 | N12: 455,969 | O12: 513,462 | P12: 521,074
A13: İngiltere | B13: 11,260,597 | C13: 9,106,737 | D13: 8,570,340 | E13: 9,177,063 | F13: 9,512,322 | G13: 9,409,468 | H13: 9,482,996 | I13: 9,976,167 | J13: 9,525,120 | K13: 9,365,044 | L13: 9,168,133 | M13: 8,186,626 | N13: 7,428,442 | O13: 8,647,109 | P13: 8,406,315
A14: İrlanda | B14: 2,263,299 | C14: 2,355,639 | D14: 2,256,760 | E14: 2,386,612 | F14: 2,397,435 | G14: 2,384,730 | H14: 2,303,419 | I14: 2,213,173 | J14: 2,170,553 | K14: 2,257,021 | L14: 1,959,963 | M14: 2,424,379 | N14: 2,225,865 | O14: 2,427,926 | P14: 2,649,971
A15: İspanya | B15: 2,299,065 | C15: 2,316,545 | D15: 2,245,555 | E15: 2,409,516 | F15: 2,538,610 | G15: 2,531,091 | H15: 2,309,284 | I15: 2,276,890 | J15: 2,277,935 | K15: 2,213,334 | L15: 2,106,008 | M15: 1,972,936 | N15: 1,967,819 | O15: 2,324,789 | P15: 2,306,441
A16: İsrail | B16: 89,582 | C16: 86,083 | D16: 83,860 | E16: 83,584 | F16: 90,247 | G16: 92,109 | H16: 106,018 | I16: 103,914 | J16: 96,970 | K16: 95,366 | L16: 96,161 | M16: 89,437 | N16: 87,734 | O16: 88,643 | P16: 92,082
A17: İtalya | B17: 2,499,984 | C17: 2,395,317 | D17: 2,370,579 | E17: 2,577,890 | F17: 2,669,507 | G17: 2,551,151 | H17: 2,435,220 | I17: 2,349,707 | J17: 2,516,032 | K17: 2,628,853 | L17: 2,451,463 | M17: 2,256,637 | N17: 2,185,732 | O17: 2,530,044 | P17: 2,420,050
A18: Japonya | B18: 1,767,807 | C18: 2,230,634 | D18: 2,087,258 | E18: 2,131,756 | F18: 2,215,128 | G18: 2,086,400 | H18: 2,588,607 | I18: 3,115,170 | J18: 3,016,811 | K18: 2,803,153 | L18: 2,726,442 | M18: 2,945,062 | N18: 3,411,515 | O18: 3,600,458 | P18: 3,994,827
A19: Kanada | B19: 806,946 | C19: 781,073 | D19: 806,493 | E19: 850,142 | F19: 941,978 | G19: 997,474 | H19: 1,106,998 | I19: 1,190,897 | J19: 1,331,262 | K19: 1,389,932 | L19: 1,531,450 | M19: 1,590,860 | N19: 1,755,927 | O19: 1,967,301 | P19: 1,972,835
A20: Kolombiya | B20: 44,553 | C20: 46,377 | D20: 46,779 | E20: 46,509 | F20: 51,335 | G20: 53,719 | H20: 64,738 | I20: 75,903 | J20: 78,763 | K20: 91,923 | L20: 101,301 | M20: 110,492 | N20: 120,153 | O20: 124,579 | P20: 131,744
A21: Macaristan | B21: 167,736 | C21: 215,265 | D21: 211,533 | E21: 222,009 | F21: 239,561 | G21: 238,865 | H21: 208,996 | I21: 208,143 | J21: 203,472 | K21: 200,485 | L21: 184,098 | M21: 156,295 | N21: 145,519 | O21: 153,997 | P21: 148,046
A22: Malezya | B22: 62,326 | C22: 75,326 | D22: 74,670 | E22: 73,258 | F22: 77,858 | G22: 76,376 | H22: 82,320 | I22: 91,662 | J22: 98,647 | K22: 212,284 | L22: 213,873 | M22: 194,279 | N22: 204,203 | O22: 216,585 | P22: 223,484
A23: Meksika | B23: 193,143 | C23: 201,674 | D23: 170,380 | E23: 173,484 | F23: 191,437 | G23: 198,634 | H23: 250,955 | I23: 285,351 | J23: 372,104 | K23: 424,023 | L23: 426,939 | M23: 417,589 | N23: 415,666 | O23: 438,143 | P23: 447,576
A24: Mısır | B24: 32,840 | C24: 32,123 | D24: 30,880 | E24: 31,531 | F24: 32,399 | G24: 33,287 | H24: 34,993 | I24: 33,693 | J24: 38,824 | K24: 45,752 | L24: 41,324 | M24: 47,792 | N24: 67,323 | O24: 82,885 | P24: 96,612
A25: Peru | B25: 32,567 | C25: 34,587 | D25: 34,195 | E25: 34,104 | F25: 34,655 | G25: 35,731 | H25: 40,574 | I25: 43,515 | J25: 53,325 | K25: 56,508 | L25: 61,270 | M25: 65,938 | N25: 69,609 | O25: 67,519 | P25: 67,194
A26: Polonya | B26: 233,074 | C26: 243,477 | D26: 225,438 | E26: 246,827 | F26: 276,110 | G26: 280,187 | H26: 315,341 | I26: 320,637 | J26: 365,745 | K26: 382,087 | L26: 354,720 | M26: 329,967 | N26: 337,633 | O26: 382,010 | P26: 358,789
A27: Şili | B27: 55,671 | C27: 64,768 | D27: 64,552 | E27: 64,222 | F27: 68,393 | G27: 72,991 | H27: 86,738 | I27: 98,579 | J27: 117,569 | K27: 130,724 | L27: 149,652 | M27: 155,656 | N27: 163,789 | O27: 180,184 | P27: 184,440
A28: Tayland | B28: 61,738 | C28: 65,225 | D28: 62,357 | E28: 63,067 | F28: 67,433 | G28: 75,307 | H28: 100,561 | I28: 104,386 | J28: 130,747 | K28: 141,933 | L28: 140,135 | M28: 131,427 | N28: 132,194 | O28: 155,225 | P28: 161,014
A29: TÜRKİYE | B29: 249,390 | C29: 278,302 | D29: 266,632 | E29: 268,559 | F29: 269,934 | G29: 268,794 | H29: 290,022 | I29: 306,703 | J29: 337,679 | K29: 389,273 | L29: 402,705 | M29: 397,711 | N29: 404,460 | O29: 455,545 | P29: 444,878
A30: Yunanistan | B30: 454,200 | C30: 504,612 | D30: 491,294 | E30: 553,003 | F30: 594,598 | G30: 587,562 | H30: 543,706 | I30: 478,678 | J30: 577,182 | K30: 575,400 | L30: 515,330 | M30: 480,326 | N30: 454,094 | O30: 484,242 | P30: 461,905
A31: Kaynak:The World Bank Group (BIS-IMF-OECD)
A32: http://databank.worldbank.org/data/Views/Reports/ReportWidgetCustom.aspx?Report_Name=Table-1-SDDS-new&Id=4f2f0c86
A33: Güncelleme tarihi: 07.05.2019
A35: İÇİNDEKİLER SAYFASI

Sheet III.8
A1: III.8. DIŞ TİCARET GÖSTERGELERİ* (milyon dolar)
B2: İthalat | M2: İhracat | X2: İhracat - İthalat
A3: Ülkeler | B3: 2006 | C3: 2009 | D3: 2010 | E3: 2011 | F3: 2012 | G3: 2013 | H3: 2014 | I3: 2015 | J3: 2016 | K3: 2017 | L3: 2018 | M3: 2006 | N3: 2009 | O3: 2010 | P3: 2011 | Q3: 2012 | R3: 2013 | S3: 2014 | T3: 2015 | U3: 2016 | V3: 2017 | W3: 2018 | X3: 2006 | Y3: 2009 | Z3: 2010 | AA3: 2011 | AB3: 2012 | AC3: 2013 | AD3: 2014 | AE3: 2015 | AF3: 2016 | AG3: 2017 | AH3: 2018
A4: Gelişmiş Ülkeler
A5: Almanya | B5: 906.4 | C5: 874,348 | D5: 998,891 | E5: 1,202,134 | F5: 1,117,585 | G5: 1,151,810 | H5: 1,177,259 | I5: 1,018,579 | J5: 1,024,072 | K5: 1,130,831 | L5: 1,263,913 | M5: 1,108 | N5: 1,069,717 | O5: 1,211,896 | P5: 1,428,746 | Q5: 1,374,050 | R5: 1,422,357 | S5: 1,468,663 | T5: 1,294,127 | U5: 1,303,387 | V5: 1,416,153 | W5: 1,525,780 | X5: =M5-B5 -> 201 | Y5: 195,369 | Z5: 213,005 | AA5: 226,612 | AB5: 256,465 | AC5: 270,547 | AD5: 291,404 | AE5: 275,548 | AF5: 279,315 | AG5: 285,322 | AH5: 261,867
A6: ABD | B6: 1,853.9 | C6: 1,580,025 | D6: 1,938,950 | E6: 2,239,885 | F6: 2,303,749 | G6: 2,294,247 | H6: 2,385,480 | I6: 2,273,250 | J6: 2,208,008 | K6: 2,360,879 | L6: 2,563,651 | M6: 1,037 | N6: 1,070,331 | O6: 1,290,278 | P6: 1,498,886 | Q6: 1,562,631 | R6: 1,593,707 | S6: 1,635,563 | T6: 1,511,381 | U6: 1,456,956 | V6: 1,553,383 | W6: 1,672,331 | X6: =M6-B6 -> -817 | Y6: =N6-C6 -> -509,694 | Z6: =O6-D6 -> -648,672 | AA6: =P6-E6 -> -740,999 | AB6: -741,118 | AC6: -700,540 | AD6: -749,917 | AE6: -761,869 | AF6: -751,052 | AG6: -807,496 | AH6: -891,320
A7: Avusturya | B7: 137.2 | C7: 131,905 | D7: 146,854 | E7: 175,146 | F7: 164,294 | G7: 165,527 | H7: 166,207 | I7: 140,780 | J7: 142,244 | K7: 156,001 | L7: 173,814 | M7: 137 | N7: 131,221 | O7: 145,021 | P7: 170,097 | Q7: 160,230 | R7: 164,205 | S7: 167,318 | T7: 143,304 | U7: 144,325 | V7: 156,984 | W7: 179,110 | X7: -0 | Y7: -684 | Z7: -1,833 | AA7: -5,049 | AB7: -4,064 | AC7: -1,322 | AD7: 1,112 | AE7: 2,525 | AF7: 2,080 | AG7: 983 | AH7: 5,296
A8: Fransa | B8: 541.7 | C8: 520,179 | D8: 571,261 | E8: 677,147 | F8: 631,001 | G8: 639,213 | H8: 636,718 | I8: 554,020 | J8: 558,713 | K8: 607,623 | L8: 663,437 | M8: 496 | N8: 469,238 | O8: 507,441 | P8: 586,894 | Q8: 560,981 | R8: 582,089 | S8: 580,107 | T8: 521,999 | U8: 520,507 | V8: 553,318 | W8: 607,338 | X8: -46 | Y8: -50,941 | Z8: -63,820 | AA8: -90,253 | AB8: -70,020 | AC8: -57,125 | AD8: -56,610 | AE8: =T8-I8 -> -32,021 | AF8: -38,206 | AG8: -54,306 | AH8: -56,099
A9: Hollanda | B9: 416.7 | C9: 348,683 | D9: 397,417 | E9: 464,185 | F9: 455,410 | G9: 467,336 | H9: 469,337 | I9: 391,507 | J9: 392,794 | K9: 441,055 | L9: 490,742 | M9: 463 | N9: 422,614 | O9: 477,186 | P9: 554,459 | Q9: 546,793 | R9: 567,359 | S9: 570,065 | T9: 464,109 | U9: 465,452 | V9: 520,959 | W9: 571,104 | X9: 47 | Y9: 73,932 | Z9: 79,769 | AA9: 90,274 | AB9: 91,382 | AC9: 100,023 | AD9: 100,728 | AE9: 72,602 | AF9: 72,659 | AG9: 79,904 | AH9: 80,361
A10: İngiltere | B10: 560.1 | C10: 487,544 | D10: 560,111 | E10: 638,283 | F10: 643,516 | G10: 655,542 | H10: 683,588 | I10: 618,127 | J10: 582,662 | K10: 612,665 | L10: 651,881 | M10: 452 | N10: 354,528 | O10: 412,436 | P10: 487,014 | Q10: 474,408 | R10: 469,546 | S10: 482,604 | T10: 438,126 | U10: 403,633 | V10: 436,202 | W10: 467,694 | X10: -108 | Y10: -133,016 | Z10: -147,675 | AA10: -151,269 | AB10: -169,108 | AC10: -185,996 | AD10: -200,985 | AE10: -180,001 | AF10: -179,029 | AG10: -176,463 | AH10: -184,187
A11: İspanya | B11: 328.6 | C11: 285,358 | D11: 316,060 | E11: 362,150 | F11: 325,761 | G11: 331,291 | H11: 346,993 | I11: 301,662 | J11: 300,870 | K11: 337,961 | L11: 375,101 | M11: 214 | N11: 227,742 | O11: 252,747 | P11: 300,306 | Q11: 288,165 | R11: 312,692 | S11: 317,516 | T11: 277,713 | U11: 283,987 | V11: 313,339 | W11: 338,092 | X11: -115 | Y11: -57,616 | Z11: -63,313 | AA11: -61,843 | AB11: -37,596 | AC11: -18,600 | AD11: -29,477 | AE11: -23,949 | AF11: -16,883 | AG11: -24,623 | AH11: -37,008
A12: İtalya | B12: 442.4 | C12: 396,342 | D12: 464,021 | E12: 531,801 | F12: 463,465 | G12: 455,306 | H12: 453,902 | I12: 393,672 | J12: 389,642 | K12: 434,430 | L12: 481,595 | M12: 417 | N12: 395,750 | O12: 435,239 | P12: 505,963 | Q12: 485,095 | R12: 503,227 | S12: 516,802 | T12: 450,364 | U12: 453,408 | V12: 496,415 | W12: 537,279 | X12: -26 | Y12: -592 | Z12: -28,782 | AA12: -25,837 | AB12: 21,630 | AC12: 47,921 | AD12: 62,900 | AE12: 56,692 | AF12: 63,766 | AG12: 61,985 | AH12: 55,685
A13: Japonya | B13: 578.8 | C13: 488,760 | D13: 625,285 | E13: 794,104 | F13: 829,793 | G13: 784,876 | H13: 798,696 | I13: 629,413 | J13: 584,316 | K13: 644,859 | L13: 724,757 | M13: 647 | N13: 546,337 | O13: 733,716 | P13: 789,962 | Q13: 776,269 | R13: 694,983 | S13: 699,825 | T13: 622,089 | U13: 635,027 | V13: 688,638 | W13: 735,606 | X13: 68 | Y13: 57,577 | Z13: 108,431 | AA13: -4,143 | AB13: -53,524 | AC13: -89,894 | AD13: -98,871 | AE13: -7,324 | AF13: 50,712 | AG13: 43,779 | AH13: 10,849
A14: Kanada | B14: 350.0 | C14: 327,662 | D14: 401,531 | E14: 461,059 | F14: 475,162 | G14: 473,117 | H14: 474,938 | I14: 429,237 | J14: 412,721 | K14: 442,277 | L14: 468,377 | M14: 388 | N14: 321,727 | O14: 392,114 | P14: 461,633 | Q14: 461,864 | R14: 465,209 | S14: 479,168 | T14: 409,964 | U14: 393,463 | V14: 423,293 | W14: 451,793 | X14: 38 | Y14: -5,935 | Z14: -9,417 | AA14: 574 | AB14: -13,298 | AC14: -7,908 | AD14: 4,230 | AE14: -19,273 | AF14: -19,257 | AG14: -18,984 | AH14: -16,584
A15: Gelişmekte Olan Ülkeler
A16: Brezilya | B16: 91.4 | C16: 128,652 | D16: 182,833 | E16: 227,881 | F16: 224,864 | G16: 241,189 | H16: 230,727 | I16: 172,422 | J16: 139,416 | K16: 153,215 | L16: 185,447 | M16: 138 | N16: 153,609 | O16: 201,324 | P16: 255,506 | Q16: 242,283 | R16: 241,577 | S16: 224,098 | T16: 190,077 | U16: 184,453 | V16: 217,243 | W16: 239,034 | X16: =M16-B16 -> 46 | Y16: 24,958 | Z16: 18,491 | AA16: =P16-E16 -> 27,625 | AB16: 17,420 | AC16: 389 | AD16: -6,629 | AE16: 17,655 | AF16: 45,037 | AG16: 64,028 | AH16: 53,587
A17: Çin | B17: 791.8 | C17: 883,614 | D17: 1,239,986 | E17: 1,579,105 | F17: 1,661,947 | G17: 1,789,608 | H17: 1,808,720 | I17: 1,566,562 | J17: 1,500,636 | K17: 1,740,272 | L17: 2,022,272 | M17: 969 | N17: 1,119,091 | O17: 1,478,073 | P17: 1,807,806 | Q17: 1,973,516 | R17: 2,148,589 | S17: 2,243,761 | T17: 2,142,754 | U17: 1,989,519 | V17: 2,216,214 | W17: 2,417,443 | X17: 178 | Y17: 235,477 | Z17: 238,087 | AA17: 228,701 | AB17: 311,569 | AC17: 358,981 | AD17: 435,041 | AE17: 576,192 | AF17: 488,883 | AG17: 475,942 | AH17: 395,171
A18: Endonezya | B18: 61.1 | C18: 81,000 | D18: 118,963 | E18: 157,284 | F18: 178,667 | G18: 176,256 | H18: 168,310 | I18: 135,076 | J18: 129,152 | K18: 150,069 | L18: 181,178 | M18: 101 | N18: 113,266 | O18: 149,966 | P18: 191,109 | Q18: 187,347 | R18: 182,089 | S18: 175,293 | T18: 149,125 | U18: 144,470 | V18: 168,883 | W18: 180,747 | X18: 40 | Y18: 32,267 | Z18: 31,003 | AA18: 33,825 | AB18: 8,680 | AC18: 5,833 | AD18: 6,983 | AE18: 14,049 | AF18: 15,318 | AG18: 18,814 | AH18: =W18-L18 -> -431
A19: Güney Afrika | B19: 68.2 | C19: 66,224 | D19: 83,198 | E19: 102,689 | F19: 104,650 | G19: 103,946 | H19: 98,560 | I19: 84,382 | J19: 74,195 | K19: 82,765 | L19: 92,361 | M19: 58 | N19: 69,541 | O19: 91,359 | P19: 109,466 | Q19: 100,169 | R19: 96,757 | S19: 93,504 | T19: 80,693 | U19: 76,289 | V19: 87,635 | W19: 94,195 | X19: -10 | Y19: 3,317 | Z19: 8,160 | AA19: 6,778 | AB19: =Q19-F19 -> -4,481 | AC19: -7,189 | AD19: -5,056 | AE19: -3,689 | AF19: 2,093 | AG19: 4,870 | AH19: 1,834
A20: Hindistan | B20: 178.4 | C20: 274,576 | D20: 359,967 | E20: 475,459 | F20: 502,997 | G20: 480,553 | H20: 472,395 | I20: 409,144 | J20: 376,121 | K20: 452,054 | L20: 519,591 | M20: 122 | N20: 167,644 | O20: 230,733 | P20: 307,189 | Q20: 301,465 | R20: 319,701 | S20: 328,381 | T20: 272,149 | U20: 268,616 | V20: 304,165 | W20: 332,140 | X20: -57 | Y20: -106,932 | Z20: -129,234 | AA20: -168,270 | AB20: -201,533 | AC20: =R20-G20 -> -160,852 | AD20: =S20-H20 -> -144,014 | AE20: -136,995 | AF20: -107,506 | AG20: -147,889 | AH20: -187,451
A21: Kore | B21: 309.4 | C21: 315,876 | D21: 415,902 | E21: 559,199 | F21: 555,076 | G21: 538,134 | H21: 527,252 | I21: 422,808 | J21: 395,464 | K21: 466,717 | L21: 513,571 | M21: 325 | N21: 363,931 | O21: 463,835 | P21: 587,213 | Q21: 603,665 | R21: 618,393 | S21: 613,397 | T21: 543,083 | U21: 511,926 | V21: 580,310 | W21: 625,437 | X21: 16 | Y21: 48,056 | Z21: 47,932 | AA21: 28,014 | AB21: 48,589 | AC21: 80,259 | AD21: 86,145 | AE21: =T21-I21 -> 120,275 | AF21: 116,462 | AG21: 113,593 | AH21: 111,867
A22: Rusya | B22: 163.2 | C22: 183,924 | D22: 245,680 | E22: 318,555 | F22: 335,771 | G22: 341,269 | H22: 307,875 | I22: 193,021 | J22: 191,494 | K22: 238,125 | L22: 248,620 | M22: 297 | N22: 297,155 | O22: 392,674 | P22: 515,409 | Q22: 527,434 | R22: 521,836 | S22: 496,806 | T22: 341,419 | U22: 281,709 | V22: 353,547 | W22: 443,070 | X22: 134 | Y22: 113,231 | Z22: 146,995 | AA22: 196,854 | AB22: 191,663 | AC22: 180,566 | AD22: 188,931 | AE22: 148,398 | AF22: =U22-J22 -> 90,215 | AG22: 115,422 | AH22: 194,451
A23: TÜRKİYE | B23: 140.1 | C23: 134,494 | D23: 177,317 | E23: 231,552 | F23: 227,315 | G23: 241,706 | H23: 232,519 | I23: 200,100 | J23: 191,053 | K23: 225,114 | L23: 216,334 | M23: 86 | N23: 109,732 | O23: 120,992 | P23: 142,392 | Q23: 161,948 | R23: 161,786 | S23: 168,926 | T23: 151,972 | U23: 150,166 | V23: 166,161 | W23: 174,647 | X23: -54 | Y23: -24,762 | Z23: -56,325 | AA23: =P23-E23 -> -89,160 | AB23: -65,367 | AC23: -79,921 | AD23: -63,593 | AE23: -48,127 | AF23: -40,887 | AG23: =V23-K23 -> -58,953 | AH23: =W23-L23 -> -41,687
A24: Kaynak: OECD
A25: * Rakamlar mal ihracat ve ithalatını göstermektedir.
A26: Güncelleme Tarihi: 13.05.2019
A29: İÇİNDEKİLER SAYFASI

Sheet III.9
A1: III.9. CARİ İŞLEMLER DENGESİ (GSYH'ya oranı)
A3: Ülkeler | B3: 1999 | C3: 2000 | D3: 2001 | E3: 2002 | F3: 2003 | G3: 2004 | H3: 2005 | I3: 2006 | J3: 2007 | K3: 2008 | L3: 2009 | M3: 2010 | N3: 2011 | O3: 2012 | P3: 2013 | Q3: 2014 | R3: 2015 | S3: 2016 | T3: 2017 | U3: 2018(*) | V3: 2019(*) | W3: 2020(*) | X3: 2021(*) | Y3: 2022(*) | Z3: 2023(*)
A4: Almanya | B4: -1.42 | C4: -1.75 | D4: -0.36 | E4: 1.89 | F4: 1.41 | G4: 4.46 | H4: 4.60 | I4: 5.68 | J4: 6.75 | K4: 5.60 | L4: 5.74 | M4: 5.62 | N4: 6.11 | O4: 7.02 | P4: 6.73 | Q4: 7.45 | R4: 8.90 | S4: 8.51 | T4: 7.97 | U4: 7.36 | V4: 7.05 | W4: 6.78 | X4: 6.48 | Y4: 6.38 | Z4: 6.28
A5: Amerika | B5: -2.99 | C5: -3.94 | D5: -3.68 | E5: -4.12 | F5: -4.53 | G5: -5.17 | H5: -5.72 | I5: -5.83 | J5: -4.92 | K5: -4.63 | L5: -2.58 | M5: -2.88 | N5: -2.87 | O5: -2.64 | P5: -2.08 | Q5: -2.08 | R5: -2.24 | S5: -2.31 | T5: -2.31 | U5: -2.29 | V5: -2.41 | W5: -2.63 | X5: -2.70 | Y5: -2.55 | Z5: -2.39
A6: Arjantin | B6: -3.93 | C6: -2.96 | D6: -1.36 | E6: 7.93 | F6: 5.77 | G6: 1.80 | H6: 2.47 | I6: 2.79 | J6: 2.10 | K6: 1.49 | L6: 2.17 | M6: -0.38 | N6: -1.01 | O6: -0.37 | P6: -2.15 | Q6: -1.63 | R6: -2.74 | S6: -2.71 | T6: -4.92 | U6: -5.35 | V6: -1.98 | W6: -2.49 | X6: -2.52 | Y6: -2.48 | Z6: -2.47
A7: Austurya | B7: -2.26 | C7: -0.71 | D7: -0.80 | E7: 2.10 | F7: 1.55 | G7: 2.08 | H7: 2.26 | I7: 3.30 | J7: 3.80 | K7: 4.49 | L7: 2.60 | M7: 2.86 | N7: 1.63 | O7: 1.48 | P7: 1.94 | Q7: 2.47 | R7: 1.73 | S7: 2.48 | T7: 1.95 | U7: 2.34 | V7: 2.03 | W7: 1.92 | X7: 1.88 | Y7: 1.95 | Z7: 1.94
A8: Brezilya | B8: -4.31 | C8: -3.78 | D8: -4.24 | E8: -1.59 | F8: 0.67 | G8: 1.70 | H8: 1.52 | I8: 1.18 | J8: 0.03 | K8: -1.81 | L8: -1.58 | M8: -3.58 | N8: -2.92 | O8: -3.40 | P8: -3.23 | Q8: -4.13 | R8: -3.03 | S8: -1.34 | T8: -0.35 | U8: -0.78 | V8: -1.69 | W8: -1.61 | X8: -1.65 | Y8: -1.71 | Z8: -1.82
A9: Çin | B9: 1.92 | C9: 1.68 | D9: 1.30 | E9: 2.40 | F9: 2.58 | G9: 3.51 | H9: 5.73 | I9: 8.36 | J9: 9.89 | K9: 9.13 | L9: 4.75 | M9: 3.92 | N9: 1.81 | O9: 2.51 | P9: 1.54 | Q9: 2.24 | R9: 2.71 | S9: 1.80 | T9: 1.37 | U9: 0.37 | V9: 0.42 | W9: 0.26 | X9: 0.12 | Y9: -0.04 | Z9: -0.11
A10: Danimarka | B10: 2.53 | C10: 1.99 | D10: 3.65 | E10: 3.00 | F10: 3.93 | G10: 4.05 | H10: 4.19 | I10: 3.33 | J10: 1.45 | K10: 2.92 | L10: 3.47 | M10: 6.56 | N10: 6.59 | O10: 6.28 | P10: 7.76 | Q10: 8.92 | R10: 8.25 | S10: 7.92 | T10: 7.96 | U10: 6.03 | V10: 5.52 | W10: 5.11 | X10: 4.78 | Y10: 4.54 | Z10: 4.44
A11: Endonezya | B11: 3.40 | C11: 4.45 | D11: 3.95 | E11: 3.68 | F11: 3.17 | G11: 1.88 | H11: 0.51 | I11: 2.41 | J11: 1.45 | K11: 0.02 | L11: 1.84 | M11: 0.70 | N11: 0.19 | O11: -2.66 | P11: -3.18 | Q11: -3.09 | R11: -2.04 | S11: -1.82 | T11: -1.60 | U11: -3.04 | V11: -2.73 | W11: -2.63 | X11: -2.60 | Y11: -2.55 | Z11: -2.44
A12: Filipinler | B12: -3.46 | C12: -2.75 | D12: -2.30 | E12: -0.35 | F12: 0.34 | G12: 1.78 | H12: 1.93 | I12: 5.70 | J12: 5.40 | K12: 0.08 | L12: 5.01 | M12: 3.60 | N12: 2.52 | O12: 2.78 | P12: 4.19 | Q12: 3.78 | R12: 2.48 | S12: -0.39 | T12: -0.69 | U12: -2.58 | V12: -2.20 | W12: -1.76 | X12: -1.49 | Y12: -1.40 | Z12: -1.40
A13: Finlandiya | B13: 5.15 | C13: 7.54 | D13: 8.06 | E13: 8.19 | F13: 4.64 | G13: 5.96 | H13: 3.21 | I13: 3.68 | J13: 3.70 | K13: 2.09 | L13: 1.64 | M13: 1.09 | N13: -1.74 | O13: -2.28 | P13: -2.25 | Q13: -1.83 | R13: -0.73 | S13: -0.75 | T13: -0.67 | U13: -0.47 | V13: 0.09 | W13: 0.42 | X13: 0.56 | Y13: 0.71 | Z13: 0.80
A14: Hindistan | B14: -1.01 | C14: -0.56 | D14: 0.69 | E14: 1.21 | F14: 2.28 | G14: -0.34 | H14: -1.19 | I14: -1.01 | J14: -1.27 | K14: -2.28 | L14: -2.82 | M14: -2.80 | N14: -4.29 | O14: -4.81 | P14: -1.74 | Q14: -1.31 | R14: -1.05 | S14: -0.63 | T14: -1.84 | U14: -2.52 | V14: -2.48 | W14: -2.39 | X14: -2.43 | Y14: -2.48 | Z14: -2.48
A15: İngiltere | B15: -2.51 | C15: -2.42 | D15: -2.25 | E15: -2.27 | F15: -1.93 | G15: -2.31 | H15: -2.04 | I15: -3.05 | J15: -3.59 | K15: -4.23 | L15: -3.55 | M15: -3.38 | N15: -1.96 | O15: -3.77 | P15: -5.15 | Q15: -4.93 | R15: -4.91 | S15: -5.22 | T15: -3.34 | U15: -3.86 | V15: -4.15 | W15: -3.96 | X15: -3.92 | Y15: -3.88 | Z15: -3.82
A16: İrlanda | B16: 0.24 | C16: 0.62 | D16: 0.18 | E16: 0.25 | F16: 0.49 | G16: -0.10 | H16: -3.54 | I16: -5.35 | J16: -6.51 | K16: -6.24 | L16: -4.65 | M16: -1.20 | N16: -1.64 | O16: -3.39 | P16: 1.55 | Q16: 1.07 | R16: 4.41 | S16: -4.17 | T16: 8.49 | U16: 9.99 | V16: 9.14 | W16: 8.30 | X16: 7.78 | Y16: 7.40 | Z16: 6.91
A17: İspanya | B17: -3.30 | C17: -4.40 | D17: -4.39 | E17: -3.74 | F17: -3.88 | G17: -5.59 | H17: -7.49 | I17: -8.99 | J17: -9.65 | K17: -9.25 | L17: -4.28 | M17: -3.92 | N17: -3.18 | O17: -0.23 | P17: 1.52 | Q17: 1.08 | R17: 1.16 | S17: 2.26 | T17: 1.84 | U17: 0.78 | V17: 0.82 | W17: 0.83 | X17: 0.81 | Y17: 0.81 | Z17: 0.82
A18: İsrail | B18: -1.32 | C18: -1.51 | D18: -1.48 | E18: -0.89 | F18: 0.60 | G18: 1.50 | H18: 3.06 | I18: 4.09 | J18: 3.14 | K18: 1.02 | L18: 3.25 | M18: 3.88 | N18: 2.02 | O18: 0.57 | P18: 2.98 | Q18: 4.29 | R18: 5.26 | S18: 3.69 | T18: 2.63 | U18: 1.90 | V18: 1.67 | W18: 1.44 | X18: 1.48 | Y18: 1.54 | Z18: 1.64
A19: İsveç | B19: 3.93 | C19: 3.96 | D19: 4.73 | E19: 4.48 | F19: 5.88 | G19: 6.00 | H19: 6.04 | I19: 8.19 | J19: 8.17 | K19: 7.83 | L19: 6.03 | M19: 5.96 | N19: 5.56 | O19: 5.58 | P19: 5.23 | Q19: 4.55 | R19: 4.15 | S19: 3.79 | T19: 2.79 | U19: 1.95 | V19: 2.44 | W19: 2.46 | X19: 2.56 | Y19: 2.69 | Z19: 2.83
A20: İtalya | B20: 1.13 | C20: 0.06 | D20: 0.53 | E20: -0.27 | F20: -0.61 | G20: -0.35 | H20: -0.90 | I20: -1.50 | J20: -1.39 | K20: -2.82 | L20: -1.89 | M20: -3.41 | N20: -3.00 | O20: -0.34 | P20: 0.99 | Q20: 1.91 | R20: 1.48 | S20: 2.54 | T20: 2.79 | U20: 2.58 | V20: 2.91 | W20: 2.60 | X20: 2.38 | Y20: 2.11 | Z20: 1.82
A21: Japonya | B21: 2.50 | C21: 2.67 | D21: 2.00 | E21: 2.65 | F21: 3.14 | G21: 3.78 | H21: 3.58 | I21: 3.85 | J21: 4.70 | K21: 2.83 | L21: 2.78 | M21: 3.88 | N21: 2.11 | O21: 0.96 | P21: 0.89 | Q21: 0.76 | R21: 3.11 | S21: 3.96 | T21: 4.04 | U21: 3.50 | V21: 3.49 | W21: 3.58 | X21: 3.49 | Y21: 3.47 | Z21: 3.46
A22: Kanada | B22: 0.12 | C22: 2.50 | D22: 2.12 | E22: 1.65 | F22: 1.14 | G22: 2.26 | H22: 1.84 | I22: 1.36 | J22: 0.76 | K22: 0.10 | L22: -2.94 | M22: -3.60 | N22: -2.77 | O22: -3.60 | P22: -3.21 | Q22: -2.40 | R22: -3.54 | S22: -3.20 | T22: -2.81 | U22: -2.65 | V22: -3.09 | W22: -2.82 | X22: -2.59 | Y22: -2.60 | Z22: -2.65
A23: Kolomiya | B23: 0.65 | C23: 0.84 | D23: -1.07 | E23: -1.34 | F23: -1.01 | G23: -0.68 | H23: -1.30 | I23: -1.80 | J23: -2.92 | K23: -2.67 | L23: -2.00 | M23: -3.05 | N23: -2.93 | O23: -3.07 | P23: -3.27 | Q23: -5.18 | R23: -6.33 | S23: -4.25 | T23: -3.30 | U23: -3.80 | V23: -3.93 | W23: -3.76 | X23: -3.74 | Y23: -3.73 | Z23: -3.74
A24: Kore | B24: 4.49 | C24: 1.81 | D24: 0.41 | E24: 0.67 | F24: 1.66 | G24: 3.83 | H24: 1.36 | I24: 0.21 | J24: 0.93 | K24: 0.18 | L24: 3.67 | M24: 2.55 | N24: 1.38 | O24: 3.99 | P24: 5.92 | Q24: 5.88 | R24: 7.60 | S24: 6.92 | T24: 4.92 | U24: 4.72 | V24: 4.59 | W24: 4.48 | X24: 4.35 | Y24: 4.41 | Z24: 4.48
A25: Lüksemburg | B25: 10.73 | C25: 12.61 | D25: 8.31 | E25: 9.33 | F25: 6.48 | G25: 11.80 | H25: 10.99 | I25: 9.90 | J25: 9.74 | K25: 7.57 | L25: 7.21 | M25: 6.67 | N25: 6.05 | O25: 5.63 | P25: 5.42 | Q25: 5.16 | R25: 5.12 | S25: 5.06 | T25: 4.95 | U25: 5.17 | V25: 5.03 | W25: 5.04 | X25: 4.85 | Y25: 4.82 | Z25: 4.80
A26: Macaristan | B26: -7.87 | C26: -8.49 | D26: -5.82 | E26: -6.33 | F26: -7.98 | G26: -8.53 | H26: -6.98 | I26: -7.00 | J26: -7.08 | K26: -7.10 | L26: -0.81 | M26: 0.28 | N26: 0.75 | O26: 1.76 | P26: 3.82 | Q26: 1.51 | R26: 2.82 | S26: 6.18 | T26: 2.79 | U26: 0.49 | V26: 0.48 | W26: 0.61 | X26: 0.93 | Y26: 1.19 | Z26: 1.06
A27: Malezya | B27: 14.83 | C27: 8.43 | D27: 7.31 | E27: 6.64 | F27: 11.31 | G27: 11.26 | H27: 13.96 | I27: 15.58 | J27: 14.87 | K27: 16.53 | L27: 15.04 | M27: 10.08 | N27: 10.89 | O27: 5.17 | P27: 3.48 | Q27: 4.39 | R27: 3.03 | S27: 2.43 | T27: 2.98 | U27: 2.33 | V27: 2.14 | W27: 2.07 | X27: 1.64 | Y27: 1.13 | Z27: 0.83
A28: Meksika | B28: -2.34 | C28: -2.65 | D28: -2.31 | E28: -1.73 | F28: -0.76 | G28: -0.72 | H28: -0.88 | I28: -0.38 | J28: -0.95 | K28: -1.53 | L28: -0.88 | M28: -0.50 | N28: -1.06 | O28: -1.56 | P28: -2.49 | Q28: -1.89 | R28: -2.61 | S28: -2.25 | T28: -1.68 | U28: -1.81 | V28: -1.70 | W28: -1.90 | X28: -1.84 | Y28: -1.91 | Z28: -1.88
A29: Mısır | B29: -1.81 | C29: -1.11 | D29: -0.03 | E29: 0.68 | F29: 2.28 | G29: 4.13 | H29: 3.09 | I29: 1.55 | J29: 1.66 | K29: 0.52 | L29: -2.23 | M29: -1.88 | N29: -2.46 | O29: -3.64 | P29: -2.22 | Q29: -0.90 | R29: -3.66 | S29: -5.97 | T29: -6.09 | U29: -2.39 | V29: -2.38 | W29: -1.72 | X29: -1.14 | Y29: -0.83 | Z29: -0.81
A30: Peru | B30: -2.80 | C30: -3.03 | D30: -2.32 | E30: -2.01 | F30: -1.58 | G30: 0.09 | H30: 1.55 | I30: 3.31 | J30: 1.49 | K30: -4.34 | L30: -0.52 | M30: -2.40 | N30: -1.75 | O30: -2.79 | P30: -4.64 | Q30: -4.41 | R30: -4.79 | S30: -2.69 | T30: -1.18 | U30: -1.49 | V30: -1.41 | W30: -1.54 | X30: -1.56 | Y30: -1.52 | Z30: -1.52
A31: Polonya | B31: -7.44 | C31: -6.04 | D31: -3.12 | E31: -2.79 | F31: -2.52 | G31: -5.42 | H31: -2.60 | I31: -4.02 | J31: -6.38 | K31: -6.71 | L31: -4.06 | M31: -5.40 | N31: -5.18 | O31: -3.72 | P31: -1.29 | Q31: -2.10 | R31: -0.56 | S31: -0.52 | T31: 0.11 | U31: -0.74 | V31: -1.15 | W31: -1.48 | X31: -1.73 | Y31: -1.80 | Z31: -1.79
A32: Rusya | B32: 12.62 | C32: 16.32 | D32: 9.76 | E32: 7.43 | F32: 7.19 | G32: 9.26 | H32: 10.32 | I32: 8.71 | J32: 5.19 | K32: 5.84 | L32: 3.85 | M32: 4.13 | N32: 4.76 | O32: 3.24 | P32: 1.46 | Q32: 2.80 | R32: 4.96 | S32: 1.91 | T32: 2.11 | U32: 7.05 | V32: 5.72 | W32: 5.06 | X32: 4.45 | Y32: 4.00 | Z32: 3.39
A33: Sri Lanka | B33: -3.62 | C33: -5.50 | D33: -0.96 | E33: -1.20 | F33: -0.34 | G33: -2.74 | H33: -2.17 | I33: -4.63 | J33: -3.78 | K33: -8.34 | L33: -0.45 | M33: -1.90 | N33: -7.07 | O33: -5.82 | P33: -3.42 | Q33: -2.51 | R33: -2.34 | S33: -2.13 | T33: -2.64 | U33: -3.17 | V33: -2.79 | W33: -2.61 | X33: -2.45 | Y33: -2.34 | Z33: -2.20
A34: Şili | B34: 0.13 | C34: -1.15 | D34: -1.62 | E34: -0.84 | F34: -0.20 | G34: 3.04 | H34: 1.71 | I34: 4.59 | J34: 4.32 | K34: -3.88 | L34: 1.92 | M34: 1.44 | N34: -1.65 | O34: -3.92 | P34: -4.05 | Q34: -1.68 | R34: -2.35 | S34: -1.59 | T34: -2.15 | U34: -3.08 | V34: -3.22 | W34: -2.77 | X34: -2.54 | Y34: -2.28 | Z34: -2.05
A35: Tayland | B35: 9.81 | C35: 7.37 | D35: 4.24 | E35: 3.47 | F35: 3.13 | G35: 1.60 | H35: -4.04 | I35: 1.04 | J35: 5.93 | K35: 0.32 | L35: 7.88 | M35: 3.37 | N35: 2.54 | O35: -0.43 | P35: -1.16 | Q35: 3.74 | R35: 8.00 | S35: 11.69 | T35: 11.03 | U35: 7.73 | V35: 7.07 | W35: 6.26 | X35: 5.77 | Y35: 5.29 | Z35: 4.85
A36: Türkiye | B36: -0.36 | C36: -3.63 | D36: 1.88 | E36: -0.26 | F36: -2.42 | G36: -3.51 | H36: -4.19 | I36: -5.66 | J36: -5.47 | K36: -5.16 | L36: -1.76 | M36: -5.78 | N36: -8.94 | O36: -5.49 | P36: -6.70 | Q36: -4.67 | R36: -3.74 | S36: -3.84 | T36: -5.56 | U36: -3.63 | V36: 0.71 | W36: -0.42 | X36: -1.09 | Y36: -1.75 | Z36: -2.25
A37: Yunanistan | B37: -3.58 | C37: -5.93 | D37: -6.89 | E37: -6.25 | F37: -6.30 | G37: -5.53 | H37: -7.35 | I37: -10.86 | J37: -13.92 | K37: -14.48 | L37: -10.87 | M37: -9.96 | N37: -9.97 | O37: -2.43 | P37: -2.55 | Q37: -2.35 | R37: -1.50 | S37: -2.35 | T37: -2.39 | U37: -3.35 | V37: -2.66 | W37: -2.64 | X37: -2.61 | Y37: -2.56 | Z37: -2.98
A38: Kaynak: IMF
A39: (*) Gölgeli hücreler IMF tahmini rakamlarını vermektedir.
A40: Güncelleme tarihi: 02.05.2019
A42: İÇİNDEKİLER SAYFASI

Sheet III.10
A1: III.10. İŞSİZLİK ORANI (%)
A3: Ülkeler | B3: 1999 | C3: 2000 | D3: 2001 | E3: 2002 | F3: 2003 | G3: 2004 | H3: 2005 | I3: 2006 | J3: 2007 | K3: 2008 | L3: 2009 | M3: 2010 | N3: 2011 | O3: 2012 | P3: 2013 | Q3: 2014 | R3: 2015 | S3: 2016 | T3: 2017 | U3: 2018(*) | V3: 2019(*) | W3: 2020(*) | X3: 2021(*) | Y3: 2022(*) | Z3: 2023(*)
A4: Almanya | B4: 8.56 | C4: 7.95 | D4: 7.80 | E4: 8.60 | F4: 9.71 | G4: 10.33 | H4: 11.01 | I4: 10.04 | J4: 8.58 | K4: 7.38 | L4: 7.67 | M4: 6.93 | N4: 5.86 | O4: 5.37 | P4: 5.24 | Q4: 5.01 | R4: 4.63 | S4: 4.15 | T4: 3.76 | U4: 3.39 | V4: 3.39 | W4: 3.32 | X4: 3.28 | Y4: 3.24 | Z4: 3.21
A5: Amerika | B5: 4.22 | C5: 3.97 | D5: 4.74 | E5: 5.78 | F5: 5.99 | G5: 5.54 | H5: 5.08 | I5: 4.61 | J5: 4.62 | K5: 5.80 | L5: 9.28 | M5: 9.61 | N5: 8.93 | O5: 8.08 | P5: 7.36 | Q5: 6.16 | R5: 5.28 | S5: 4.88 | T5: 4.35 | U5: 3.89 | V5: 3.79 | W5: 3.71 | X5: 3.75 | Y5: 3.92 | Z5: 4.01
A6: Arjantin | B6: 16.06 | C6: 17.13 | D6: 19.21 | E6: 22.45 | F6: 17.25 | G6: 13.63 | H6: 11.58 | I6: 10.18 | J6: 8.48 | K6: 7.88 | L6: 8.68 | M6: 7.75 | N6: 7.15 | O6: 7.20 | P6: 7.08 | Q6: 7.25 | R6: 6.53 | S6: 8.47 | T6: 8.35 | U6: 9.20 | V6: 9.94 | W6: 9.89 | X6: 9.67 | Y6: 9.41 | Z6: 9.08
A7: Austurya | B7: 4.14 | C7: 3.88 | D7: 4.01 | E7: 4.39 | F7: 4.79 | G7: 5.50 | H7: 5.65 | I7: 5.23 | J7: 4.87 | K7: 4.11 | L7: 5.33 | M7: 4.82 | N7: 4.58 | O7: 4.92 | P7: 5.34 | Q7: 5.62 | R7: 5.73 | S7: 6.03 | T7: 5.53 | U7: 4.85 | V7: 5.10 | W7: 5.00 | X7: 5.00 | Y7: 5.10 | Z7: 5.10
A8: Brezilya | B8: 14.70 | C8: 13.90 | D8: 12.50 | E8: 13.00 | F8: 13.70 | G8: 12.90 | H8: 11.40 | I8: 11.50 | J8: 10.90 | K8: 9.40 | L8: 9.70 | M8: 8.50 | N8: 7.80 | O8: 7.40 | P8: 7.20 | Q8: 6.79 | R8: 8.30 | S8: 11.27 | T8: 12.77 | U8: 12.26 | V8: 11.40 | W8: 10.20 | X8: 9.80 | Y8: 9.50 | Z8: 9.25
A9: Çin | B9: 3.10 | C9: 3.10 | D9: 3.60 | E9: 4.00 | F9: 4.30 | G9: 4.20 | H9: 4.20 | I9: 4.10 | J9: 4.00 | K9: 4.20 | L9: 4.30 | M9: 4.14 | N9: 4.09 | O9: 4.09 | P9: 4.05 | Q9: 4.09 | R9: 4.05 | S9: 4.02 | T9: 3.90 | U9: 3.80 | V9: 3.80 | W9: 3.80 | X9: 3.80 | Y9: 3.80 | Z9: 3.80
A10: Danimarka | B10: 5.11 | C10: 4.32 | D10: 4.51 | E10: 4.64 | F10: 5.43 | G10: 5.52 | H10: 4.80 | I10: 3.90 | J10: 3.78 | K10: 3.46 | L10: 5.99 | M10: 7.48 | N10: 7.56 | O10: 7.54 | P10: 7.00 | Q10: 6.53 | R10: 6.19 | S10: 6.21 | T10: 5.73 | U10: 4.96 | V10: 4.86 | W10: 4.86 | X10: 5.06 | Y10: 5.16 | Z10: 5.26
A11: Endonezya | B11: 6.36 | C11: 6.08 | D11: 8.10 | E11: 9.06 | F11: 9.50 | G11: 9.86 | H11: 11.24 | I11: 10.28 | J11: 9.11 | K11: 8.39 | L11: 7.87 | M11: 7.14 | N11: 6.56 | O11: 6.14 | P11: 6.25 | Q11: 5.94 | R11: 6.18 | S11: 5.61 | T11: 5.50 | U11: 5.34 | V11: 5.20 | W11: 5.01 | X11: 5.00 | Y11: 5.00 | Z11: 5.00
A12: Filipinler | B12: 9.73 | C12: 11.18 | D12: 11.13 | E12: 11.40 | F12: 11.40 | G12: 11.83 | H12: 11.35 | I12: 7.95 | J12: 7.33 | K12: 7.40 | L12: 7.48 | M12: 7.33 | N12: 7.03 | O12: 6.98 | P12: 7.08 | Q12: 6.80 | R12: 6.28 | S12: 5.48 | T12: 5.73 | U12: 5.33 | V12: 5.48 | W12: 5.42 | X12: 5.37 | Y12: 5.31 | Z12: 5.26
A13: Finlandiya | B13: 10.28 | C13: 9.88 | D13: 9.20 | E13: 9.18 | F13: 9.08 | G13: 8.88 | H13: 8.48 | I13: 7.78 | J13: 6.95 | K13: 6.43 | L13: 8.33 | M13: 8.50 | N13: 7.78 | O13: 7.68 | P13: 8.19 | Q13: 8.66 | R13: 9.38 | S13: 8.79 | T13: 8.59 | U13: 7.55 | V13: 7.18 | W13: 7.14 | X13: 7.04 | Y13: 6.94 | Z13: 6.94
A14: İngiltere | B14: 5.98 | C14: 5.45 | D14: 5.10 | E14: 5.20 | F14: 5.00 | G14: 4.75 | H14: 4.83 | I14: 5.43 | J14: 5.35 | K14: 5.73 | L14: 7.63 | M14: 7.90 | N14: 8.10 | O14: 7.98 | P14: 7.58 | Q14: 6.20 | R14: 5.38 | S14: 4.88 | T14: 4.43 | U14: 4.08 | V14: 4.23 | W14: 4.40 | X14: 4.30 | Y14: 4.20 | Z14: 4.20
A15: İrlanda | B15: 5.80 | C15: 4.48 | D15: 4.18 | E15: 4.73 | F15: 4.84 | G15: 4.74 | H15: 4.63 | I15: 4.78 | J15: 5.01 | K15: 6.80 | L15: 12.63 | M15: 14.59 | N15: 15.42 | O15: 15.50 | P15: 13.78 | Q15: 11.92 | R15: 9.96 | S15: 8.41 | T15: 6.73 | U15: 5.69 | V15: 5.34 | W15: 5.04 | X15: 5.01 | Y15: 4.87 | Z15: 4.88
A16: İspanya | B16: 15.64 | C16: 13.86 | D16: 10.54 | E16: 11.45 | F16: 11.49 | G16: 10.97 | H16: 9.15 | I16: 8.45 | J16: 8.23 | K16: 11.25 | L16: 17.86 | M16: 19.86 | N16: 21.39 | O16: 24.79 | P16: 26.10 | Q16: 24.44 | R16: 22.06 | S16: 19.64 | T16: 17.23 | U16: 15.26 | V16: 14.25 | W16: 14.06 | X16: 13.94 | Y16: 13.86 | Z16: 13.81
A17: İsrail | B17: 11.08 | C17: 10.90 | D17: 11.63 | E17: 12.88 | F17: 13.40 | G17: 12.90 | H17: 11.20 | I17: 10.45 | J17: 9.15 | K17: 7.65 | L17: 9.43 | M17: 8.25 | N17: 7.05 | O17: 6.88 | P17: 6.25 | Q17: 5.90 | R17: 5.28 | S17: 4.78 | T17: 4.25 | U17: 3.98 | V17: 3.97 | W17: 3.97 | X17: 4.11 | Y17: 4.14 | Z17: 4.15
A18: İsveç | B18: 7.55 | C18: 6.34 | D18: 5.83 | E18: 5.95 | F18: 6.57 | G18: 7.38 | H18: 7.64 | I18: 7.04 | J18: 6.12 | K18: 6.17 | L18: 8.30 | M18: 8.58 | N18: 7.77 | O18: 7.97 | P18: 8.00 | Q18: 7.93 | R18: 7.40 | S18: 6.95 | T18: 6.68 | U18: 6.28 | V18: 6.25 | W18: 6.31 | X18: 6.40 | Y18: 6.50 | Z18: 6.60
A19: İtalya | B19: 10.94 | C19: 10.10 | D19: 9.10 | E19: 8.61 | F19: 8.45 | G19: 7.98 | H19: 7.69 | I19: 6.79 | J19: 6.13 | K19: 6.73 | L19: 7.74 | M19: 8.35 | N19: 8.41 | O19: 10.68 | P19: 12.14 | Q19: 12.61 | R19: 11.91 | S19: 11.67 | T19: 11.26 | U19: 10.63 | V19: 10.73 | W19: 10.53 | X19: 10.38 | Y19: 10.28 | Z19: 10.18
A20: Japonya | B20: 4.67 | C20: 4.73 | D20: 5.04 | E20: 5.36 | F20: 5.24 | G20: 4.73 | H20: 4.43 | I20: 4.12 | J20: 3.83 | K20: 3.98 | L20: 5.08 | M20: 5.06 | N20: 4.58 | O20: 4.33 | P20: 4.01 | Q20: 3.58 | R20: 3.38 | S20: 3.11 | T20: 2.82 | U20: 2.44 | V20: 2.43 | W20: 2.43 | X20: 2.43 | Y20: 2.43 | Z20: 2.43
A21: Kanada | B21: 7.57 | C21: 6.83 | D21: 7.23 | E21: 7.67 | F21: 7.58 | G21: 7.16 | H21: 6.76 | I21: 6.29 | J21: 6.03 | K21: 6.16 | L21: 8.36 | M21: 8.00 | N21: 7.50 | O21: 7.33 | P21: 7.10 | Q21: 6.93 | R21: 6.90 | S21: 6.99 | T21: 6.33 | U21: 5.83 | V21: 5.89 | W21: 6.00 | X21: 6.12 | Y21: 6.25 | Z21: 6.39
A22: Kolombiya | B22: 13.10 | C22: 13.33 | D22: 14.98 | E22: 15.58 | F22: 14.11 | G22: 13.67 | H22: 11.81 | I22: 12.04 | J22: 11.19 | K22: 11.25 | L22: 12.02 | M22: 11.79 | N22: 10.84 | O22: 10.38 | P22: 9.65 | Q22: 9.13 | R22: 8.93 | S22: 9.20 | T22: 9.40 | U22: 9.70 | V22: 9.70 | W22: 9.50 | X22: 9.30 | Y22: 9.10 | Z22: 9.00
A23: Kore | B23: 6.55 | C23: 4.43 | D23: 4.00 | E23: 3.26 | F23: 3.55 | G23: 3.66 | H23: 3.75 | I23: 3.48 | J23: 3.26 | K23: 3.18 | L23: 3.63 | M23: 3.71 | N23: 3.41 | O23: 3.23 | P23: 3.10 | Q23: 3.49 | R23: 3.59 | S23: 3.68 | T23: 3.68 | U23: 3.84 | V23: 4.00 | W23: 3.85 | X23: 3.90 | Y23: 3.80 | Z23: 3.70
A24: Lüksemburg | B24: 2.89 | C24: 2.00 | D24: 2.00 | E24: 2.42 | F24: 3.00 | G24: 4.00 | H24: 4.00 | I24: 4.00 | J24: 4.00 | K24: 4.08 | L24: 5.58 | M24: 6.00 | N24: 6.00 | O24: 6.10 | P24: 6.82 | Q24: 7.07 | R24: 6.77 | S24: 6.34 | T24: 5.82 | U24: 4.96 | V24: 5.00 | W24: 4.97 | X24: 5.04 | Y24: 5.06 | Z24: 5.04
A25: Macaristan | B25: 6.95 | C25: 6.40 | D25: 5.73 | E25: 5.80 | F25: 5.85 | G25: 6.08 | H25: 7.20 | I25: 7.48 | J25: 7.40 | K25: 7.82 | L25: 10.03 | M25: 11.17 | N25: 11.03 | O25: 11.00 | P25: 10.18 | Q25: 7.73 | R25: 6.81 | S25: 5.12 | T25: 4.16 | U25: 3.71 | V25: 3.53 | W25: 3.35 | X25: 3.36 | Y25: 3.37 | Z25: 3.39
A26: Malezya | B26: 3.43 | C26: 3.10 | D26: 3.68 | E26: 3.48 | F26: 3.60 | G26: 3.55 | H26: 3.55 | I26: 3.33 | J26: 3.23 | K26: 3.33 | L26: 3.68 | M26: 3.03 | N26: 3.08 | O26: 2.93 | P26: 3.30 | Q26: 2.85 | R26: 3.15 | S26: 3.45 | T26: 3.43 | U26: 3.33 | V26: 3.33 | W26: 3.33 | X26: 3.33 | Y26: 3.33 | Z26: 3.33
A27: Meksika | B27: 2.50 | C27: 2.20 | D27: 2.77 | E27: 2.98 | F27: 3.40 | G27: 3.92 | H27: 3.48 | I27: 3.53 | J27: 3.61 | K27: 3.89 | L27: 5.33 | M27: 5.27 | N27: 5.17 | O27: 4.89 | P27: 4.90 | Q27: 4.82 | R27: 4.35 | S27: 3.88 | T27: 3.42 | U27: 3.33 | V27: 3.49 | W27: 3.56 | X27: 3.56 | Y27: 3.51 | Z27: 3.47
A28: Mısır | B28: 7.69 | C28: 9.00 | D28: 8.81 | E28: 10.05 | F28: 11.28 | G28: 10.53 | H28: 11.47 | I28: 10.92 | J28: 9.21 | K28: 8.68 | L28: 9.37 | M28: 9.21 | N28: 10.38 | O28: 12.37 | P28: 12.99 | Q28: 13.37 | R28: 12.86 | S28: 12.71 | T28: 12.25 | U28: 10.93 | V28: 9.59 | W28: 8.25 | X28: 7.63 | Y28: 7.00 | Z28: 6.38
A29: Peru | B29: 9.40 | C29: 7.85 | D29: 9.25 | E29: 9.42 | F29: 9.42 | G29: 9.44 | H29: 9.58 | I29: 8.54 | J29: 8.42 | K29: 8.38 | L29: 8.39 | M29: 7.88 | N29: 7.73 | O29: 6.80 | P29: 5.95 | Q29: 5.94 | R29: 6.49 | S29: 6.74 | T29: 6.88 | U29: 6.70 | V29: 6.58 | W29: 6.49 | X29: 6.42 | Y29: 6.37 | Z29: 6.33
A30: Polonya | B30: 13.13 | C30: 16.09 | D30: 18.24 | E30: 19.93 | F30: 19.64 | G30: 18.97 | H30: 17.75 | I30: 13.84 | J30: 9.60 | K30: 7.12 | L30: 8.17 | M30: 9.64 | N30: 9.63 | O30: 10.09 | P30: 10.33 | Q30: 8.99 | R30: 7.50 | S30: 6.16 | T30: 4.89 | U30: 3.79 | V30: 3.58 | W30: 3.49 | X30: 3.45 | Y30: 3.47 | Z30: 3.49
A31: Rusya | B31: 13.00 | C31: 10.60 | D31: 9.00 | E31: 8.04 | F31: 8.23 | G31: 7.73 | H31: 7.15 | I31: 7.05 | J31: 6.03 | K31: 6.23 | L31: 8.24 | M31: 7.36 | N31: 6.51 | O31: 5.45 | P31: 5.50 | Q31: 5.16 | R31: 5.58 | S31: 5.53 | T31: 5.20 | U31: 4.80 | V31: 4.80 | W31: 4.70 | X31: 4.65 | Y31: 4.75 | Z31: 4.90
A32: Sri Lanka | B32: 8.86 | C32: 7.57 | D32: 7.90 | E32: 8.80 | F32: 8.40 | G32: 8.30 | H32: 7.70 | I32: 6.60 | J32: 6.20 | K32: 6.00 | L32: 5.90 | M32: 5.00 | N32: 4.10 | O32: 4.00 | P32: 4.40 | Q32: 4.30 | R32: 4.70 | S32: 4.40 | T32: 4.40 | U32: 4.40 | V32: 4.40 | W32: 4.40 | X32: 4.40 | Y32: 4.40 | Z32: 4.40
A33: Şili | B33: 10.01 | C33: 9.71 | D33: 9.87 | E33: 9.80 | F33: 9.53 | G33: 10.02 | H33: 9.30 | I33: 7.95 | J33: 7.01 | K33: 7.75 | L33: 10.83 | M33: 8.15 | N33: 7.12 | O33: 6.43 | P33: 5.93 | Q33: 6.39 | R33: 6.21 | S33: 6.49 | T33: 6.67 | U33: 6.90 | V33: 6.49 | W33: 6.24 | X33: 6.07 | Y33: 6.04 | Z33: 6.02
A34: Tayland | B34: - | C34: - | D34: 3.33 | E34: 2.44 | F34: 2.19 | G34: 2.11 | H34: 1.86 | I34: 1.52 | J34: 1.36 | K34: 1.37 | L34: 1.50 | M34: 1.05 | N34: 0.66 | O34: 0.68 | P34: 0.70 | Q34: 0.80 | R34: 0.90 | S34: 1.00 | T34: 1.20 | U34: 1.20 | V34: 1.20 | W34: 1.20 | X34: 1.20 | Y34: 1.20 | Z34: 1.20
A35: Türkiye | B35: 7.16 | C35: 6.00 | D35: 7.80 | E35: 9.76 | F35: 9.93 | G35: 9.69 | H35: 9.49 | I35: 9.03 | J35: 9.18 | K35: 10.02 | L35: 13.05 | M35: 11.13 | N35: 9.10 | O35: 8.43 | P35: 9.04 | Q35: 9.92 | R35: 10.28 | S35: 10.91 | T35: 10.90 | U35: 10.96 | V35: 12.70 | W35: 11.42 | X35: 10.72 | Y35: 10.72 | Z35: 10.72
A36: Yunanistan | B36: 12.13 | C36: 11.35 | D36: 10.78 | E36: 10.35 | F36: 9.78 | G36: 10.60 | H36: 10.00 | I36: 9.00 | J36: 8.40 | K36: 7.75 | L36: 9.60 | M36: 12.73 | N36: 17.85 | O36: 24.43 | P36: 27.48 | Q36: 26.50 | R36: 24.90 | S36: 23.55 | T36: 21.45 | U36: 19.60 | V36: 18.46 | W36: 17.45 | X36: 16.23 | Y36: 15.00 | Z36: 14.31
A37: Kaynak: IMF
A38: * Gölgeli hücreler IMF tahmini rakamlarını göstermektedir.
A39: Güncelleme tarihi: 06.05.2019
A41: İÇİNDEKİLER SAYFASI
